{"text_format":"1","workbook":"xlsx","n_sheets":2,"sheets":["SZ-2023-SuperSearch","Sheet1"],"not_rendered":{"charts":0,"images":4,"macros":1,"external_links":0,"defined_names":4,"comments":0,"pivot_tables":0},"unopened":[],"bounds":{"document_bytes":16777216,"sheet_cells":100000,"rows_first":2000,"rows_last":500,"rows_between":2000,"halvings":0,"cell_chars":16384,"cell_head_chars":4096},"cells_cut":0,"cells_raw":0,"read":"whole","date_system":"1900"}

{"sheet":"SZ-2023-SuperSearch","index":0,"n_rows":1122,"n_cols":56,"rows_kept":1122,"cut":false,"hidden":false,"merged":[[2,0,2,1],[0,12,0,22],[0,23,0,55],[1,0,1,1],[0,4,0,11],[0,0,0,3],[7,23,7,55],[3,0,3,1],[4,0,4,1],[5,0,5,1],[6,0,6,1],[7,12,7,22],[7,0,7,3],[7,4,7,11]]}
["SEARCH EXHIBITORS",null,null,null,"SZ SECTION",null,null,null,null,null,null,null,"ANIMAL/EXHIBITOR TYPE",null,null,null,null,null,null,null,null,null,null,"DOG and/or CAT PRODUCT CATEGORIES"]
["EXHIBITOR SEARCH  ALL RESULTS ARE COMBINED",null,"EXHIBITOR SEARCH","<< \"U Pick 'Em\" LIST","Natural & Health","Specialty & Lifestyle","Aquatics/Animals","Feed & Farm","Groomers","Natural & Health","International ","Emerging Brands","Media, Org","Distributor","Bus Services Rtl/Mfg","Gift/Gen Mdse","Fish","Reptile","Bird","Sm Animal","Horse","Cat","Dog","Books, Mags","Clothes, Costumes","C&L Harn Acc ","ID Tags","Food","Feeding Acc","Treats ","Rawhide","Toys","Exercise. Agility","Catnip","Scratching","Furniture","Tie Out & Contain ","Beds Mats","Doors/Gates","Carriers Crates","Car Safety, Acc","Houses, Kennels","Litter","Litter Acc","Dental","CBD","Meds, Supp","Flea & Tick","Groom Tool","Shampoo","Stain & Odor, Clean","Wipes","Train pads, diapers ","Waste Pickup","Electronic","Track, Monitor"]
["Must have \"Y\" to activate; Then enter \"1\" in column>>",null,"Y"]
["To Add on Chge \"N\" to \"Y\"; Then enter \"1\" in column>>",null,"N"]
[" Note: An \"N\" even with \"1's\" will generate no results",null,"N"]
["Note: Multiple \"1's\" in a row mean AND - Must have all",null,"N"]
["Note: A \"Y\" with no \"1\"s brings up the whole list",null,"N"]
["SEARCH RESULTS",null,null,null,"SZ SECTION",null,null,null,null,null,null,null,"ANIMAL/EXHIBITOR TYPE",null,null,null,null,null,null,null,null,null,null,"DOG and/or CAT PRODUCT CATEGORIES"]
["SZ 2023 Booth #","SUPERZOO 2023 EXHIBITOR LIST - (*) Indicates 1st Time Exhibitor","EXHIBITOR SEARCH","<< \"U Pick 'Em\" LIST","Natural & Health","Specialty & Lifestyle","Aquatics/Animals","Feed & Farm","Groomers","Natural & Health","International ","Emerging Brands","Media, Org","Distributor","Bus Services Rtl/Mfg","Gift/Gen Mdse","Fish","Reptile","Bird","Sm Animal","Horse","Cat","Dog","Books, Mags","Clothes, Costumes","C&L Harn Acc ","ID Tags","Food","Feeding Acc","Treats ","Rawhide","Toys","Exercise. Agility","Catnip","Scratching","Furniture","Tie Out & Contain ","Beds Mats","Doors/Gates","Carriers Crates","Car Safety, Acc","Houses, Kennels","Litter","Litter Acc","Dental","CBD","Meds, Supp","Flea & Tick","Groom Tool","Shampoo","Stain & Odor, Clean","Wipes","Train pads, diapers ","Waste Pickup","Electronic","Track, Monitor"]
[5262,"2 Hounds Design","Y",null,null,1,null,null,null,null,null,null,null,null,null,null,null,null,null,null,null,null,1,null,null,1]
[6677,"3GOGO INC. *","Y",null,null,null,null,null,null,null,null,1,null,null,null,null,null,1,null,1,null,1,1,null,null,null,null,null,null,null,null,1]
[3105,"4 Cats & Dogs Home Furnishings","Y",null,1,null,null,null,null,null,null,null,null,null,null,null,null,null,null,null,null,1,1,null,null,null,null,null,null,null,null,null,null,null,null,1,null,1]
[7378,"4 Paws Platform *","Y",null,null,null,null,null,null,null,null,1,null,null,null,null,null,null,null,null,null,null,1,null,null,null,null,null,null,null,null,null,null,null,null,1,null,null,null,null,1]
[5710,"5-D Tropical","Y",null,null,null,1,null,null,null,null,null,null,1,null,null,1]
[7278,"A Better Treat *","Y",null,null,null,null,null,null,null,null,1,null,null,null,null,null,null,null,null,null,1,1,null,null,null,null,1,null,1]
[1450,"A Pup Above","Y",null,1,null,null,null,null,null,null,null,null,null,null,null,null,null,null,null,null,null,1,null,null,null,null,1]
[6511,"A&E Cage Company","Y",null,null,null,null,null,null,null,null,null,0,0,null,0,0,1,1,1,0,0,1,0,0,0,0,0,0,null,0,1,0,0,0,0,0,0,0,null,0,null,0,0,0,null,0,0,0,0,0,0,0,0]
[1838,"Above Shears","Y",null,null,null,null,null,1,null,null,null,null,null,1,null,null,null,null,null,null,null,1,null,null,null,null,null,null,null,null,null,null,null,null,null,null,null,null,null,null,null,null,null,null,null,null,null,1]
[5263,"AC RadioCom","Y",null,null,null,null,null,null,null,null,null,null,null,1]
[3657,"Acorn Pet Products LLC","Y",null,1,null,null,null,null,null,null,null,null,null,null,null,null,null,null,null,null,1,1,null,null,1,null,null,null,null,null,null,null,null,null,null,null,null,null,null,null,null,null,null,null,null,1,null,null,null,null,null,null,null,0,0]
[3567,"Active Concepts LLC *","Y",null,1,null,null,null,null,null,null,null,null,null,1,null,null,null,null,null,null,1,1,null,null,null,null,null,null,null,null,null,null,null,null,null,null,null,null,null,null,null,null,null,null,null,1,null,null,1]
[6275,"active milligrams *","Y",null,null,null,null,null,null,null,null,1,null,null,null,null,null,null,null,null,null,1,1,null,null,null,null,null,null,null,null,null,null,null,null,null,null,null,null,null,null,null,null,null,null,1,1]
[5627,"Adams","Y",null,null,null,null,null,null,null,null,null,null,null,null,null,null,null,null,null,null,1,1,null,null,1,null,null,null,null,null,null,null,null,null,null,null,null,null,null,null,null,null,null,null,null,1,1,null,1]
[6863,"ADC Houndstone + Co","Y",null,null,null,null,null,null,null,null,null,null,null,null,1,null,null,null,null,null,null,1,null,null,1,null,null,null,1,null,null,null,null,null,null,null,1]
[7653,"ADM","Y",null,null,null,null,null,null,null,null,null,null,null,1,null,null,null,null,null,null,null,1,null,null,null,null,1,null,1,null,null,null,null,null,null,null,null,null,null,null,null,null,null,null,null,1]
[3825,"Advance Pet Products","Y",null,1,null,null,null,null,null,null,null,0,0,null,0,0,0,1,0,1,1,1,0,null,0,0,0,1,1,0,1,0,0,1,0,0,null,0,0,0,0,0,1,0,null,1,0,0,0,0,0,0,1]
[1937,"Aeolus International Pet Products LLC","Y",null,null,null,null,null,1,null,null,null,null,null,1,null,null,null,null,null,null,1,1,null,null,null,null,null,null,null,null,null,null,null,null,null,null,null,null,1,null,1,null,null,null,null,null,null,1,null,1]
[6225,"Aeolus International Pet Products LLC","Y",null,null,null,null,null,null,null,null,null,null,null,1,null,null,null,null,null,null,1,1,null,null,null,null,null,null,null,null,null,null,null,null,null,null,null,null,1,null,1,null,null,null,null,null,null,1,null,1]
[4771,"AeroMark International Inc","Y",null,null,1,null,null,null,null,null,null,null,null,null,null,null,null,null,null,null,1,1,null,null,null,null,null,null,null,null,1,null,null,1,1,null,1,null,1,null,null,null,null,null,null,null,null,null,null,null,null,null,null,0]
[2047,"Ag-Alchemy Animal Nutrition *","Y",null,1,null,null,null,null,null,null,null,null,null,null,null,null,null,null,null,null,null,1,null,null,null,null,null,null,1,null,null,null,null,null,null,null,null,null,null,null,null,null,null,null,null,1]
[7677,"AI Draw Limited *","Y",null,null,null,null,null,null,null,null,1,null,null,1,1]
[3346,"Alaska Puppy Love *","Y",null,1,null,null,null,null,null,null,null,null,null,null,null,null,null,null,null,null,null,1,null,null,null,null,null,null,1]
[5006,"Alfalfa King","Y",null,null,null,1,null,null,null,null,null,null,null,null,null,null,null,null,1]
[7266,"ALFAPET","Y",null,null,null,null,null,null,null,null,null,null,null,null,null,null,null,null,null,null,1,null,null,null,null,null,null,null,null,null,null,null,null,null,null,null,null,null,null,null,null,null,1]
[6124,"All Four Paws","Y",null,null,null,null,null,null,null,null,null,null,null,null,null,null,null,null,null,null,1,1,null,1,1,null,null,null,null,null,null,null,null,null,null,null,null,null,null,null,null,null,null,null,null,1]
[5174,"All Star Dogs","Y",null,null,1,null,null,null,null,null,null,null,null,null,1,null,null,null,null,null,null,1,null,1,1,null,null,1,null,null,1,null,null,null,null,null,1,null,null,null,null,null,null,null,null,null,null,null,null,null,null,null,null,0,0]
[3465,"All Walks","Y",null,1,null,null,null,null,null,null,null,null,null,null,null,null,1,1,1,1]
[4668,"Alpen Schatz LLC","Y",null,null,1,null,null,null,null,null,null,null,null,null,1,null,null,null,null,null,1,1,null,1,1,1,null,null,null,null,null,null,null,null,null,null,null,null,null,null,null,null,null,1,null,1,null,null,1]
[2051,"ALPHA POLY *","Y",null,1,null,null,null,null,null,null,null,null,null,1,null,null,null,null,null,null,1,1,null,null,null,null,1,null,1]
[2140,"Alpha Tech Pet, Inc.","Y",null,null,null,null,null,1,null,null,null,null,null,1,null,null,null,null,null,null,1,1,null,null,null,null,null,null,null,null,null,null,null,null,null,null,null,null,null,null,null,null,null,null,1,1,null,1,null,1]
[3909,"ALZOO","Y",null,1,null,null,null,null,null,null,null,null,null,null,null,null,null,null,null,1,1,1,null,null,1,null,null,null,1,null,null,null,null,null,null,null,null,null,null,null,null,null,null,null,null,1,1,1,1,1]
[6625,"Amazing Pet Products","Y",null,null,null,null,null,null,null,null,null,0,0,null,0,1,1,1,1,0,1,1,0,1,1,1,0,null,1,1,1,0,null,0,0,1,null,0,0,0,0,1,1,null,null,null,0,1,0,0,0,0,0,0]
[3206,"Amber NaturalZ, Inc.","Y",null,1,null,null,null,null,null,null,null,null,null,null,null,null,1,1,1,null,1,1,null,null,null,null,null,null,null,null,null,null,null,null,null,null,null,null,null,null,null,null,null,null,null,1]
[5669,"American Dog *","Y",null,null,null,null,null,null,null,null,null,null,null,null,null,null,null,null,null,null,null,1,null,null,1,null,null,1,null,null,1,null,null,null,null,null,1]
[1234,"American Kennel Club","Y",null,null,null,null,null,1,null,null,null,1,null,1,null,null,null,null,null,null,1,1]
[3861,"American Packaging Corporation *","Y",null,1,null,null,null,null,null,null,null,null,null,1,null,null,null,null,null,null,1,1,null,null,null,null,1,null,1]
[7810,"American Pet","Y",null,null,null,null,null,null,null,null,null,null,null,null,null,null,null,1,1,1,1,1,null,null,null,null,null,null,1,null,null,null,null,1,1,null,null,null,null,null,null,null,1,null,null,1,null,null,null,1]
[3209,"American Wood Fibers","Y",null,1,null,null,null,null,null,null,null,null,null,null,null,null,1,1,1,1,1]
[7424,"Amoroso Baby Inc.","Y",null,null,null,null,null,null,null,null,null,null,null,null,null,null,null,null,null,null,1,1,null,null,null,null,null,null,null,null,null,null,null,null,null,null,null,null,1]
[4276,"Amrapur Overseas","Y",null,1,null,null,null,null,null,null,null,null,null,null,null,null,null,null,null,null,1,1,null,null,null,null,null,null,null,null,null,null,null,null,null,null,1]
[5865,"Andersons Pet Care Products","Y",null,null,null,null,1,null,null,null,null,null,null,1,null,null,1,1,1,1,1,null,null,null,null,null,null,null,null,null,null,null,null,null,null,null,null,null,null,null,null,1]
[1532,"Andis Company","Y",null,null,null,null,null,1,null,null,null,null,null,1,null,null,null,null,null,1,1,1,1,null,null,null,null,null,null,null,null,null,null,null,null,null,null,null,null,null,null,null,null,null,null,null,null,1]
[4865,"Angel Pet Supplies Inc.","Y",null,null,1,null,null,null,null,null,null,null,null,null,null,null,null,null,null,null,1,1,null,null,1,null,null,null,null,null,1]
[7366,"Anhui Sealong Biobased Industrial Technology Co.,Ltd *","Y",null,null,null,null,null,null,null,null,null,null,null,1,1]
[3757,"Animal Essentials Inc","Y",null,1,null,null,null,null,null,null,null,null,null,null,null,null,null,null,null,null,1,1,null,null,null,null,null,null,null,null,null,null,null,null,null,null,null,null,null,null,null,null,null,null,1,1,1,null,null,null,1]
[5857,"Animal Health Solutions Inc.","Y",null,null,null,null,1,null,null,null,null,null,null,null,null,null,null,1,null,1,1,1,null,null,null,null,null,null,1,null,null,null,null,null,null,null,null,null,null,null,null,null,null,null,null,1]
[2020,"Animal Photography","Y",null,null,null,null,null,1,null,null,null,null,null,1,1]
[6239,"Animal Supply Company","Y",null,null,null,null,null,null,null,null,null,null,1,null,null,1,1,1,1,1,1,1,null,1,1,1,1,1,1,1,1,1,1,1,1,1,1,1,1,1,1,1,1,1,1,1,1,1,1,1,1,1,1]
[4266,"AnimalBiome *","Y",null,1,null,null,null,null,null,null,null,null,null,null,null,null,null,null,null,null,1,1,null,null,null,null,null,null,1,null,null,null,null,null,null,null,null,null,null,null,null,null,null,null,null,1]
[3851,"Annamaet Petfoods Inc.","Y",null,1,null,null,null,null,null,null,null,0,0,null,0,0,0,0,0,0,1,1,0,0,0,0,1,0,1,0,0,0,0,0,0,0,0,0,0,0,0,0,0,0,null,1,0,0,0,0,0,0,0]
[3123,"Answers Pet Food *","Y",null,1,null,null,null,null,null,null,null,null,null,null,null,null,null,null,null,null,1,1,null,null,null,null,1,null,null,null,null,null,null,null,null,null,null,null,null,null,null,null,null,null,null,1]
[1672,"Antelope","Y",null,1,null,null,null,null,null,null,null,0,0,null,0,0,0,0,0,0,1,1,0,0,0,0,0,0,1,0,0,0,0,0,0,0,0,0,0,0,0,0,0,0,1,1,0,0,0,0,0,0,0,0,0]
[7257,"APPA / Global Pet Expo","Y",null,null,null,null,null,null,null,null,null,1,null,null,1,null,null,null,null,null,null,null,null,null,null,null,null,null,null,null,null,null,null,null,null,null,null,null,null,null,null,null,null,null,null,null,null,null,null,null,null,null,null,null,0]
[3553,"Applaws Natural Pet Food / Reveal","Y",null,1,null,null,null,null,null,null,null,null,null,null,null,null,null,null,null,null,1,1,null,null,null,null,1,null,1,null,null,null,null,null,null,null,null,null,null,null,null,null,null,null,null,1]
[4918,"Aquatic Fundamentals","Y",null,null,null,1,null,null,null,null,null,null,null,null,null,1]
[5216,"Aquatop","Y",null,null,null,1,null,null,null,null,null,0,0,0,0,1,0,0,0,0,0,0,0,0,0,0,0,0,0,0,0,0,0,0,0,0,0,0,0,0,0,0,0,0,null,0,0,0,0,0,0,0,0]
[5706,"aquatropic","Y",null,null,null,1,null,null,null,null,null,null,1,null,null,1]
[5627,"Aqueon","Y",null,null,null,null,null,null,null,null,null,null,null,null,null,1]
[3707,"Arch *","Y",null,1,null,null,null,null,null,null,null,null,null,null,1,null,null,null,null,null,null,1,null,null,null,null,null,null,1,null,null,null,null,null,null,null,null,null,null,null,null,null,null,null,null,1]
[6776,"Archie & alfred *","Y",null,null,null,null,null,null,null,null,1,null,null,null,null,null,null,null,null,null,null,1,null,null,1,null,null,null,null,null,null,null,null,null,null,null,null,null,null,null,null,null,null,null,null,null,null,null,null,null,null,null,1]
["MR103","Arjan Overseas","Y",null,null,null,null,null,null,null,null,null,null,null,null,null,null,null,null,null,null,1,1,null,1,null,null,null,1,null,null,null,null,null,null,null,null,1,null,null,null,null,null,1]
[3113,"Ark Naturals / Antelope Pets","Y",null,1,null,null,null,null,null,null,null,null,null,1,null,null,null,null,null,null,1,1,null,null,null,null,null,null,1,null,null,null,null,null,null,null,null,null,null,null,null,null,null,1,null,1]
[2174,"Arlee Pet Products","Y",null,1,null,null,null,null,null,null,null,null,null,null,null,null,null,null,null,null,1,1,null,null,1,null,null,null,null,null,null,null,null,null,null,null,1,null,null,1,null,null,null,null,null,null,null,null,null,null,null,null,null,0]
[2250,"Aroma NZ Ltd *","Y",null,1,null,null,null,null,null,null,null,null,null,null,null,null,null,null,null,null,1,1,null,null,null,null,null,null,1,null,null,null,null,null,null,null,null,null,null,null,null,null,null,null,null,1]
[2149,"AROMA PAWS","Y",null,1,null,null,null,null,null,null,null,0,0,null,1,0,0,0,0,0,1,1,0,0,0,0,0,0,0,0,0,0,0,0,0,0,0,0,0,0,0,0,0,0,null,1,1,0,1,1,0,0,0,null,0]
[5721,"Aroma Retail, LLC","Y",null,null,null,null,null,null,null,null,null,null,null,1,null,null,null,null,null,null,1,1,null,null,null,null,null,null,null,null,null,null,null,null,null,null,null,null,null,null,null,null,null,null,null,null,null,null,null,1]
[2030,"Artero USA Inc.","Y",null,null,null,null,null,1,null,null,null,null,null,1,null,null,null,null,null,1,1,1,null,null,null,null,null,null,null,null,null,null,null,null,null,null,null,null,null,null,null,null,null,null,null,1,null,1,1,1,1]
[3669,"Artvark Pet div. Gogo","Y",null,1,null,null,null,null,null,null,null,0,1,null,0,0,0,0,0,0,1,1,0,0,1,0,0,1,1,1,0,0,0,0,0,0,0,0,0,1,0,0,0,0,null,0,1,1,0,0,0,1,1]
[4463,"Aspire","Y",null,null,1,null,null,null,null,null,null,null,null,null,null,1,null,1,null,null,null,1,null,null,null,null,1,null,null,null,null,null,null,null,null,null,null,null,null,null,null,null,null,null,null,1]
[3461,"Astro Loyalty","Y",null,1,null,null,null,null,null,null,null,null,null,1]
[4458,"Auburn Leathercrafters/A Tail We Could Wag","Y",null,null,null,null,null,null,null,null,null,0,0,null,1,0,0,0,0,0,1,1,0,null,1,0,0,0,0,0,1,0,null,0,0,0,0,0,0,0,0,0,0,0,null,0,0,0,0,0,0,0,0,0]
[2373,"Augie Bones","Y",null,1,null,null,null,null,null,null,null,null,null,1,null,null,null,null,null,null,null,1,null,null,null,null,null,null,null,null,1]
[1684,"Austin and Kat","Y",null,1,null,null,null,null,null,null,null,null,null,null,null,null,null,null,null,null,1,1,null,null,null,null,null,null,1,null,null,null,null,null,null,null,null,null,null,null,null,null,null,null,1,1]
[6967,"AVANTPET *","Y",null,null,null,null,null,null,null,null,null,null,null,null,null,null,null,null,null,null,1,1,null,1,null,null,null,null,null,null,null,null,null,null,null,null,1,null,null,null,null,null,null,null,null,1]
[2376,"Ava's Pet Palace","Y",null,1,null,null,null,null,null,null,null,null,null,null,null,null,null,null,null,null,1,1,null,null,1,null,null,null,1,null,1]
[4769,"Aventura Pups introducing Mochi & Kona","Y",null,null,1,null,null,null,null,null,null,null,null,null,null,null,null,null,null,null,null,1,null,1,1,null,null,1,null,null,1,null,null,null,null,null,1,null,1]
[4361,"Avery WePrint Labels","Y",null,null,null,null,null,null,null,null,null,null,null,1]
[6339,"AvoDerm","Y",null,null,null,null,null,null,null,null,null,null,null,null,null,null,null,null,null,null,1,1,null,null,null,null,1,null,1]
[5368,"Awoo","Y",null,null,null,null,null,null,null,null,null,null,null,null,null,null,null,null,null,null,null,1,null,null,1,null,null,1,null,null,1,null,null,null,null,null,1,null,null,null,null,null,null,null,null,null,null,null,null,null,null,null,1]
[7679,"B & S Korea *","Y",null,null,null,null,null,null,null,null,1,null,null,null,null,null,null,null,null,null,null,1,null,1]
[7663,"Back on Track USA","Y",null,null,null,null,null,null,null,null,null,null,null,null,null,null,null,null,null,1,1,1,null,1,null,null,null,null,null,null,null,null,null,null,null,null,1,null,null,null,null,null,null,null,null,1]
[1385,"BAFF's Naturals","Y",null,1,null,null,null,null,null,null,null,null,null,null,null,null,null,null,null,null,null,1,null,null,null,null,null,null,1]
[4779,"Bandoggies","Y",null,null,1,null,null,null,null,null,null,null,null,null,null,null,null,null,null,null,null,1,null,1]
[4663,"Bark Boutique / Kitty Kaboodle","Y",null,null,1,null,null,null,null,null,null,null,null,null,null,null,null,null,null,null,1,1,null,null,1]
[4579,"Bark Butter","Y",null,null,1,null,null,null,null,null,null,null,null,null,null,null,null,null,null,null,null,1,null,null,null,null,null,null,1]
[6457,"Barker's Bowtique (Max's Closet)","Y",null,null,null,null,null,null,null,null,null,null,null,null,null,null,null,null,null,null,null,1,null,1,1,null,null,null,null,null,1,null,null,null,null,null,null,null,null,1]
[4470,"Barkin / M. Barclay *","Y",null,1,null,null,null,null,null,null,null,null,null,null,null,null,null,null,null,null,null,1,null,null,1,null,null,null,1,null,null,null,null,null,null,null,1,null,null,null,null,null,null,null,null,1,null,null,1]
[2133,"Barkleigh Productions","Y",null,null,null,null,null,1,null,null,null,1]
[6280,"BarkWell Pet *","Y",null,null,null,null,null,null,null,null,1,null,null,null,null,null,null,null,null,null,null,1,null,null,null,null,null,null,1]
[3539,"Barkworthies (Pawlove)","Y",null,1,null,null,null,null,null,null,null,0,0,null,0,0,0,0,0,0,0,1,0,0,0,0,0,0,1,0,0,0,0,0,0,0,0,0,0,0,0,0,0,0,null,0,0,0,0,0,0,0,0]
[1146,"Bass Brushes","Y",null,1,null,null,null,null,null,null,null,null,null,1,null,null,null,null,null,1,1,1,null,null,null,null,null,null,null,null,null,null,null,null,null,null,null,null,null,null,null,null,null,null,null,null,null,1]
[7268,"BAYDOG","Y",null,null,null,null,null,null,null,null,null,null,null,null,null,null,null,null,null,null,null,1,null,1,1]
[5163,"Baylee Nasco","Y",null,null,1,null,null,null,null,null,null,null,null,null,null,null,null,null,null,null,1,1,null,null,null,null,null,null,null,null,null,null,null,null,null,null,1]
[2234,"Bbold Shears","Y",null,null,null,null,null,1,null,null,null,null,null,1,null,null,null,null,null,null,null,1,null,null,null,null,null,null,null,null,null,null,null,null,null,null,null,null,null,null,null,null,null,null,null,null,null,1]
[5521,"BEAK (Bird Enjoyment & Advantage Koalition)","Y",null,null,null,1,null,null,null,null,null,null,null,1,null,null,null,1]
[7557,"Bejeweled Accessories (BA) Creations Ltd *","Y",null,null,null,null,null,null,null,null,null,null,null,null,null,null,null,null,null,null,1,1,null,1,1]
[3903,"Bell Rock Growers","Y",null,1,null,null,null,null,null,null,null,0,0,null,null,null,1,1,1,0,1,1,0,0,0,0,0,0,1,0,null,0,1,0,0,0,0,0,0,0,0,0,0,0,null,1,0,0,0,0,0,0,0]
[4875,"Bella Bean Couture & Finnegan's Standard Goods","Y",null,null,1,null,null,null,null,null,null,null,null,null,null,null,null,null,null,null,null,1,null,1,1,null,null,null,null,null,1,null,null,null,null,null,1]
[4669,"Belvedere Marketing","Y",null,null,1,null,null,null,null,null,null,null,null,1,1,null,null,null,null,null,null,null,null,null,null,null,null,null,null,null,null,null,null,null,null,null,null,null,null,null,null,null,null,null,null,null,null,null,null,null,null,null,null,null,0]
[7439,"Benebone","Y",null,null,null,null,null,null,null,null,null,null,null,null,null,null,null,null,null,null,null,1,null,null,null,null,null,null,null,null,1]
[1581,"Benny Bullys USA","Y",null,1,null,null,null,null,null,null,null,null,null,null,null,null,null,null,null,null,1,1,null,null,null,null,null,null,1]
[1938,"Best Shot Pet Products","Y",null,null,null,null,null,1,null,null,null,null,null,1,null,null,null,null,null,1,1,1,null,null,null,null,null,null,null,null,null,null,null,null,null,null,null,null,null,null,null,null,null,null,null,1,null,null,1,1]
[6777,"BetterBone *","Y",null,null,null,null,null,null,null,null,1,null,null,null,null,null,null,null,null,null,null,1,null,null,null,null,null,null,null,null,1]
[6224,"Big Hairy Dog POS Systems","Y",null,null,null,null,null,null,null,null,null,null,null,1,null,null,null,null,null,null,null,null,null,null,null,null,null,null,null,null,null,null,null,null,null,null,null,null,null,null,null,null,null,null,null,null,null,null,null,null,null,null,null,null,0]
[7157,"BigMouth Pets *","Y",null,null,null,null,null,null,null,null,null,null,null,null,null,null,null,null,null,null,null,1,null,null,null,null,null,null,null,null,1,null,null,null,null,null,1]
[6249,"Bil-Jac","Y",null,null,null,null,null,null,null,null,null,null,null,null,null,null,null,null,null,null,null,1,null,null,null,null,1,null,1,null,null,null,null,null,null,null,null,null,null,null,null,null,null,null,null,1]
[2038,"Bio Groom","Y",null,null,null,null,null,1,null,null,null,null,null,null,null,null,null,null,1,1,1,1,null,null,null,null,null,null,null,null,null,null,null,null,null,null,null,null,null,null,null,null,null,null,null,1,1,null,1,null,1,null,null,null,0]
[5861,"Bioproton Pty Ltd *","Y",null,null,null,null,1,null,null,null,null,null,null,1,null,null,null,null,null,1,1,1,null,null,null,null,1,null,1,null,null,null,null,null,null,null,null,null,null,null,null,null,null,null,null,1]
[5958,"BioZyme®️ Animal Health","Y",null,null,null,null,1,null,null,null,null,null,null,null,null,null,null,1,null,1,1,1,null,null,null,null,null,null,null,null,null,null,null,null,null,null,null,null,null,null,null,null,null,null,null,1]
[5206,"Birds- Matson Farm","Y",null,null,null,1,null,null,null,null,null,null,null,null,null,null,null,1]
[6968,"BITE ME *","Y",null,null,null,null,null,null,null,null,null,null,null,null,null,null,null,null,null,null,null,1,null,1,1,null,1,1,1,null,1,null,null,null,null,null,1,null,1,null,null,null,null,null,null,1,null,null,1]
[6030,"BIXBI Pet","Y",null,null,null,null,null,null,null,null,null,0,0,null,0,0,0,0,0,0,1,1,0,0,0,0,1,0,1,0,0,0,0,0,0,0,0,0,0,0,0,0,0,0,1,1,0,0,0,0,0,0,0]
[7419,"Black Gold Explorer","Y",null,null,null,null,null,null,null,null,null,null,null,null,null,null,null,null,null,null,null,1,null,null,null,null,1]
[5911,"Blue Buffalo Co., Ltd.","Y",null,null,null,null,null,null,null,null,null,null,null,null,null,null,null,null,null,null,1,1,null,null,null,null,1,null,1]
[3869,"Blue Dog Bakery","Y",null,1,null,null,null,null,null,null,null,0,0,null,0,0,0,0,0,0,0,1,0,0,0,0,0,0,1,0,0,0,0,0,0,0,0,0,0,0,0,0,0,0,null,0,0,0,0,0,0,0,0]
[5765,"Blue Mountain Hay *","Y",null,null,null,null,1,null,null,null,null,null,null,null,null,null,null,null,1]
[5219,"Blue Ribbon Pet Products Inc","Y",null,null,null,1,null,null,null,null,null,0,0,null,0,1,1,1,null,0,0,1,0,0,0,0,0,0,0,0,1,0,0,0,0,0,0,0,0,0,0,0,0,0,null,0,0,0,0,0,0,0,0]
[2346,"BLUE SAPPHIRE MERCHANT C/O MYSUPERPAWS.COM *","Y",null,1,null,null,null,null,null,null,null,null,null,1,null,null,null,null,null,null,1,1,null,1,1,null,null,1,null,null,1,null,null,null,null,null,1]
[5664,"Bluestem Oral Care","Y",null,null,null,null,null,null,null,null,null,null,null,null,null,null,null,null,null,null,1,1,null,null,null,null,null,null,1,null,null,null,null,null,null,null,null,null,null,null,null,null,null,1,null,1,null,null,null,null,1]
[7576,"Bluskysoul *","Y",null,null,null,null,null,null,null,null,1,null,null,null,1]
[4075,"Bold By Nature *","Y",null,1,null,null,null,null,null,null,null,null,null,null,null,null,null,null,null,null,1,1,null,null,null,null,1]
[4974,"Bone Dry","Y",null,null,1,null,null,null,null,null,null,null,null,null,null,null,null,null,null,null,1,1,null,null,null,null,null,1,null,null,null,null,null,null,null,null,1,null,null,null,null,null,null,null,null,null,null,1]
[3603,"Bones & Co.","Y",null,1,null,null,null,null,null,null,null,null,null,null,null,null,null,null,null,null,null,1,null,null,null,null,1,null,1,null,null,null,null,null,null,null,null,null,null,null,null,null,null,null,null,1]
[6767,"Bonso Technology (Shenzhen) Co.,Ltd *","Y",null,null,null,null,null,null,null,null,null,null,null,null,null,null,null,null,null,null,null,1,null,null,1,null,null,null,null,null,null,null,null,null,null,null,null,null,null,null,null,null,null,null,null,null,null,1,null,null,null,null,null,1]
[5057,"Bosco and Roxy's","Y",null,null,null,null,null,null,null,null,null,null,null,null,null,null,null,null,null,null,null,1,null,null,null,null,null,null,1]
[1352,"Boss Dog Brand & Boss Cat Brand","Y",null,1,null,null,null,null,null,null,null,null,null,null,null,null,null,null,null,null,1,1,null,null,1,null,1,1,1,null,null,null,null,null,null,null,null,null,null,null,null,null,null,null,null,1]
[7274,"Boulder Dog Food Company *","Y",null,null,null,null,null,null,null,null,1,null,null,null,null,null,null,null,null,null,1,1,null,null,null,null,null,null,1,null,null,null,null,null,null,null,null,null,null,null,null,null,null,null,null,1]
[2367,"Bow Wow Labs, Inc.","Y",null,1,null,null,null,null,null,null,null,null,null,null,null,null,null,null,null,null,null,1,null,null,null,null,null,null,1,null,1,null,null,null,null,null,null,null,null,null,null,null,null,1]
[6024,"Bowsers Pet Products","Y",null,null,null,null,null,null,null,null,null,null,null,null,null,null,null,null,null,null,null,1,null,null,null,null,null,1,null,null,null,null,null,null,null,null,1,null,1]
[2246,"Bowwow Korea Co., Ltd *","Y",null,1,null,null,null,null,null,null,null,null,null,1,null,null,null,null,null,null,1,1,null,null,null,null,1,null,1,null,null,null,null,null,null,null,null,null,null,null,null,null,null,null,null,1]
[2258,"Boxiecat LLC","Y",null,1,null,null,null,null,null,null,null,null,null,null,null,null,null,null,null,null,1,1,null,null,null,null,null,null,null,null,null,null,null,null,null,null,null,null,null,null,null,1,null,null,null,null,null,null,null,1]
[5208,"BPD","Y",null,null,null,1,null,null,null,null,null,null,1,null,null,null,null,1]
[7277,"Bpets *","Y",null,null,null,null,null,null,null,null,1,null,null,null,1,null,null,null,null,null,1,1,null,null,null,null,null,null,null,null,null,null,null,null,null,null,1,null,null,null,null,null,1]
[6339,"Breeder's Choice Pet Foods","Y",null,null,null,null,null,null,null,null,null,null,null,1,null,null,null,null,null,null,1,1,null,null,null,null,1,null,1]
[1882,"Bright Planet Pet","Y",null,1,null,null,null,null,null,null,null,null,null,null,null,null,null,null,null,null,null,1,null,null,null,null,null,null,1]
[7624,"Brightkins/Hunger for Words","Y",null,null,null,null,null,null,null,null,null,null,null,null,null,null,null,null,null,null,null,1,null,null,null,null,null,1,null,null,1,1]
[3347,"BrightPet Nutrition Group","Y",null,1,null,null,null,null,null,null,null,0,0,1,0,0,0,0,null,null,1,1,0,0,1,0,1,0,1,0,0,0,0,0,0,0,0,0,0,0,0,0,0,1,null,1,1,1,1,1,1,0,0]
[3609,"Brilliant Salmon Oil","Y",null,1,null,null,null,null,null,null,null,null,null,null,null,null,null,null,null,null,1,1,null,null,null,null,null,null,null,null,null,null,null,null,null,null,null,null,null,null,null,null,null,null,null,1]
[1973,"Brutus Broth","Y",null,1,null,null,null,null,null,null,null,null,null,null,null,null,null,null,null,null,null,1,null,null,null,null,null,null,1,null,null,null,null,null,null,null,null,null,null,null,null,null,null,null,null,1]
[7767,"BSM Partners *","Y",null,null,null,null,null,null,null,null,null,null,null,1]
[6924,"Bubblelick","Y",null,null,null,null,null,null,null,null,null,null,null,null,null,null,null,null,null,null,null,1,null,null,null,null,null,null,1]
[4569,"BUDDY BELTS","Y",null,null,1,null,null,null,null,null,null,0,0,null,0,0,0,0,0,0,0,1,0,0,1,0,0,0,0,0,0,0,0,0,0,0,0,0,0,0,0,0,0,0,null,0,0,0,0,0,0,0,1]
[6971,"Bugalugs Pet Care","Y",null,null,null,null,null,null,null,null,null,null,null,null,null,null,null,null,null,null,1,1,null,null,null,null,null,null,null,null,null,null,null,null,null,null,null,null,null,null,null,null,null,null,1,1,null,null,1,1,1]
[1846,"Bundle x Joy","Y",null,1,null,null,null,null,null,null,null,null,null,null,null,null,null,null,null,null,null,1,null,null,1,null,1,null,1,null,1,null,null,null,null,null,null,null,null,null,null,null,null,null,null,1]
[4219,"Caitec Inc.","Y",null,null,null,null,null,null,null,null,null,0,0,null,0,1,0,1,1,0,1,1,0,0,0,0,0,null,1,0,1,0,0,0,0,0,0,0,null,0,0,0,0,0,null,1,0,0,0,0,0,0,0]
[1168,"Caledon Farms","Y",null,1,null,null,null,null,null,null,null,null,null,null,null,null,null,null,null,null,1,1,null,null,null,null,null,null,1]
[6479,"Calitti *","Y",null,null,null,null,null,null,null,null,1,null,null,null,null,null,null,null,null,null,1,null,null,null,null,null,null,null,null,null,null,null,null,null,null,null,null,null,null,null,null,1]
[3419,"Canadian Jerky Company Ltd.","Y",null,1,null,null,null,null,null,null,null,null,null,null,null,null,null,null,null,null,1,1,null,null,null,null,1,null,1,null,null,null,null,null,null,null,null,null,null,null,null,null,null,null,1,1]
[7678,"CanCor Innovations *","Y",null,null,null,null,null,null,null,null,1,null,null,null,null,null,null,null,null,null,1,null,null,null,null,null,null,null,null,null,1]
[6039,"Canidae Pet Foods","Y",null,null,null,null,null,null,null,null,null,0,0,null,0,0,0,0,0,0,1,1,0,0,0,0,1,0,1,0,0,0,0,0,0,0,0,0,0,0,0,0,0,0,null,0,0,0,0,0,0,0,0]
[5157,"Canine Brands","Y",null,null,null,null,null,null,null,null,null,null,1,null,null,null,null,null,null,null,null,1,null,1,1,null,null,1,1,null,1,null,null,null,null,null,1,null,null,null,null,null,null,null,null,1]
[4139,"Canine Caviar Alkaline Pet Food","Y",null,null,null,null,null,null,null,null,null,0,0,null,0,0,0,0,0,0,1,1,0,0,0,0,1,0,1,0,0,0,0,0,0,0,0,0,0,0,0,0,0,0,null,1,0,0,0,0,0,0,0,0,0]
[3875,"CANOPHERA","Y",null,1,null,null,null,null,null,null,null,null,null,null,null,null,null,null,null,null,null,1,null,null,null,null,null,null,null,null,1,null,null,null,null,null,null,null,null,null,null,null,null,1]
[1350,"Careington International Corporation","Y",null,1,null,null,null,null,null,null,null,null,null,1]
["MR205","Carlson Pet Products *","Y",null,null,null,null,null,null,null,null,null,null,null,null,null,null,null,null,null,null,1,1,null,null,null,null,null,null,null,null,null,null,null,null,1,null,1,1,1,null,1]
[2180,"Carna4 Hand Crafted Pet Food","Y",null,1,null,null,null,null,null,null,null,null,null,null,null,null,null,null,null,null,1,1,null,null,null,null,1,null,1,null,null,null,null,null,null,null,null,null,null,null,null,null,null,null,null,1]
["MR201","Carolina Prime Pet","Y",null,null,null,null,null,null,null,null,null,null,null,null,null,null,null,null,null,null,null,1,null,null,null,null,null,null,1]
[6911,"Carpenter Co.","Y",null,null,null,null,null,null,null,null,null,null,null,null,null,null,null,null,null,null,null,1,null,null,null,null,null,null,null,null,null,null,null,null,null,null,1]
[6875,"Carruth Studio, Inc. *","Y",null,null,null,null,null,null,null,null,1,null,null,null,1]
[3857,"Caru Pet Food Company","Y",null,1,null,null,null,null,null,null,null,null,null,null,null,null,null,null,null,null,1,1,null,null,null,null,1,null,1,null,null,null,null,null,null,null,null,null,null,null,null,null,null,null,null,1]
[4464,"Casa Leo (previously Smarty Pear)","Y",null,1,null,null,null,null,null,null,null,null,null,null,null,null,null,null,null,null,1,null,null,null,null,null,null,null,null,null,1,null,null,null,null,null,null,null,null,null,null,null,1,null,null,null,null,null,null,null,null,null,null,1]
[6374,"Cat Savant *","Y",null,null,null,null,null,null,null,null,1,null,null,null,null,null,null,null,null,null,1,null,null,null,null,null,null,null,null,null,null,null,null,null,null,null,null,null,null,null,null,null,1]
[4061,"Catalyst Pet","Y",null,null,null,null,null,null,null,null,null,null,null,null,null,null,null,null,null,null,1,null,null,null,null,null,null,null,null,null,null,null,null,null,null,null,null,null,null,null,null,1,1]
[1384,"CatanDog's Global dba Fleas Gone / Ticks Gone","Y",null,1,null,null,null,null,null,null,null,null,null,null,null,null,null,null,null,null,1,1,null,null,1,null,null,null,null,null,null,null,null,null,null,null,null,null,null,null,null,null,null,null,null,null,1,null,null,null,null,null,null,1]
[6263,"Cavall *","Y",null,null,null,null,null,null,null,null,null,null,null,null,null,null,null,null,null,null,null,1,null,null,null,null,null,null,null,null,1]
[1585,"Cave Pets *","Y",null,1,null,null,null,null,null,null,null,null,null,null,null,null,null,null,null,null,null,1,null,null,null,null,1,null,1]
[6779,"Cavology *","Y",null,null,null,null,null,null,null,null,1,null,null,null,null,null,null,null,null,null,null,1,null,1,1,null,null,null,null,null,null,null,null,null,null,null,null,null,null,null,null,null,null,null,null,null,null,null,1,null,null,null,1]
[3103,"CBD Dog Health *","Y",null,1,null,null,null,null,null,null,null,null,null,null,null,null,null,null,null,1,1,1,null,null,null,null,null,null,null,null,null,null,null,null,null,null,null,null,null,null,null,null,null,null,1,1]
[4360,"CDA USA *","Y",null,1,null,null,null,null,null,null,null,null,null,1]
[6669,"Cecilia Tech","Y",null,null,null,null,null,null,null,null,null,null,null,null,1,null,null,null,null,null,1,1,null,null,1,null,null,null,null,null,null,null,null,null,null,null,1,null,null,null,null,null,null,null,null,null,null,null,null,null,1]
[7828,"Celerant Technology","Y",null,null,null,null,null,null,null,null,null,null,null,1]
[6576,"Celeste Watch Company *","Y",null,null,null,null,null,null,null,null,1,null,null,null,1]
[5627,"Central Garden & Pet","Y",null,null,null,null,null,null,null,null,null,0,0,null,1,1,1,1,1,1,1,1,1,null,1,null,null,1,1,1,1,null,null,1,1,1,1,1,1,1,null,null,null,1,null,1,1,1,1,1,1,1,1,null,0]
[5627,"Central Home Brands","Y",null,null,null,null,null,null,null,null,null,null,null,null,1,null,null,null,null,null,1,1,null,null,null,null,null,null,null,null,null,null,null,null,null,null,1]
[6630,"Central Pet Distribution","Y",null,null,null,null,null,null,null,null,null,0,1,null,0,1,1,1,1,1,1,1,1,1,1,1,1,1,1,1,1,1,1,1,1,1,1,1,1,1,1,1,1,1,1,1,1,1,1,1,1,1,1]
[3625,"Champion Petfoods","Y",null,1,null,null,null,null,null,null,null,null,null,null,null,null,null,null,null,null,1,1,null,null,null,null,1,null,1]
[4178,"Championlife USA Inc.","Y",null,1,null,null,null,null,null,null,null,null,null,null,null,null,null,null,null,null,1,1,null,null,null,null,null,null,null,null,null,null,null,null,null,null,null,null,null,null,null,null,1,null,null,null,null,null,null,1,null,null,1]
[7464,"Champwell Limited *","Y",null,null,null,null,null,null,null,null,null,null,null,null,null,null,null,null,null,null,1,1,null,null,null,null,null,null,null,null,1,null,null,1,1]
[7570,"Changzhou Care-de Sanitary Material Co., Ltd.","Y",null,null,null,null,null,null,null,null,null,null,null,null,null,null,null,null,null,null,null,1,null,null,null,null,null,null,null,null,null,null,null,null,null,null,null,null,null,null,null,null,null,null,null,null,null,null,null,null,null,1]
[1270,"Charlee Bear Dog Treats / Hound & Gatos Pet Food","Y",null,1,null,null,null,null,null,null,null,null,null,null,null,null,null,null,null,null,1,1,null,null,null,null,1,null,1]
[5058,"Charlie's Backyard","Y",null,null,null,null,null,null,null,null,null,null,null,null,null,null,null,null,null,null,null,1,null,1,1,null,null,1,null,null,null,null,null,null,null,null,1,null,null,null,null,null,null,null,null,null,null,null,null,null,null,null,1]
[4258,"Charlotte's Web","Y",null,null,null,null,null,null,null,null,null,null,null,null,null,null,null,null,null,null,null,1,null,null,null,null,null,null,1,null,null,null,null,null,null,null,null,null,null,null,null,null,null,null,1,1]
[3874,"Charmy Pet *","Y",null,1,null,null,null,null,null,null,null,null,null,null,null,null,null,null,null,null,1,1,null,null,null,null,1,null,1]
[1130,"CHERRY'S *","Y",null,null,null,null,null,1,null,null,null,null,null,1,null,null,null,null,null,null,1,1,null,1,null,null,null,null,null,null,null,null,null,null,null,null,null,null,null,null,null,null,null,null,null,null,null,1]
[1836,"Chill Paws","Y",null,null,null,null,null,1,null,null,null,null,null,null,null,null,null,null,null,null,1,1,null,1,null,null,null,null,1,null,null,null,null,null,null,null,null,null,null,null,null,null,null,null,1,1]
[4475,"CHILLY DOG LLC","Y",null,null,1,null,null,null,null,null,null,0,0,null,0,0,0,0,0,0,1,1,0,1,null,0,0,0,0,0,1,0,0,0,0,0,0,0,0,0,0,0,0,0,null,0,0,0,0,0,0,0,0]
[5578,"China International Pet Show","Y",null,null,null,null,null,null,null,1,null,1]
[4963,"Chongqing Sweet Pet Products Co., Ltd. *","Y",null,null,1,null,null,null,null,null,null,null,null,null,null,null,null,null,null,null,1,1,null,null,null,null,null,null,1,null,null,null,null,null,null,null,null,null,null,null,null,null,null,null,null,null,null,null,1]
[1630,"Chris Christensen Systems","Y",null,null,null,null,null,1,null,null,null,null,null,1,null,null,null,null,null,1,1,1,null,null,null,null,null,null,null,null,null,null,null,null,null,null,null,null,null,null,null,null,null,null,null,1,null,1,1]
["MR203","Church & Dwight","Y",null,null,null,null,null,null,null,null,null,null,null,null,null,null,null,null,null,null,1,null,null,null,null,null,null,null,null,null,null,null,null,null,null,null,null,null,null,null,null,1]
[5277,"Cintas","Y",null,null,null,null,null,null,null,null,null,null,null,1]
[6367,"Citrus Magic Pet & FLAVORS Pet Food Toppers","Y",null,null,null,null,null,null,null,null,null,null,null,null,null,null,null,null,1,null,1,1,null,null,null,null,null,null,null,null,null,null,null,null,null,null,null,null,null,null,null,null,null,null,null,1,null,null,null,1]
[1337,"CLASSY MASTER *","Y",null,null,null,null,null,1,null,null,null,null,null,1,null,null,null,null,null,null,1,1,null,null,null,null,null,null,null,null,null,null,null,null,null,null,null,null,null,null,null,null,null,null,null,null,null,1]
[5458,"Claudia's Canine Bakery","Y",null,null,null,null,null,null,null,null,null,null,null,null,null,null,null,null,null,null,null,1,null,null,null,null,null,null,1]
[7364,"ClearBags","Y",null,null,null,null,null,null,null,null,null,null,null,1]
[5418,"Clifford W. Estes Co.","Y",null,null,null,1,null,null,null,null,null,null,null,null,null,1,1]
[4239,"Coastal Pet Products","Y",null,null,null,null,null,null,null,null,null,0,0,null,0,0,null,0,1,1,1,1,0,0,1,1,0,1,null,0,1,0,1,1,0,1,0,0,1,1,0,0,null,0,null,null,0,1,0,0,0,1,1]
[5716,"Cobalt Aquatics","Y",null,null,null,1,null,null,null,null,null,null,null,1,null,1]
[6377,"Cocojor - Eco-Friendly Minicle Micro Bubble Bath System *","Y",null,null,null,null,null,null,null,null,1,null,null,null,null,null,null,null,null,null,null,1,null,null,null,null,null,null,null,null,null,null,null,null,null,null,null,null,null,null,null,null,null,null,null,1,null,1,1]
[4064,"CocoTherapy","Y",null,1,null,null,null,null,null,null,null,null,null,null,null,null,null,null,null,null,1,1,null,1,null,null,null,null,1,null,1,null,null,null,null,null,1,null,null,null,null,null,null,null,null,1,null,null,null,null,null,1]
[5474,"COLLAR Company *","Y",null,null,null,null,null,null,null,null,null,null,null,null,null,1,null,null,1,null,1,1,null,1,1,null,null,null,null,null,1,null,null,null,1,null,1,null,1,null,null,1]
[6269,"Colorado Pet Treats","Y",null,null,null,null,null,null,null,null,null,null,null,null,null,null,null,null,null,null,null,1,null,null,null,null,null,null,1]
[7379,"Colorfil *","Y",null,null,null,null,null,null,null,null,1,null,null,null,1,null,null,null,null,null,1,1,null,null,null,null,null,null,null,null,null,null,null,null,null,null,null,null,null,null,null,null,null,null,null,null,null,null,null,1]
[5627,"Comfort Zone","Y",null,null,null,null,null,null,null,null,null,null,null,null,null,null,null,null,null,null,1,null,null,null,1,null,null,null,null,null,null,null,null,null,null,null,null,null,null,null,null,null,null,null,null,1]
[6763,"Comfortable Pet Inc *","Y",null,null,null,null,null,null,null,null,null,null,null,null,null,null,null,null,null,null,1,1,null,null,null,null,null,null,null,null,null,null,null,null,null,null,1]
[5168,"Comfort-Tech By LimbSaver *","Y",null,null,1,null,null,null,null,null,null,null,null,null,null,null,null,null,null,null,null,1,null,null,1]
[3975,"Commercial Dehydrator Systems *","Y",null,1,null,null,null,null,null,null,null,null,null,1]
[4939,"Compana Pet Brands","Y",null,null,null,null,null,null,null,null,null,null,null,null,null,null,null,1,1,1,1,1,null,null,1,null,null,null,1,null,1,null,null,null,null,null,null,null,null,null,null,null,null,1,1,1,1,null,1,1,1,1]
[7574,"Companion Candles *","Y",null,null,null,null,null,null,null,null,1,null,null,null,1,null,null,null,null,null,1,1,null,null,null,null,null,null,null,null,null,null,null,null,null,null,null,null,null,null,null,null,null,null,null,null,null,null,null,1]
[7614,"COMPLETE SIGNS","Y",null,null,null,null,null,null,null,null,null,null,null,1]
[6825,"Comp-Ware Systems","Y",null,null,null,null,null,null,null,null,null,null,null,1]
[6619,"Conair","Y",null,null,null,null,null,null,null,null,null,null,null,1,null,null,null,null,null,null,1,1,null,null,null,null,null,null,null,null,null,null,null,null,null,null,null,null,null,null,null,null,null,null,null,null,null,1]
[7848,"Connolly's RED MILLS","Y",null,null,null,null,null,null,null,null,null,null,null,null,null,null,null,null,null,1,1,1,null,null,null,null,1,null,1,null,null,null,null,null,null,null,null,null,null,null,null,null,null,1,null,1]
[7715,"CONNSMARTBIO","Y",null,null,null,null,null,null,null,null,null,null,null,null,null,null,null,null,null,null,1,1,null,null,null,null,null,null,null,null,null,null,null,null,null,null,null,null,null,null,null,null,null,null,null,1,null,null,1]
[4670,"Cool-A-Zone","Y",null,null,1,null,null,null,null,null,null,null,null,1,1]
[5627,"Coralife","Y",null,null,null,null,null,null,null,null,null,null,null,null,null,1,null,null,null,null,null,null,null,null,null,null,null,null,null,null,null,null,null,null,null,null,null,null,null,null,null,null,null,null,null,null,null,null,null,null,null,null,null,null,0]
[2378,"CORE Pet *","Y",null,1,null,null,null,null,null,null,null,null,null,null,null,null,null,null,null,null,1,1,null,null,null,null,null,null,null,null,null,null,null,null,null,null,null,null,null,null,null,null,null,1,null,1]
[6639,"Cosmos Corporation","Y",null,null,null,null,null,null,null,null,null,null,null,null,null,null,null,null,null,null,1,1,null,null,1,null,null,null,1,null,null,null,null,null,null,null,null,null,null,null,null,null,null,1,null,1,1,null,1,1,1]
[1168,"Crumps’ Naturals","Y",null,1,null,null,null,null,null,null,null,0,0,null,0,0,0,0,0,0,1,1,0,null,0,0,null,0,1,0,0,0,0,0,0,0,0,0,0,0,0,0,0,0,null,0,0,0,0,0,0,0,0]
[1441,"crystal works","Y",null,null,null,null,null,1,null,null,null,null,null,1,1,null,null,null,null,null,null,null,null,null,null,null,null,null,null,null,null,null,null,null,null,null,null,null,null,null,null,null,null,null,null,null,null,1]
[5258,"Curicyn, Inc.","Y",null,null,null,null,null,null,null,null,null,null,null,null,null,null,1,1,1,1,1,1,null,null,null,null,null,null,null,null,null,null,null,null,null,null,1,null,null,null,null,null,null,null,null,1,1,null,null,null,null,1]
[4653,"curli","Y",null,null,null,null,null,null,null,null,null,null,null,null,null,null,null,null,null,null,null,1,null,null,1,null,null,1,null,null,null,null,null,null,null,null,null,null,null,1]
[2241,"Curry on a Stik","Y",null,null,null,null,null,1,null,null,null,null,null,1,null,null,null,null,null,1,1,1,null,null,null,null,null,null,null,null,null,null,null,null,null,null,null,null,null,null,null,null,null,null,null,1,null,1,1]
[7151,"Curtis Wagner Plastics Corp.","Y",null,null,null,null,null,null,null,null,null,null,null,null,null,null,null,null,null,null,1,1,null,null,null,null,null,1,null,null,null,null,null,null,null,null,null,null,null,null,null,null,1]
[7615,"Dagan co.,Ltd *","Y",null,null,null,null,null,null,null,null,null,null,null,null,1]
[6679,"Dandylion *","Y",null,null,null,null,null,null,null,null,1,null,null,null,null,null,null,null,null,null,null,1,null,null,null,null,null,null,null,null,null,null,null,null,null,null,null,null,null,null,null,null,null,null,null,1,null,null,1]
[4864,"Dapper Paw","Y",null,null,1,null,null,null,null,null,null,null,null,null,1,null,null,null,null,null,1,1,null,null,null,1,null,1]
[2270,"DARFORD Oven-Baked Treats","Y",null,1,null,null,null,null,null,null,null,null,null,null,null,null,null,null,null,null,null,1,null,null,null,null,1,null,1,null,null,null,null,null,null,null,null,null,null,null,null,null,null,null,null,null,null,null,null,null,null,null,null,0]
[1981,"Dave's Pet Food","Y",null,1,null,null,null,null,null,null,null,null,null,null,null,null,null,null,null,null,1,1,null,null,null,null,1]
[7475,"d'ears inc. *","Y",null,null,null,null,null,null,null,null,1,null,null,null,1]
[1933,"DeMatador","Y",null,null,null,null,null,1,null,null,null,null,null,null,null,null,null,null,null,null,null,1,null,null,null,null,null,null,null,null,null,null,null,null,null,null,null,null,null,null,null,null,null,null,null,null,null,1]
[7913,"Dexas Internantional, Ltd","Y",null,null,null,null,null,null,null,null,null,null,null,null,null,null,null,null,null,null,1,1,null,null,null,null,null,1,null,null,null,null,null,null,null,null,null,null,null,null,null,null,null,null,null,null,null,1]
[7280,"dexypaws inc *","Y",null,null,null,null,null,null,null,null,1,null,null,null,null,null,null,null,null,null,1,1,null,1,1,null,null,1,1,null,1,null,null,null,null,null,1,null,null,null,null,null,null,null,null,1,null,null,1,null,null,null,1]
[7657,"Dharma Dog Karma Cat","Y",null,null,null,null,null,null,null,null,null,null,null,null,null,null,null,null,null,null,1,1,null,null,null,null,null,null,null,null,1,null,null,null,null,null,1]
[5425,"Diamond Pet Foods","Y",null,null,null,null,null,null,null,null,null,null,null,1,null,null,null,null,null,null,1,1,null,null,null,null,1]
[8012,"Diggs","Y",null,null,null,null,null,null,null,null,null,null,null,null,null,null,null,null,null,null,1,1,null,null,1,null,null,1,1,null,null,null,null,null,null,null,1,null,1,null,null,null,null,null,null,null,null,null,null,null,null,1,1]
[2340,"Direct Animal Products","Y",null,null,null,null,null,1,null,null,null,null,null,1,null,null,null,null,null,null,1,1,null,null,null,null,null,null,null,null,null,null,null,null,null,null,null,1,null,null,1,null,null,null,null,null,null,1,null,null,null,null,1]
[6666,"Distribution Management","Y",null,null,null,null,null,null,null,null,null,null,null,1,null,null,null,null,null,null,null,null,null,null,null,null,null,null,null,null,null,null,null,null,null,null,null,null,null,null,null,null,null,null,null,null,null,null,null,null,null,null,null,0]
[5560,"Doctor Multimedia","Y",null,null,null,null,null,null,null,null,null,null,null,1]
[3610,"Dofu Cat","Y",null,1,null,null,null,null,null,null,null,null,null,null,null,null,null,null,null,null,1,null,null,null,null,null,null,null,null,null,null,null,null,null,null,null,null,null,null,null,null,1]
[5963,"Dog Collar World","Y",null,null,null,null,null,null,null,null,null,null,null,null,null,null,null,null,null,null,null,1,null,1,1]
[4675,"Dog Diggin Designs","Y",null,null,1,null,null,null,null,null,null,null,null,null,null,null,null,null,null,null,null,1,null,null,null,null,null,null,null,null,1,null,null,null,null,null,1]
[4147,"Dog Gone Smart","Y",null,null,null,null,null,null,null,null,null,null,null,null,null,null,null,null,null,null,1,1,null,1,1,0,0,1,0,0,0,0,0,0,0,0,1,0,0,1,0,0,1,null,null,null,null,1,null,null,null,null,1]
[8011,"Dog Is Good","Y",null,null,null,null,null,null,null,null,null,0,0,null,1,0,0,0,0,0,null,1,0,null,null,null,0,1,1,0,null,0,0,0,0,0,0,0,null,null,0,0,0,0,null,1,0,0,0,0,0,0,1]
[3978,"Dog Treat Naturals","Y",null,1,null,null,null,null,null,null,null,null,null,null,null,null,null,null,null,null,null,1,null,null,null,null,null,null,1,null,null,null,null,null,null,null,null,null,null,null,null,null,null,1]
[4364,"DOGGINSTIX","Y",null,1,null,null,null,null,null,null,null,null,null,null,null,null,null,null,null,null,null,1,null,null,null,null,null,null,1]
[6877,"Doggy Dollars *","Y",null,null,null,null,null,null,null,null,1,null,null,null,null,null,null,null,null,null,null,1,null,null,null,null,null,null,1]
[5169,"DoggyTales","Y",null,null,1,null,null,null,null,null,null,null,null,null,null,null,null,null,null,null,null,1,null,null,1,null,null,null,null,null,null,null,null,null,null,null,null,null,null,null,null,null,null,null,null,null,null,null,null,null,null,null,null,0]
[6419,"Dogline","Y",null,null,null,null,null,null,null,null,null,0,0,null,0,0,0,0,0,0,null,1,0,1,1,0,0,1,0,0,1,0,0,0,0,0,0,0,1,1,0,0,0,0,null,0,0,0,0,0,0,0,1]
[6976,"DOGORA *","Y",null,null,null,null,null,null,null,null,1,null,null,null,null,null,null,null,null,null,null,1,null,1]
[6276,"DogSpace *","Y",null,null,null,null,null,null,null,null,1,null,null,null,null,null,null,null,null,null,null,1,null,null,null,null,null,null,null,null,null,null,null,null,null,null,null,1]
[5463,"Dogtra Co","Y",null,null,null,null,null,null,null,null,null,null,null,null,null,null,null,null,null,null,null,1,null,null,1,null,null,null,null,null,1,1,null,null,null,1,null,null,null,null,null,null,null,null,null,null,null,null,null,null,null,null,null,1,1]
[6963,"Do-It Corporation","Y",null,null,null,null,null,null,null,null,null,null,null,1]
[5412,"Dongguan Geshifeng Metal Products Co., Ltd *","Y",null,null,null,1,null,null,null,null,null,null,null,1,null,null,null,1,null,null,1,1,null,1,1,null,null,1,null,null,1,null,null,1,1,null,1,null,null,null,null,null,null,null,null,null,null,1]
[6270,"Donguan Hanyang Pet Products Co.,Ltd *","Y",null,null,null,null,null,null,null,null,null,null,null,null,null,null,1,1,1,null,null,1,null,null,1,null,1]
[7275,"Doodle Couture, New York *","Y",null,null,null,null,null,null,null,null,1,null,null,null,null,null,null,null,null,null,null,1,null,1,1,null,null,null,null,null,null,null,null,null,null,null,null,null,null,null,null,null,null,null,null,null,null,null,null,null,null,null,1]
[4161,"DOOG","Y",null,null,null,null,null,null,null,null,null,null,null,null,null,null,null,null,null,null,null,1,null,null,1,null,null,1,null,null,1,null,null,null,null,null,null,null,null,1,null,null,null,null,null,null,null,null,null,null,null,null,1]
[4453,"DOYENWORLD Inc","Y",null,null,null,null,null,null,null,null,null,null,null,null,null,null,null,null,null,null,1,null,null,null,null,null,null,null,null,null,1,null,null,1,1]
[1739,"Dr. Casey's / Betterbones Inc. *","Y",null,null,null,null,null,1,null,null,null,null,null,null,null,null,null,null,null,null,null,1,null,null,null,null,null,null,1,null,null,null,null,null,null,null,null,null,null,null,null,null,null,null,1,1]
[6324,"Dr. Elsey's Quality Cat Products","Y",null,null,null,null,null,null,null,null,null,null,null,null,null,null,null,null,null,null,1,null,null,null,null,null,1,null,null,null,null,null,null,null,null,null,null,null,null,null,null,1,null,null,null,null,null,null,null,1]
[1548,"Dr. Marty Pets","Y",null,1,null,null,null,null,null,null,null,null,null,null,null,null,null,null,null,null,1,1,null,null,null,null,1,null,1,null,null,null,null,null,null,null,null,null,null,null,null,null,null,null,null,1]
[4724,"Drag Dog LLC","Y",null,null,null,null,null,null,null,null,null,null,null,null,null,null,null,null,null,null,null,1,null,null,null,null,null,null,null,null,1]
[7664,"Dragon Engraving Machines","Y",null,null,null,null,null,null,null,null,null,null,null,1,1,null,null,null,null,null,null,1,null,null,1,1,null,null,null,null,null,null,null,null,null,null,null,null,null,null,null,null,null,null,null,null,null,null,null,null,null,null,null,0,0]
[5862,"Draw it Out Natural Dog Care Solutions *","Y",null,null,null,null,1,null,null,null,null,null,null,null,null,null,null,null,null,1,null,1,null,null,null,null,null,1,null,null,null,null,null,null,null,null,null,null,null,null,null,null,null,null,null,1,null,null,1]
[5060,"DREAM SOAPS *","Y",null,null,null,null,null,null,null,null,null,null,null,null,null,null,null,null,null,null,null,1,null,null,null,null,null,null,null,null,null,null,null,null,null,null,null,null,null,null,null,null,null,null,null,null,null,null,1]
[5225,"DrTim's Aquatics","Y",null,null,null,null,null,null,null,null,null,null,null,null,null,1,1]
["MR206","Duan & Duan *","Y",null,null,null,null,null,null,null,null,null,null,null,1]
[1458,"Due North / Minus Forty QBD","Y",null,1,null,null,null,null,null,null,null,0,0,1,0,0,0,0,0,0,0,0,0,0,0,0,0,0,0,0,0,0,0,0,0,0,0,0,0,0,0,0,0,0,null,0,0,0,0,0,0,0,0]
[5776,"duit","Y",null,null,null,null,null,null,null,1,null,null,null,null,null,null,null,null,null,null,1,1,null,null,null,null,null,1,null,null,null,null,null,null,1,null,1,null,null,1,null,null,1,null,null,null,null,null,1,null,null,null,null,1]
[4177,"Durkha Dog Chew","Y",null,1,null,null,null,null,null,null,null,null,null,null,null,null,null,null,null,null,1,1,null,null,null,null,null,null,1,null,1,null,null,null,null,null,1,null,null,null,null,null,null,null,null,null,null,null,null,null,null,null,null,null,0]
[5848,"Durvet Inc.","Y",null,null,null,null,null,null,null,null,null,null,null,null,null,null,null,1,null,1,1,1,null,null,null,null,null,null,null,null,null,null,null,null,null,null,null,null,null,null,null,null,null,null,null,1,1,null,1,null,1,null,null,null,0]
[1238,"duz dryer","Y",null,null,null,null,null,1,null,null,null,null,null,null,null,null,null,null,null,null,null,1,null,null,null,null,null,null,null,null,null,null,null,null,null,null,null,null,null,null,null,null,null,null,null,null,null,1]
[2046,"E Labels, Inc. *","Y",null,1,null,null,null,null,null,null,null,null,null,1]
[4560,"E&S Pets","Y",null,null,1,null,null,null,null,null,null,0,0,0,1,0,0,null,null,null,null,null,0,0,0,0,0,0,0,0,0,0,0,0,0,0,0,0,0,0,0,0,0,0,null,0,0,0]
[7770,"Eagle Treats - Natural As It's Meant To Be *","Y",null,null,null,null,null,null,null,null,null,null,null,null,null,null,null,null,null,null,null,1,null,null,null,null,null,null,1]
[3839,"Earth Animal","Y",null,1,null,null,null,null,null,null,null,null,null,null,null,null,null,null,null,null,1,1,null,null,1,null,1,null,1,null,null,null,null,null,null,null,null,null,null,null,null,null,null,null,1,1,1,null,1,null,0,0,0]
[3778,"Earth Buddy Pet","Y",null,1,null,null,null,null,null,null,null,null,null,null,null,null,null,null,null,null,1,1,null,null,null,null,null,null,1,null,null,null,null,null,null,null,null,null,null,null,null,null,null,null,1,1]
[2058,"Earth Rated","Y",null,1,null,null,null,null,null,null,null,0,0,null,0,0,0,0,0,0,0,1,0,0,0,0,0,0,0,0,0,0,0,0,0,0,0,0,0,0,0,0,0,0,null,0,0,0,0,null,1,0,1]
[5457,"earthbath®","Y",null,null,null,null,null,null,null,null,null,0,0,null,0,0,0,0,0,0,1,1,0,0,0,0,0,0,0,0,0,0,0,0,0,0,0,0,0,0,0,0,0,0,null,0,0,0,1,0,1,0,0]
[5249,"Elanco Animal Health","Y",null,null,null,null,null,null,null,null,null,null,null,null,null,null,null,null,null,null,1,1,null,null,null,null,null,null,null,null,null,null,null,null,null,null,null,null,null,null,null,null,null,null,null,1]
[6262,"Elastitag - Bedford Industries","Y",null,null,null,null,null,null,null,null,null,null,null,1]
[6774,"Ellie Girl's Rainbow Bridge Pet Loss Deck *","Y",null,null,null,null,null,null,null,null,1,null,null,null,1]
[6662,"Emirates Printing Press","Y",null,null,null,null,null,null,null,null,null,null,null,1]
[1741,"Envirogroom LLC","Y",null,null,null,null,null,1,null,null,null,null,null,1,null,null,null,null,null,1,1,1,null,null,null,null,null,null,null,null,null,null,null,null,null,null,null,null,null,null,null,null,null,null,null,1,1,null,1,1]
[3777,"ePac Flexible Packaging *","Y",null,1,null,null,null,null,null,null,null,null,null,1]
[1326,"EQyss Grooming Products","Y",null,null,null,null,null,1,null,null,null,null,null,1,null,null,null,null,null,1,1,1,null,null,null,null,null,null,null,null,null,null,null,null,null,null,null,null,null,null,null,null,null,null,null,1,1,null,1]
[4060,"Ernie Els Pet Products","Y",null,1,null,null,null,null,null,null,null,null,null,null,null,null,null,null,null,null,1,1,null,null,null,null,null,null,1]
[5361,"eShipping","Y",null,null,null,null,null,null,null,null,null,null,null,1]
[3561,"eTailPet","Y",null,1,null,null,null,null,null,null,null,null,null,1]
[5039,"Ethical Products/Fieldcrest Farms","Y",null,null,null,null,null,null,null,null,null,0,0,null,0,null,0,null,null,0,1,1,0,1,null,0,0,1,1,null,1,0,null,null,0,null,1,0,1,1,0,1,1,0,null,0,0,1,0,0,0,null,1,0]
[7279,"ETICAT *","Y",null,null,null,null,null,null,null,null,1,null,null,null,null,null,null,null,null,null,1,null,null,null,null,null,null,null,null,null,null,null,null,null,null,null,null,null,null,null,null,1]
[7249,"European Home Designs \"AKA\" Bow-Wow Pet","Y",null,null,null,null,null,null,null,null,null,0,0,null,0,0,0,0,null,0,1,1,0,1,1,0,0,0,0,0,1,0,0,1,1,0,1,0,1,1,null,0,0,0,null,0,0,null,0,0,0,1,null,0]
[3508,"Evangers Dog and Cat Food Co.","Y",null,1,null,null,null,null,null,null,null,0,0,null,0,0,0,0,1,0,1,1,0,0,0,0,1,0,1,0,0,0,0,0,0,0,0,0,0,0,0,0,0,0,null,0,0,0,0,0,0,0,0]
[4074,"Eversparkles Pte Ltd *","Y",null,1,null,null,null,null,null,null,null,null,null,null,null,null,null,null,null,null,1,1,null,null,null,null,1,null,1]
[2146,"Evolution Dog Wash","Y",null,1,null,null,null,null,null,null,null,null,null,1,null,null,null,null,null,null,null,1,null,null,null,null,null,null,null,null,null,null,null,null,null,null,null,null,null,null,null,null,null,null,null,null,null,1]
[1040,"Evolution Medical Devices *","Y",null,null,null,null,null,1,null,null,null,null,null,null,null,null,null,null,null,null,null,1,null,null,null,null,null,null,null,null,null,null,null,null,null,null,null,null,null,null,null,null,null,null,null,1]
[1233,"Evolution Shears","Y",null,null,null,null,null,1,null,null,null,null,null,1,null,null,null,null,null,null,1,1,null,null,null,null,null,null,null,null,null,null,null,null,null,null,null,null,null,null,null,null,null,null,null,null,null,1]
[5269,"EzyDog","Y",null,null,null,null,null,null,null,null,null,null,null,null,null,null,null,null,null,null,null,1,null,1,1,null,null,1,null,null,1,null,null,null,null,null,null,null,null,1,null,null,null,null,null,null,null,null,null,null,null,null,1]
[6257,"fab dog, Inc.","Y",null,null,null,null,null,null,null,null,null,null,null,null,null,null,null,null,null,null,1,1,null,1,null,null,null,null,null,null,1]
[4967,"Fan Creations","Y",null,null,1,null,null,null,null,null,null,null,null,null,1]
[4574,"FARBERWARE PETS *","Y",null,null,1,null,null,null,null,null,null,null,null,null,null,null,null,null,null,null,1,1,null,null,1,null,null,1,null,null,1,null,null,1,1,null,1,null,null,null,null,null,1,null,null,null,null,1,null,null,1,1,1]
[3339,"Farmina Pet Food","Y",null,1,null,null,null,null,null,null,null,null,null,null,null,null,null,null,null,null,1,1,null,null,null,null,1]
[5161,"Fear Free, LLC *","Y",null,null,null,null,null,null,null,null,null,null,null,1,1]
[1241,"Feel the Love","Y",null,null,null,null,null,1,null,null,null,null,null,null,1,null,null,null,null,null,null,1,null,null,null,null,null,null,null,null,null,null,null,null,null,null,null,null,null,null,null,null,null,null,null,1]
["MR112","Fera Pet Organics","Y",null,null,null,null,null,null,null,null,null,null,null,null,null,null,null,null,null,null,1,1,null,null,null,null,null,null,1,null,null,null,null,null,null,null,null,null,null,null,null,null,null,null,null,1]
[6230,"Fetch For Pets","Y",null,null,null,null,null,null,null,null,null,0,0,null,0,null,null,0,1,0,1,1,0,1,1,0,0,0,1,0,1,0,0,0,0,0,1,0,0,0,0,0,1,1,1,1,0,1,1,1,1,1,1]
[1682,"Fetchfind","Y",null,1,null,null,null,null,null,null,null,null,null,1]
[6062,"FiberCore, LLC","Y",null,null,null,null,null,null,null,null,null,0,0,null,0,0,0,1,1,0,null,null,0,null,null,null,null,null,null,null,null,null,null,null,null,null,null,null,null,null,null,null,null,null,null,null,0,0,0,0,0,0,0]
[3961,"Fido Inc.","Y",null,1,null,null,null,null,null,null,null,0,0,null,0,0,0,0,0,0,null,1,0,0,0,0,0,0,1,0,1,0,0,0,0,0,0,0,0,0,0,0,0,0,null,0,0,0,0,0,0,0,0]
[1884,"Fidobiotics","Y",null,1,null,null,null,null,null,null,null,0,0,null,0,0,0,0,0,0,1,1,0,0,0,0,0,0,0,0,0,0,0,0,0,0,0,0,0,0,0,0,0,0,1,1,0,0,0,0,0,0,0]
[4853,"FieldStack","Y",null,null,null,null,null,null,null,null,null,null,null,1]
[4976,"FIKAGO","Y",null,null,1,null,null,null,null,null,null,null,null,null,null,null,null,null,null,null,1,1,null,null,null,null,null,null,null,null,null,null,null,null,null,null,1,null,1]
[1380,"FirstMate Pet Foods","Y",null,1,null,null,null,null,null,null,null,null,null,null,null,null,null,null,null,null,1,1,null,null,null,null,1,null,1]
[5627,"Fish Mart, Inc.","Y",null,null,null,null,null,null,null,null,null,null,1,null,null,1,1,1,1,null,null,null,null,null,null,null,null,null,null,null,null,null,null,null,null,null,null,null,null,null,null,null,null,null,null,null,null,null,null,null,null,null,null,null,0]
[5369,"Fluff & Tuff","Y",null,null,null,null,null,null,null,null,null,null,null,null,null,null,null,null,null,null,null,1,null,null,null,null,null,null,null,null,1]
[3507,"foodguys *","Y",null,1,null,null,null,null,null,null,null,null,null,1,null,null,null,null,null,null,1,1,null,null,null,null,1,null,1]
[3464,"Foodynamics Freeze Dried Private Label *","Y",null,1,null,null,null,null,null,null,null,null,null,1,null,null,null,null,null,null,1,1,null,null,null,null,1,null,1,null,null,null,null,null,null,null,null,null,null,null,null,null,null,null,null,1]
[5769,"Forager's Feed","Y",null,null,null,null,1,null,null,null,null,null,null,null,null,null,null,1,null,null,null,1,null,null,null,null,null,null,1,null,null,null,null,null,null,null,null,null,null,null,null,null,null,null,null,1]
[7774,"Foreman Products *","Y",null,null,null,null,null,null,null,null,1,null,null,null,null,null,null,null,null,null,null,1,null,null,null,null,null,1,null,null,null,null,null,null,null,null,1]
[2039,"Forever Stainless Steel","Y",null,null,null,null,null,1,null,null,null,null,null,1,null,null,null,null,null,null,null,1,null,null,null,null,null,null,null,null,null,null,null,null,null,null,null,null,null,null,null,null,null,null,null,null,null,1]
[4768,"foufouBRANDS","Y",null,null,1,null,null,null,null,null,null,null,null,null,null,null,null,null,null,null,null,1,null,1,null,null,null,null,null,null,1]
[5627,"Four Paws Products Ltd.","Y",null,null,null,null,null,null,null,null,null,null,null,null,null,null,null,null,null,null,1,1,null,null,1,null,null,null,1,null,null,null,null,1,null,1,null,1,1,null,null,null,null,null,null,1,1,1,1,1,1,1,1,null,0]
[3125,"Frankly Pet LLC","Y",null,1,null,null,null,null,null,null,null,null,null,null,null,null,null,null,null,null,null,1,null,null,null,null,null,null,1]
[1137,"Franpos Inc.","Y",null,null,null,null,null,1,null,null,null,null,null,1]
[5071,"Fred & Friends","Y",null,null,1,null,null,null,null,null,null,null,null,null,1,null,null,null,null,null,1,1,null,null,null,null,null,1,null,null,null,null,null,null,null,null,null,null,null,null,null,null,null,null,null,null,null,null,null,1,null,null,1]
[5270,"Fresh Wave by OMI Industries *","Y",null,null,1,null,null,null,null,null,null,null,null,null,null,null,null,null,null,null,1,1,null,null,null,null,null,null,null,null,null,null,null,null,null,null,null,null,null,null,null,null,null,null,null,null,null,null,1,1]
[3404,"FRESH-LOCK BY PRESTO PRODUCTS","Y",null,1,null,null,null,null,null,null,null,null,null,1,null,null,null,null,null,null,1,1,null,null,null,null,1,null,1]
[5417,"Fritz Aquatics","Y",null,null,null,1,null,null,null,null,null,null,null,null,null,1]
[3439,"Fromm Family Foods","Y",null,1,null,null,null,null,null,null,null,0,0,null,0,0,0,0,0,0,1,1,0,0,0,0,1,0,1,0,0,0,0,0,0,0,0,0,0,0,0,0,0,0,null,0,0,0,0,0,0,0,0]
[7171,"Fujian Noble Pet Products Co., Ltd.","Y",null,null,null,null,null,null,null,null,null,null,null,null,null,null,null,null,null,null,1,1,null,1,1,null,null,null,null,null,null,null,null,null,null,null,null,null,1]
[7868,"Fun Pet Group LLC *","Y",null,null,null,null,null,null,null,null,null,null,null,null,null,null,null,null,null,null,null,1,null,null,null,null,null,null,1,null,1]
[6676,"Furever Bed *","Y",null,null,null,null,null,null,null,null,1,null,null,null,null,null,null,null,null,null,1,1,null,null,null,null,null,null,null,null,null,null,null,null,null,null,1]
[6376,"Furlosophy Petcare *","Y",null,null,null,null,null,null,null,null,1,null,null,null,null,null,null,null,null,null,null,1,null,null,null,null,null,null,null,null,null,null,null,null,null,null,null,null,null,null,null,null,null,null,null,null,null,null,1,1]
[2331,"FurMe","Y",null,null,null,null,null,1,null,null,null,null,null,null,null,null,null,null,null,null,1,1,null,null,null,null,null,null,null,null,null,null,null,null,null,null,null,null,null,null,null,null,null,null,null,null,null,1]
[5374,"Furry Tag *","Y",null,null,null,null,null,null,null,null,null,null,null,null,null,null,null,null,null,null,1,1,null,null,null,1,null,null,null,null,null,null,null,null,null,null,null,null,null,null,null,null,null,null,null,null,null,null,null,null,null,null,null,1,1]
[1646,"FURRY WONDER *","Y",null,1,null,null,null,null,null,null,null,null,null,null,null,null,null,null,null,null,1,1,null,null,null,null,1,null,1]
[1231,"Furzone","Y",null,null,null,null,null,1,null,null,null,null,null,1,null,null,null,null,null,null,1,1,null,null,null,null,null,null,null,null,null,null,null,null,null,null,null,null,null,null,null,null,null,null,null,null,null,1]
[6424,"FuzzYard North America","Y",null,null,null,null,null,null,null,null,null,null,null,null,null,null,null,null,null,null,1,1,null,1,1,null,null,1,null,null,1,null,null,null,null,null,1,null,null,null,null,null,null,null,null,null,null,null,1,null,null,null,1]
[6411,"G Mason Group","Y",null,null,null,null,null,null,null,null,null,null,null,null,null,null,null,null,null,null,1,1,null,1,1,null,1,1,1,null,1,null,null,null,null,null,1,null,1,null,null,null,null,1,null,null,null,1,1,null,null,null,1]
[7163,"Gaia Enterprises, Inc.","Y",null,null,null,null,null,null,null,null,null,null,null,null,1]
[3569,"Gaines Pet Treats LLC","Y",null,1,null,null,null,null,null,null,null,null,null,null,null,null,null,null,null,null,null,1,null,null,null,null,null,null,1]
[5576,"GAMBOL (THAILAND) CO.,LTD *","Y",null,null,null,null,null,null,null,1,null,null,null,1,null,null,null,null,null,null,1,1,null,null,null,null,1,null,1]
[1430,"Geib Buttercut Handmade Shears","Y",null,null,null,null,null,1,null,null,null,0,0,1,0,0,0,0,0,0,0,1,0,0,0,0,0,0,0,0,0,0,0,0,0,0,0,0,0,0,0,0,0,0,null,0,0,1,0,0,0,0,0,0,0]
[7568,"General Bottle | Creative *","Y",null,null,null,null,null,null,null,null,null,null,null,1,null,1,1,1,1,1,1,1]
[4962,"Genieco, Inc. *","Y",null,null,1,null,null,null,null,null,null,null,null,null,1,null,null,null,null,null,1,1,null,null,null,null,null,null,null,null,null,null,null,null,null,null,null,null,null,null,null,null,null,null,null,null,null,null,null,1]
[1249,"Genie's Therapeutics","Y",null,1,null,null,null,null,null,null,null,null,null,null,null,null,null,null,null,null,null,1,null,null,null,null,null,null,null,null,null,null,null,null,null,null,null,null,null,null,null,null,null,null,1,1]
[7411,"Gentle Giants Products","Y",null,null,null,null,null,null,null,null,null,null,null,null,null,null,null,null,null,null,1,1,null,null,null,null,1]
[6476,"Get Joy Food *","Y",null,null,null,null,null,null,null,null,1,null,null,null,null,null,null,null,null,null,null,1,null,null,null,null,1,null,1]
[5957,"GF Pet","Y",null,null,null,null,null,null,null,null,null,null,null,null,null,null,null,null,null,null,null,1,null,1,1,null,null,1,null,null,null,null,null,null,null,null,null,null,null,1]
[7219,"GIFTABLE WORLD, INC","Y",null,null,null,null,null,null,null,null,null,null,null,null,null,null,null,null,null,null,null,1,null,null,null,null,null,null,null,null,1]
[1030,"Gingr","Y",null,null,null,null,null,1,null,null,null,null,null,1]
[1246,"GivePet","Y",null,1,null,null,null,null,null,null,null,null,null,null,null,null,null,null,null,null,null,1,null,null,null,null,null,null,1]
[2167,"GlobalONE Pet","Y",null,1,null,null,null,null,null,null,null,null,null,null,null,null,null,null,null,null,null,1,null,null,null,null,null,null,1,null,null,null,null,null,null,null,null,null,null,null,null,null,null,null,null,null,null,null,null,null,null,null,null,null,0]
[6363,"Glo-Marr Pet Products, Inc.","Y",null,null,null,null,null,null,null,null,null,null,null,1,null,null,null,null,null,null,1,1,null,null,null,null,null,null,null,null,null,null,null,null,null,null,null,null,null,null,null,null,null,null,null,1,1,null,1,1]
[4657,"Gold Paw","Y",null,null,null,null,null,null,null,null,null,0,0,null,0,0,0,0,0,0,null,1,0,1,1,0,0,0,0,0,0,0,0,0,0,0,0,0,0,0,0,0,0,0,null,0,0,0,0,0,0,0,0,0]
[4378,"Goli Design LLC","Y",null,1,null,null,null,null,null,null,null,null,null,null,null,null,null,null,null,null,1,1,null,null,1,1,null,null,null,null,1]
[6857,"Goo- eez","Y",null,null,null,null,null,null,null,null,null,null,null,null,null,null,null,null,null,null,1,1,null,1,null,null,null,1,null,null,1,null,null,null,null,null,1,null,1,1]
[4465,"Gooby","Y",null,null,1,null,null,null,null,null,null,null,null,null,null,null,null,null,null,null,null,1,null,1,1]
[5569,"Good L Corp","Y",null,null,null,null,null,null,null,null,null,0,0,1,null,0,0,0,0,0,0,null,0,0,0,0,0,0,0,0,0,0,0,0,0,0,0,0,null,0,0,0,0,0,null,0,0,0,0,0,0,0,0,null,0]
[3564,"Goodness Gracious *","Y",null,1,null,null,null,null,null,null,null,null,null,null,null,null,null,null,null,null,1,1,null,null,null,null,1,null,1]
[5265,"Goughnuts Inc.","Y",null,null,null,null,null,null,null,null,null,null,null,null,null,null,null,null,null,null,null,1,null,null,null,null,null,null,null,null,1]
[6149,"Gralen","Y",null,null,null,null,null,null,null,null,null,null,1,null,null,null,null,null,null,1,1,1,null,null,1,null,null,null,1,null,1,null,1,1,1,null,null,null,null,null,null,1,1,null,null,1,null,1,null,1,null,null,1]
[4827,"Grandma Lucy's","Y",null,null,null,null,null,null,null,null,null,null,null,null,null,null,null,null,null,null,1,1,null,null,null,null,1,null,1]
[1781,"Grandma Mae's Country Naturals","Y",null,1,null,null,null,null,null,null,null,0,0,null,0,0,0,0,0,0,1,1,0,0,0,0,1,0,1,0,0,0,0,0,0,0,0,0,0,0,0,0,0,0,null,0,0,0,0,0,0,0,0,null,0]
[3604,"Great Lakes Pet Treats","Y",null,1,null,null,null,null,null,null,null,null,null,null,null,null,null,null,null,null,null,1,null,null,null,null,null,null,1,1]
[3704,"Green Coast Pet","Y",null,1,null,null,null,null,null,null,null,null,null,null,null,null,null,null,null,null,1,1,null,null,null,null,null,null,1,null,null,null,null,null,null,null,null,null,null,null,null,null,null,null,1,1]
[6668,"Green Gruff","Y",null,null,null,null,null,null,null,null,null,null,null,null,null,null,null,null,null,null,null,1,null,null,null,null,null,null,1,null,null,null,null,null,null,null,null,null,null,null,null,null,null,null,1,1]
[3870,"Green Juju","Y",null,1,null,null,null,null,null,null,null,null,null,null,null,null,null,null,null,null,null,1,null,null,null,null,null,null,null,null,null,null,null,null,null,null,null,null,null,null,null,null,null,null,null,1]
[6578,"GreenLine Pet Supply *","Y",null,null,null,null,null,null,null,null,1,null,null,null,null,null,null,null,null,null,null,1,null,null,1,null,null,null,null,null,null,null,null,null,null,null,null,null,null,null,null,null,null,null,null,null,null,null,null,null,null,null,1]
[1136,"Groomer Supply House / Sharpies Sharpening","Y",null,null,null,null,null,1,null,null,null,null,null,1,null,null,null,null,null,null,1,1,null,null,null,null,null,null,null,null,null,null,null,null,null,null,null,null,null,null,null,null,null,null,null,null,null,1]
[1540,"Groomer's Goop Division of Critzas Industries, Inc","Y",null,null,null,null,null,1,null,null,null,0,0,1,0,0,0,0,0,1,1,1,0,0,0,0,0,0,0,0,0,0,0,0,0,0,0,0,null,0,0,0,0,0,null,0,0,null,1,1,1,0,0]
[1325,"Groomers Helper","Y",null,null,null,null,null,1,null,null,null,null,null,1,null,null,null,null,null,null,1,1,null,null,1,null,null,null,1,null,null,null,null,null,null,null,null,null,null,null,null,null,null,null,1,1,null,1,1]
[6957,"Groovies","Y",null,null,null,null,null,null,null,null,null,null,null,null,null,null,null,null,null,null,1,1,null,null,null,null,null,null,1,null,null,null,null,null,null,null,null,null,null,null,null,null,null,1]
[5864,"Grubbly Farms","Y",null,null,null,null,1,null,null,null,null,null,null,null,null,null,null,1,null,null,null,1,null,null,null,null,null,null,1]
[4363,"Guangdong Prime Pet Co., Limited. *","Y",null,1,null,null,null,null,null,null,null,null,null,1,null,null,null,null,null,null,1,1,null,null,null,null,1,null,1,null,null,null,null,null,null,null,null,null,null,null,null,null,null,null,1,1]
[5574,"GUANGZHOU BAIHUA CO.，LTD","Y",null,null,null,null,null,null,null,1,null,null,null,1,null,null,null,null,null,null,1,1,null,null,null,null,null,null,null,null,null,null,null,null,null,null,null,null,null,null,null,null,null,1,null,1,null,1,null,null,1]
[5677,"Guangzhou Haizhige Technology Co., Ltd. *","Y",null,null,null,null,null,null,null,1,null,null,null,null,null,null,null,null,null,null,1,1,null,1,1,null,null,1,null,null,1,null,null,1,1,null,1,null,null,null,null,null,1,null,null,null,null,1,null,null,null,null,1,1]
[2050,"Gunni’s","Y",null,1,null,null,null,null,null,null,null,null,null,null,null,null,null,null,null,null,1,1,null,null,null,null,null,null,1]
[7769,"GURU Pet Company","Y",null,null,null,null,null,null,null,null,null,null,null,null,null,null,null,null,null,null,null,1,null,null,null,null,null,null,null,null,1]
[4831,"H&C Animal Health","Y",null,null,null,null,null,null,null,null,null,null,null,null,null,null,null,null,null,null,1,1,null,null,1,null,null,null,1,null,null,null,null,null,null,null,null,null,null,null,null,null,null,null,null,1,null,null,null,null,1]
[3613,"Habco Manufacturing Inc.","Y",null,1,null,null,null,null,null,null,null,null,null,1]
[4225,"Hagen","Y",null,null,null,null,null,null,null,null,null,0,0,null,0,1,1,1,1,0,1,1,0,1,1,1,null,1,1,null,1,0,1,1,1,1,1,0,1,1,null,1,1,1,null,0,1,1,1,1,1,1,1,null,0]
[7111,"Hai Premium Treats Co., Ltd.","Y",null,null,null,null,null,null,null,null,null,null,null,1,null,null,null,null,null,null,null,1,null,null,null,null,null,null,1,1,1]
[5449,"Halo, Purely for Pets","Y",null,null,null,null,null,null,null,null,null,null,null,null,null,null,null,null,null,null,1,1,null,null,null,null,1,null,1]
[2231,"HandsOn","Y",null,null,null,null,null,1,null,null,null,null,null,null,null,null,null,null,null,1,null,1,null,null,null,null,null,null,null,null,null,null,null,null,null,null,null,null,null,null,null,null,null,null,null,null,null,1]
[7368,"Hangzhou Hylander technology Co. Ltd *","Y",null,null,null,null,null,null,null,null,null,null,null,1,null,null,null,null,null,null,null,1,null,1]
[5768,"Hangzhou Quanshi Pet Products Co., Ltd. *","Y",null,null,null,null,null,null,null,null,null,null,null,null,null,null,null,null,null,null,1,1,null,1,1,null,null,1,null,null,1,null,null,1,1,null,1,null,1,null,null,null,null,null,null,null,null,1,null,null,null,1,1]
[3410,"Happy Go Healthy, Ltd.","Y",null,1,null,null,null,null,null,null,null,null,null,null,null,null,null,null,null,null,null,1,null,null,null,null,null,null,null,null,null,null,null,null,null,null,null,null,null,null,null,null,null,null,null,1]
[5406,"Happy Habitats","Y",null,null,null,1,null,null,null,null,null,null,null,null,null,null,null,null,1]
[5763,"Happy Hen","Y",null,null,null,null,1,null,null,null,null,null,null,null,null,null,null,1]
[3503,"Happy Howie's, Inc.","Y",null,1,null,null,null,null,null,null,null,null,null,null,null,null,null,null,null,null,null,1,null,null,null,null,null,1,1]
[7710,"HAPPY LIFE (KN FLAX)","Y",null,null,null,null,null,null,null,null,null,null,null,null,null,null,null,null,null,null,null,1,null,null,1,null,null,null,null,null,null,null,null,null,null,null,null,null,null,null,null,null,null,null,null,null,1]
[7719,"Happy Tails","Y",null,null,null,null,null,null,null,null,null,null,null,null,null,null,null,null,null,null,1,1,null,null,null,null,null,null,1,null,1,null,null,null,null,null,1,null,null,null,null,null,null,null,null,null,null,null,1]
[5031,"Hartz Mountain Corporation","Y",null,null,null,null,null,null,null,null,null,null,null,null,null,null,null,null,null,null,1,1,null,null,1,null,null,null,1,null,1,null,null,null,null,null,null,null,null,null,null,null,1,1,null,1,1,1,1,null,null,1,1]
[5162,"Haute Diggity Dog","Y",null,null,1,null,null,null,null,null,null,null,null,null,null,null,null,null,null,null,null,1,null,null,null,null,null,null,null,null,1]
[6611,"Health Extension Pet Care / SnugArooz","Y",null,null,null,null,null,null,null,null,null,null,null,null,null,null,null,null,null,null,1,1,null,null,null,null,1,null,1,null,null,null,null,null,null,null,null,null,null,null,null,null,null,null,null,1,1,null,1,1,null,null,null,0]
[1438,"Health Technology Professional Products, Inc.","Y",null,null,null,null,null,1,null,null,null,null,null,1,null,null,null,null,null,null,1,1,null,null,null,null,null,null,null,null,null,null,null,null,null,null,null,null,null,null,null,null,null,null,null,null,null,1,1,1,null,null,1]
[3858,"Healthy Paws Herbals","Y",null,1,null,null,null,null,null,null,null,null,null,null,null,null,null,null,null,null,1,1,null,null,null,null,null,null,null,null,null,null,null,null,null,null,null,null,null,null,null,null,null,null,1,1,null,null,null,null,null,null,null,0]
[5639,"Healthy Pet","Y",null,null,null,null,null,null,null,null,null,0,0,null,0,0,0,null,1,0,1,1,0,0,0,0,0,0,0,0,0,0,0,0,0,0,0,0,0,0,0,1,null,0,null,0,0,0,0,0,0,null,0]
[6675,"Healthy Planet Products *","Y",null,null,null,null,null,null,null,null,1,null,null,null,null,null,null,null,null,null,1,1,null,null,null,null,null,null,null,null,null,null,null,null,null,null,null,null,null,null,null,null,null,null,null,null,null,null,null,1,null,null,1]
[2247,"Healthybud *","Y",null,1,null,null,null,null,null,null,null,null,null,null,null,null,null,null,null,null,null,1,null,null,null,null,1,null,1,null,null,null,null,null,null,null,null,null,null,null,null,null,null,null,null,1]
[7815,"Heather's Heroes","Y",null,null,null,null,null,null,null,null,null,null,null,null,null,null,null,null,null,null,null,1,null,null,1]
[3321,"Heavenly Hounds","Y",null,1,null,null,null,null,null,null,null,null,null,null,null,null,null,null,null,null,null,1,null,null,null,null,null,null,null,null,null,null,null,null,null,null,null,null,null,null,null,null,null,null,null,1]
[1533,"Hempz PETZ","Y",null,null,null,null,null,1,null,null,null,null,null,null,null,null,null,null,null,null,null,1,null,null,null,null,null,null,null,null,null,null,null,null,null,null,null,null,null,null,null,null,null,null,null,1,null,null,1]
[1952,"Herbsmith & The Simple Food Project","Y",null,1,null,null,null,null,null,null,null,null,null,null,null,null,null,null,null,null,1,1,null,null,null,null,null,null,1,null,null,null,null,null,null,null,null,null,null,null,null,null,null,null,null,1]
[4479,"Herz","Y",null,null,1,null,null,null,null,null,null,null,null,null,null,null,null,null,null,null,null,1,null,null,null,null,null,null,1]
[4065,"HICC Pet *","Y",null,1,null,null,null,null,null,null,null,null,null,null,null,null,null,null,null,null,1,1,null,null,null,null,null,null,null,null,null,null,null,null,null,null,null,null,null,null,null,null,null,1,null,1,null,null,null,null,1]
[4539,"Higgins/Versele-Laga","Y",null,null,null,null,null,null,null,null,null,0,0,null,0,0,0,1,1,0,0,0,0,0,0,0,0,0,0,0,0,0,0,0,0,0,0,0,0,0,0,0,0,0,null,0,0,0,0,0,0,0,0]
[4625,"Hikari Sales USA, Inc.","Y",null,null,null,null,null,null,null,null,null,0,0,null,0,1,1,0,0,0,0,0,0,0,0,0,0,0,0,0,0,0,0,0,0,0,0,0,0,0,0,0,0,0,null,0,0,0,0,0,0,0,0,0,0]
[7430,"Hill's Pet Nutrition","Y",null,null,null,null,null,null,null,null,null,null,null,null,null,null,null,null,null,null,1,1,null,null,null,null,1,null,1]
[1780,"Hillside Farms","Y",null,1,null,null,null,null,null,null,null,0,0,1,0,0,0,0,0,0,0,1,0,0,0,0,0,0,1,0,0,0,0,0,0,0,0,0,0,0,0,0,0,0,null,0,0,0,0,0,0,0,0]
[2070,"Hiperbaric - High Pressure Technologies","Y",null,1,null,null,null,null,null,null,null,null,null,1,null,null,null,null,null,null,1,1,null,null,null,null,1]
[7625,"Hippo Sak / Crown Poly, Inc,","Y",null,null,null,null,null,null,null,null,null,null,null,null,null,null,null,null,null,null,1,1,null,null,null,null,null,null,null,null,null,null,null,null,null,null,null,null,null,null,null,null,1,null,null,null,null,null,null,null,null,null,1]
[1974,"Home Range Pet Treats","Y",null,1,null,null,null,null,null,null,null,null,null,null,null,null,null,null,null,null,null,1,null,null,null,null,null,null,1]
[5764,"HomeoPet","Y",null,null,null,null,null,null,null,null,null,0,0,null,0,0,0,1,1,1,1,1,0,0,0,0,0,0,0,0,0,0,0,0,0,0,0,0,0,0,0,0,0,1,null,1,0,0,0,0,0,0,0,0,0]
[1036,"Homerun Technology (Guangzhou) Co., Ltd","Y",null,null,null,null,null,1,null,null,null,null,null,null,null,null,null,null,null,null,1,1,null,null,null,null,null,1,null,null,null,null,null,null,null,null,null,null,null,null,null,null,null,null,null,null,null,1,null,null,null,null,null,1]
[6480,"Homescape Pets *","Y",null,null,null,null,null,null,null,null,1,null,null,null,null,null,null,null,null,null,1,1,null,null,null,null,null,null,1,null,null,null,null,null,null,null,null,null,null,null,null,null,null,null,1,1]
[5549,"Honest Paws LLC","Y",null,null,null,null,null,null,null,null,null,null,null,null,null,null,null,null,null,null,1,1,null,null,null,null,null,null,1,null,null,null,null,null,null,null,null,null,null,null,null,null,null,null,1,1,null,1,1]
[2150,"Honey I'm Home","Y",null,1,null,null,null,null,null,null,null,null,null,null,null,null,null,null,null,null,null,1,null,null,null,null,null,null,1]
[4265,"HoneyCure *","Y",null,1,null,null,null,null,null,null,null,null,null,null,null,null,null,null,null,1,1,1,null,null,null,null,null,null,null,null,null,null,null,null,null,null,null,null,null,null,null,null,null,null,null,1]
[5863,"Hoovers Hatchery","Y",null,null,null,null,1,null,null,null,null,null,null,null,null,null,null,1]
[3121,"Houndscoop","Y",null,1,null,null,null,null,null,null,null,null,null,null,null,null,null,null,null,null,null,1,null,null,null,null,null,null,null,null,null,null,null,null,null,null,null,null,null,null,null,null,null,null,null,null,null,null,null,null,null,null,1]
[2132,"HOUNDSLY","Y",null,null,null,null,null,1,null,null,null,null,null,null,null,null,null,null,null,null,null,1,null,null,1,null,null,null,null,null,null,null,null,null,null,null,null,null,null,null,null,null,null,null,null,1,null,1,1,1]
[7039,"HPZ Pet Supplies, Inc.","Y",null,null,null,null,null,null,null,null,null,null,null,null,null,null,null,null,null,null,1,1,null,null,null,null,null,null,null,null,null,null,null,null,null,null,null,null,1,null,null,null,null,null,null,null,null,null,null,null,null,null,null,0,0]
[4157,"ht-pet","Y",null,null,null,null,null,null,null,null,null,null,null,null,null,null,null,null,null,null,null,1,null,null,null,null,null,null,1,null,1,null,null,null,null,null,null,null,null,null,null,null,null,null,null,null,null,1,null,1,null,null,1]
[6463,"Hugfun International","Y",null,null,null,null,null,null,null,null,null,null,null,1,null,null,null,null,null,null,1,1,null,null,null,null,null,null,null,null,1]
[3919,"HuggleHounds","Y",null,1,null,null,null,null,null,null,null,0,0,null,0,0,0,0,0,0,1,1,0,null,null,0,0,0,0,0,1,0,0,0,0,0,1,0,null,1,0,0,0,0,null,0,0,0,0,0,0,0,0]
[6663,"Hugo & Hudson Limited","Y",null,null,null,null,null,null,null,null,null,null,null,null,null,null,null,null,null,null,null,1,null,1,1,null,null,null,null,null,null,null,null,null,null,null,1]
[7062,"Hugsmart Products Inc.","Y",null,null,null,null,null,null,null,null,null,null,null,null,null,null,null,null,null,null,1,1,null,1,1,null,null,1,null,null,1,null,null,null,null,null,1,null,1,null,null,null,null,null,null,null,null,null,null,null,null,null,1]
[7367,"HumaneWatch/Center for Consumer Freedom","Y",null,null,null,null,null,null,null,null,null,1]
[3765,"humaNpet solution *","Y",null,1,null,null,null,null,null,null,null,null,null,1]
[5674,"Hunan Haikun Agricultural Science And Technology Co., Ltd. *","Y",null,null,null,null,null,null,null,1,null,null,null,null,null,1,1,1,1]
[6557,"Huxley & Kent","Y",null,null,null,null,null,null,null,null,null,null,null,null,null,null,null,null,null,null,1,1,null,1,1,null,null,null,null,null,1]
[1733,"Hydra Professional by Pet Society","Y",null,null,null,null,null,1,null,null,null,null,null,1,null,null,null,null,null,null,1,1,null,null,null,null,null,null,null,null,null,null,null,null,null,null,null,null,null,null,null,null,null,null,null,1,null,null,1]
[1339,"HYPONIC","Y",null,null,null,null,null,1,null,null,null,null,null,1,null,null,null,null,null,null,1,1,null,null,null,null,null,null,null,null,null,null,null,null,null,null,null,null,null,null,null,null,null,null,null,1,null,null,1,1]
[7067,"IBBI Pty Ltd. *","Y",null,null,null,null,null,null,null,null,null,null,null,null,null,null,null,null,1,null,1,1,null,null,null,null,null,null,null,null,null,null,null,1,1,null,1,null,1,1]
[1482,"Iceland Pure Pet Products","Y",null,1,null,null,null,null,null,null,null,null,null,null,null,null,null,null,null,1,1,1,null,null,null,null,null,null,null,null,null,null,null,null,null,null,null,null,null,null,null,null,null,null,null,1]
[1447,"Icelandic+","Y",null,1,null,null,null,null,null,null,null,null,null,null,null,null,null,null,null,null,1,1,null,null,null,null,null,null,1,null,null,null,null,null,null,null,null,null,null,null,null,null,null,null,null,null,null,null,null,null,null,null,null,null,0]
[7511,"iClean Dog Wash","Y",null,null,null,null,null,null,null,null,null,null,null,1,null,null,null,null,null,null,null,1,null,null,null,null,null,null,null,null,null,null,null,null,null,null,null,null,null,null,null,null,null,null,null,null,null,1]
[5858,"Ideal Poultry Breeding Farms, Inc. *","Y",null,null,null,null,1,null,null,null,null,null,null,null,null,null,null,1]
[1730,"iGroom","Y",null,null,null,null,null,1,null,null,null,null,null,1,null,null,null,null,null,null,1,1,null,null,null,null,null,null,null,null,null,null,null,null,null,null,null,null,null,null,null,null,null,null,null,1,null,null,1,1]
[5362,"Imagine This Company","Y",null,null,null,null,null,null,null,null,null,null,null,null,1]
[7066,"Imarc Engraving Systems","Y",null,null,null,null,null,null,null,null,null,0,0,1,1,0,0,0,0,1,1,1,0,0,null,1,0,0,0,0,0,0,0,0,0,0,0,0,0,0,0,0,0,0,null,0,0,0,0,0,0,0,0,0,0]
[5627,"IMS - Cadet Pet","Y",null,null,null,null,null,null,null,null,null,null,null,null,null,null,null,null,null,null,null,1,null,null,null,null,null,null,1,1,null,null,null,null,null,null,null,null,null,null,null,null,null,null,null,null,null,null,null,null,null,null,null,0]
[6830,"Inaba Foods ( USA)","Y",null,null,null,null,null,null,null,null,null,null,null,null,null,null,null,null,null,null,1,1,null,null,null,null,null,null,1,null,null,null,null,null,null,null,null,null,null,null,null,null,null,null,null,1,null,null,null,null,null,null,null,null,0]
[3658,"InClover Research","Y",null,1,null,null,null,null,null,null,null,0,0,null,0,0,0,0,0,null,1,1,0,0,0,0,0,0,1,0,0,0,0,0,0,0,0,0,0,0,0,0,0,0,null,1,0,0,0,0,0,0,0]
[3308,"IndiePet","Y",null,1,null,null,null,null,null,null,null,1]
[2248,"INDIGO & Natural SIGNATURE *","Y",null,1,null,null,null,null,null,null,null,null,null,null,null,null,null,null,null,null,1,1,null,null,null,null,1]
[6824,"INDIPETS INC","Y",null,null,null,null,null,null,null,null,null,null,null,1,null,null,null,1,null,1,1,1,null,null,null,null,null,1,null,null,1,null,null,1,null,null,1]
[7711,"Indonesia International Pet Expo","Y",null,null,null,null,null,null,null,null,null,1]
[7562,"Injoya","Y",null,null,null,null,null,null,null,null,null,null,null,null,null,null,null,null,null,null,null,1,null,null,null,null,null,1,null,null,1]
[1034,"InnoPet Apparel *","Y",null,null,null,null,null,1,null,null,null,null,null,null,null,null,null,null,null,null,1,1,null,1]
[7230,"Innovative Pet Products","Y",null,null,null,null,null,null,null,null,null,null,null,null,null,null,null,null,null,null,1,1,null,null,null,null,null,1,1,null,1]
[6711,"Instachew","Y",null,null,null,null,null,null,null,null,null,null,null,null,null,null,null,null,null,null,1,1,null,null,1,null,null,1,1,null,1,null,null,1,1,null,1,null,1,null,null,null,1,null,null,null,null,null,null,1,null,null,1,1,1]
[1768,"Instinct Pet Food","Y",null,1,null,null,null,null,null,null,null,null,null,null,null,null,null,null,null,null,1,1,null,null,null,null,1,null,null,null,null,null,null,null,null,null,null,null,null,null,null,null,null,null,null,1]
[1436,"International Boarding & Pet Services Association","Y",null,null,null,null,null,1,null,null,null,1,null,null,null,null,null,null,null,null,null,null,null,null,null,null,null,null,null,null,null,null,null,null,null,null,null,null,null,null,null,null,null,null,null,null,null,null,null,null,null,null,null,0,0]
[1968,"Intersand America","Y",null,1,null,null,null,null,null,null,null,null,null,null,null,null,null,null,null,null,1,null,null,null,null,null,null,null,null,null,null,null,null,null,null,null,null,null,null,null,null,1]
[5279,"Interzoo - Nuernberg Germany","Y",null,null,null,null,null,null,null,null,null,1]
[2135,"Isle of Dogs","Y",null,null,null,null,null,1,null,null,null,null,null,null,null,null,null,null,null,null,null,1,null,null,null,null,null,null,1,null,null,null,null,null,null,null,null,null,null,null,null,null,null,null,null,1,null,null,1]
[1847,"Iv San Bernard USA","Y",null,1,null,null,null,null,null,null,null,null,null,1,null,null,null,null,null,1,1,1,null,null,null,null,null,null,null,null,null,null,null,null,null,null,null,null,null,null,null,null,null,null,null,1,1,1,1]
[7425,"IVIVA INTERNATIONAL CORP. *","Y",null,null,null,null,null,null,null,null,null,null,null,null,null,null,null,null,null,null,1,1,null,null,null,null,null,null,null,null,null,1]
[2156,"Jack & Pup","Y",null,1,null,null,null,null,null,null,null,null,null,null,null,null,null,null,null,null,null,1,null,null,null,null,null,null,1,null,null,null,null,null,null,null,null,null,null,null,null,null,null,null,null,1]
[5210,"JBJ Aquariums","Y",null,null,null,1,null,null,null,null,null,null,null,null,null,1]
[1730,"Jelly Pet","Y",null,null,null,null,null,1,null,null,null,null,null,null,null,null,null,null,null,null,null,1,null,null,1,null,null,null,null,null,null,null,null,null,null,null,null,null,null,null,null,null,null,null,null,null,null,1]
[6566,"Jiangsu Saiou Protective Equipment Technology Co., Ltd *","Y",null,null,null,null,null,null,null,null,null,null,null,null,null,null,null,null,null,null,null,1,null,null,null,null,null,null,null,null,null,null,null,null,null,null,null,null,null,null,null,null,null,null,null,null,null,null,null,null,null,1]
[5964,"Jiangsu Wangdi Household Products Co.,Ltd *","Y",null,null,null,null,1,null,null,null,null,null,null,null,null,null,null,null,null,null,null,1,null,null,null,null,null,null,null,null,null,null,null,null,null,null,null,null,null,null,null,null,null,null,null,null,null,null,null,null,null,1]
[6268,"JIANGXI YIXING PACKAGING CO., LTD *","Y",null,null,null,null,null,null,null,null,null,null,null,1,null,null,null,null,null,null,1,1,null,null,null,null,1]
[3319,"Jiminy's","Y",null,1,null,null,null,null,null,null,null,null,null,null,null,null,null,null,null,null,null,1,null,null,1,null,1,1,1]
[6266,"Jinher Inc *","Y",null,null,null,null,null,null,null,null,null,null,null,1,null,null,null,null,null,null,1,1,null,null,null,null,null,null,null,null,null,null,null,null,null,null,null,null,null,null,null,null,null,null,null,1]
[5579,"Jinhua Eagle King CO., LTD *","Y",null,null,null,null,null,null,null,1,null,null,null,null,null,null,null,null,null,null,null,1,null,null,1,null,null,1]
[5774,"Jinjiang KissPetBaby Manufacturer Co., Ltd *","Y",null,null,null,null,null,null,null,1,null,null,null,null,null,null,null,null,null,null,1,1,null,null,null,null,null,null,null,null,null,null,null,null,null,null,1,null,null,null,null,null,null,null,null,null,null,1,null,null,null,null,1]
["MR105","JLA Pets Friends Forever","Y",null,null,null,null,null,null,null,null,null,null,null,null,null,null,null,null,null,null,1,1,null,1,1,null,null,null,null,null,null,null,null,null,null,null,1,null,null,null,null,null,null,null,null,null,null,null,null,null,null,null,null,1]
[5111,"JM Cages & Reptiles","Y",null,null,null,1,null,null,null,null,null,null,1,null,null,null,1]
[5257,"Jolly Pets","Y",null,null,null,null,null,null,null,null,null,0,0,null,0,0,0,null,null,null,1,1,0,0,0,0,0,0,1,0,1,0,0,0,1,0,1,0,0,0,0,0,0,0,null,0,0,0,0,0,0,0,0]
[3819,"Jones Natural Chews","Y",null,1,null,null,null,null,null,null,null,null,null,null,null,null,null,null,null,null,null,1,null,null,null,null,null,null,1]
[5014,"Josh's Frogs","Y",null,null,null,1,null,null,null,null,null,null,null,null,null,1,1]
[4877,"Joyride Harness *","Y",null,null,1,null,null,null,null,null,null,null,null,null,null,null,null,null,null,null,null,1,null,null,1]
[5562,"JSL HOUSEHOLD PRODUCTS MANUFACTURING., LTD. *","Y",null,null,null,null,null,null,null,null,null,null,null,null,null,null,null,null,null,null,1,1,null,null,null,null,null,null,null,null,null,null,null,null,null,null,null,null,1]
[7549,"Julius K9","Y",null,null,null,null,null,null,null,null,null,null,null,null,1,null,null,null,null,null,null,1,null,1,1,null,null,null,null,null,1,null,null,null,null,null,null,null,null,1,null,null,null,null,null,null,null,null,null,null,null,null,1]
[5179,"Juno Dog Co.","Y",null,null,1,null,null,null,null,null,null,null,null,null,1,null,null,null,null,null,null,1,null,null,null,null,null,1,null,null,1,null,null,null,null,null,null,null,null,null,null,null,null,null,null,null,null,null,null,null,null,null,1]
[5627,"K&H Manufacturing","Y",null,null,null,null,null,null,null,null,null,0,0,null,0,1,0,1,1,null,1,1,0,0,0,0,0,1,0,0,1,0,0,1,1,0,1,0,1,1,null,0,0,0,null,null,0,0,0,0,0,0,0]
[4175,"K9 Mask® *","Y",null,1,null,null,null,null,null,null,null,null,null,null,null,null,null,null,null,null,null,1,null,1,null,null,null,null,null,null,null,null,null,null,null,null,null,null,null,null,null,null,null,null,null,1]
[1258,"K9 Natural and Feline Natural","Y",null,1,null,null,null,null,null,null,null,0,0,null,0,0,0,0,0,0,1,1,0,0,0,0,1,null,1,0,0,0,0,0,0,0,0,0,0,0,0,0,0,0,null,1,0,0,0,0,0,0,0]
[4776,"K9 Sport Sack","Y",null,null,1,null,null,null,null,null,null,null,null,null,null,null,null,null,null,null,null,1,null,null,null,null,null,null,null,null,null,null,null,null,null,null,null,null,1,null,null,null,null,null,null,null,null,null,null,null,null,null,null,0]
[7910,"K9000 Dog Wash USA","Y",null,null,null,null,null,null,null,null,null,null,null,1,null,null,null,null,null,null,null,1,null,null,null,null,null,null,null,null,null,null,null,null,null,null,null,null,null,null,null,null,null,null,null,null,null,1]
[3867,"Kangaroo Dogs *","Y",null,1,null,null,null,null,null,null,null,null,null,null,null,null,null,null,null,null,null,1,null,null,null,null,null,null,null,null,null,null,null,null,null,null,null,null,null,null,null,null,null,null,null,1]
[1427,"kashi INTERNATIONAL INC","Y",null,null,null,null,null,1,null,null,null,null,null,1,null,null,null,null,null,null,1,1,null,null,null,null,null,null,null,null,null,null,null,null,null,null,null,null,null,null,null,null,null,null,null,null,null,1]
[6966,"KatKastle *","Y",null,null,null,null,null,null,null,null,null,null,null,null,null,null,null,null,null,null,1,null,null,null,null,null,null,null,null,null,null,null,null,1,1]
[5627,"Kaytee","Y",null,null,null,null,null,null,null,null,null,null,null,null,null,null,null,1,1,null,null,null,null,null,null,null,null,null,null,null,null,null,null,null,null,null,null,null,null,null,null,null,null,null,null,null,null,null,null,null,null,null,null,0]
[6862,"KELLY & CO'S (U.S.A.) *","Y",null,null,null,null,null,null,null,null,null,null,null,null,null,null,null,null,null,null,1,1,null,null,null,null,1,null,1,null,null,null,null,null,null,null,null,null,null,null,null,null,null,null,null,1]
[1634,"Kenchii Professional","Y",null,null,null,null,null,1,null,null,null,null,null,1,null,null,null,null,null,null,1,1,null,null,null,null,null,null,null,null,null,null,null,null,null,null,null,null,null,null,null,null,null,null,null,null,null,1]
[2130,"Kennel Connection","Y",null,null,null,null,null,1,null,null,null,null,null,1]
[7569,"Kensington Protective Products *","Y",null,null,null,null,null,null,null,null,null,null,null,null,null,null,null,null,null,1,null,1,null,1,1,null,null,null,null,null,null,null,null,null,null,null,1]
[7139,"Kent Pet Group","Y",null,null,null,null,null,null,null,null,null,0,0,null,0,0,0,null,null,null,1,null,0,0,0,0,null,0,null,0,0,0,0,0,0,0,0,0,0,0,0,1,null,0,null,0,0,0,0,0,0,0,0]
[4371,"Kikkerland","Y",null,1,null,null,null,null,null,null,null,null,null,null,1,null,null,null,null,null,null,1,null,null,1,null,null,null,null,null,1,null,null,null,null,null,null,null,null,null,null,null,null,null,null,null,null,null,null,null,null,null,1]
[2334,"Kim Laube & Co","Y",null,null,null,null,null,1,null,null,null,null,null,1,null,null,null,null,null,1,1,1,null,null,null,null,null,null,null,null,null,null,null,null,null,null,null,null,null,null,null,null,null,null,null,null,null,1,1,null,null,null,null,0]
[7676,"KindTail *","Y",null,null,null,null,null,null,null,null,1,null,null,null,null,null,null,null,null,null,1,1,null,null,null,null,null,1,null,null,null,null,null,null,null,null,1,null,1]
[2048,"Kinesio Holding Corporation *","Y",null,1,null,null,null,null,null,null,null,null,null,null,null,null,null,null,null,1,null,1,null,null,null,null,null,null,null,null,null,null,null,null,null,null,null,null,null,null,null,null,null,null,null,1]
[5357,"King Wholesale Inc.","Y",null,null,null,null,null,null,null,null,null,null,1,null,null,null,null,null,1,1,1,1,1,1,1,null,1,1,1,1,1,null,1,1,1,1,1,1,1,1,1,null,1,1,1,1,1,1,1,1,1,1,1]
[2082,"Kitchen Table Pet","Y",null,1,null,null,null,null,null,null,null,null,null,null,null,null,null,null,null,null,null,1,null,null,null,null,null,null,1]
[3313,"Kiwi Kitchens","Y",null,1,null,null,null,null,null,null,null,null,null,null,null,null,null,null,null,null,1,1,null,null,null,null,1,null,1]
[2036,"KKO SHEARS *","Y",null,null,null,null,null,1,null,null,null,null,null,1,null,null,null,null,null,null,1,1,null,null,null,null,null,null,null,null,null,null,null,null,null,null,null,null,null,null,null,null,null,null,null,null,null,1]
[5066,"Klippo Pet INc.","Y",null,null,1,null,null,null,null,null,null,null,null,null,null,null,null,null,null,null,null,1,null,1,1,null,null,null,null,null,null,null,null,null,null,null,1,null,null,null,null,null,null,null,null,null,null,null,null,null,null,null,null,0]
[4079,"KND Labs","Y",null,1,null,null,null,null,null,null,null,null,null,1,null,null,null,null,null,null,1,1,null,null,null,null,null,null,null,null,null,null,null,null,null,null,null,null,null,null,null,null,null,null,1,1,null,null,null,null,null,null,null,0]
[7668,"Knoop *","Y",null,null,null,null,null,null,null,null,null,null,null,null,null,null,null,null,null,null,null,1,null,null,1]
[4070,"Knots of Fun-Makers of Happy Hands Happy Dog Toys","Y",null,1,null,null,null,null,null,null,null,null,null,null,null,null,null,null,null,null,null,1,null,null,null,null,null,null,null,null,1]
[1947,"KOCHO","Y",null,1,null,null,null,null,null,null,null,null,null,null,null,null,null,null,null,null,null,1,null,null,null,null,null,null,null,null,null,null,null,null,null,null,null,null,null,null,null,null,null,null,null,null,null,null,null,null,null,1,null,null,0]
[4264,"Korure Pets","Y",null,1,null,null,null,null,null,null,null,null,null,null,null,null,null,null,null,1,1,1,null,null,null,null,null,1,1,null,1,null,null,null,null,null,null,null,null,null,null,1,null,null,null,1,null,null,null,null,null,null,1]
[7119,"Kradle","Y",null,null,null,null,null,null,null,null,null,null,null,null,null,null,null,null,null,null,null,1,null,null,null,null,null,null,1,null,null,null,null,null,null,null,null,null,null,null,null,null,null,null,1,1]
[2352,"Kraftia USA","Y",null,1,null,null,null,null,null,null,null,null,null,null,null,null,null,null,null,null,null,1,null,null,null,null,1,null,null,null,null,null,null,null,null,null,null,null,null,null,null,null,null,null,null,1]
[5657,"Kruse","Y",null,null,null,null,null,null,null,null,null,null,null,null,null,null,null,1,1,1,null,1,null,null,null,null,1,null,1]
[7019,"Kurilon Chemicals Co., Ltd.","Y",null,null,null,null,null,null,null,null,null,null,null,null,null,null,null,null,null,null,1,1,null,null,null,null,null,null,null,null,null,null,null,null,null,null,null,null,null,null,null,null,null,null,null,null,null,null,null,null,null,null,1]
[6267,"K-Zen by Nexquest *","Y",null,null,null,null,null,null,null,null,null,null,null,null,null,null,null,null,null,null,null,1,null,null,1,null,null,null,null,null,null,null,null,null,null,null,null,null,null,null,null,null,null,null,null,1]
[1647,"La'au Inc.","Y",null,1,null,null,null,null,null,null,null,null,null,null,null,null,null,null,null,null,null,1,null,null,null,null,null,null,null,null,null,null,null,null,null,null,null,null,null,null,null,null,null,null,null,1]
[1230,"Ladybird Line","Y",null,null,null,null,null,1,null,null,null,null,null,1,null,null,null,null,null,null,null,1,null,1,null,null,null,null,null,null,null,null,null,null,null,null,null,null,null,null,null,null,null,null,null,null,null,1]
[7048,"Lafeber-EmerAid","Y",null,null,null,null,null,null,null,null,null,null,null,null,null,null,null,1,1,null,1,1,null,null,null,null,1]
[8010,"LAOS TIANTAI INDUSTRY CO.,LTD","Y",null,null,null,null,null,null,null,null,null,null,null,null,null,null,null,null,null,null,null,1,null,1,1,null,null,null,null,null,null,null,null,null,null,1,1,null,1,null,1]
[5267,"Lavengel *","Y",null,null,null,null,null,null,null,null,null,null,null,null,null,null,null,null,null,null,null,1,null,null,null,null,null,null,null,null,null,null,null,null,null,null,null,null,null,null,null,null,null,null,null,1]
[4368,"Layfield Group *","Y",null,1,null,null,null,null,null,null,null,null,null,1]
[7779,"LAZZY BEAR CANADA INC. *","Y",null,null,null,null,null,null,null,null,1,null,null,null,null,null,null,null,null,null,null,1,null,null,null,null,null,null,null,null,null,null,null,null,null,null,1,null,null,null,null,null,null,null,null,1]
[5570,"LEATHERN *","Y",null,null,null,null,null,null,null,null,null,null,null,null,null,null,null,null,null,null,null,1,null,null,1]
["MR113","LFG Product Solutions *","Y",null,null,null,null,null,null,null,null,null,null,null,1]
[2274,"LIQ USA","Y",null,1,null,null,null,null,null,null,null,null,null,null,null,null,null,null,null,null,null,1,null,null,null,null,null,null,1]
[6680,"Litter Box Magic *","Y",null,null,null,null,null,null,null,null,1,null,null,null,null,null,null,null,null,null,1,null,null,null,null,null,null,null,null,null,null,null,null,null,null,null,null,null,null,null,null,null,1,null,null,null,null,null,null,1,null,null,null,0]
[5506,"LiveAquaria","Y",null,null,null,1,null,null,null,null,null,null,1,null,null,1]
[1874,"LIX","Y",null,1,null,null,null,null,null,null,null,null,null,null,null,null,null,null,null,1,1,1,null,null,null,null,null,null,1,null,null,null,null,null,null,null,null,null,null,null,null,null,null,null,1,1]
[7579,"Loop & Launch *","Y",null,null,null,null,null,null,null,null,1,null,null,null,null,null,null,null,null,null,null,1,null,null,null,null,null,null,null,null,1]
[4964,"LOOSTAR (HANGZHOU) FASHION ACCESSIORIES CO.,LTD *","Y",null,null,1,null,null,null,null,null,null,null,null,null,null,null,null,null,null,null,1,1,null,1,1,null,null,1,null,null,1,null,null,null,null,null,1,null,1]
[3925,"Lord Jameson","Y",null,1,null,null,null,null,null,null,null,null,null,null,null,null,null,null,null,null,null,1,null,null,null,null,null,null,1,null,null,null,null,null,null,null,null,null,null,null,null,null,null,null,null,1]
[5470,"Lost Horizon Handicraft - Felt Handmade Pet Products","Y",null,null,null,null,null,null,null,null,null,null,null,null,1,null,null,null,null,null,1,1,null,null,null,null,null,null,null,null,1,null,null,null,null,null,1]
[3119,"Lotus Pet Foods","Y",null,1,null,null,null,null,null,null,null,null,null,null,null,null,null,null,null,null,1,1,null,null,null,null,1,null,1]
[7311,"Loungefly","Y",null,null,null,null,null,null,null,null,null,null,null,null,1]
[4478,"Love, Nala","Y",null,1,null,null,null,null,null,null,null,null,null,null,null,null,null,null,null,null,1,null,null,null,null,null,1,null,1,null,null,null,null,null,null,null,null,null,null,null,null,null,null,null,null,1]
[8112,"LOVEPET *","Y",null,null,null,null,null,null,null,null,null,null,null,1,null,null,null,null,null,null,1,null,null,null,null,null,null,null,null,null,null,null,null,null,null,null,null,null,null,null,null,1]
[4547,"LOVING PETS","Y",null,null,null,null,null,null,null,null,null,0,0,null,0,1,0,0,0,0,1,1,0,0,0,0,0,1,1,1,0,0,0,0,0,0,0,0,0,0,0,0,0,0,null,0,0,0,0,0,0,0,0]
[1834,"Loyalty Pet Products","Y",null,null,null,null,null,1,null,null,null,null,null,1,1,null,null,null,null,null,1,1,null,null,null,null,null,null,null,null,null,null,null,null,null,null,null,null,null,null,null,null,null,null,null,null,null,1]
[4261,"Lucky Pup","Y",null,null,null,null,null,null,null,null,null,null,null,null,null,null,null,null,null,null,null,1,null,null,null,null,null,null,null,null,null,null,null,null,null,null,null,null,null,null,null,null,null,null,null,1]
[6339,"Lucy Pet Foods","Y",null,null,null,null,null,null,null,null,null,null,null,null,null,null,null,null,null,null,1,1,null,null,null,null,1,1,1,null,null,null,null,null,null,null,null,null,null,null,null,null,null,null,null,1]
[4870,"Luna Blue","Y",null,null,1,null,null,null,null,null,null,0,0,null,0,0,0,0,0,0,0,1,0,1,1,0,0,0,0,0,1,0,0,0,0,0,1,0,0,0,0,0,0,0,null,0,0,0,0,0,0,0,0]
[7866,"Lupinepet","Y",null,null,null,null,null,null,null,null,null,null,null,null,null,null,null,null,null,null,1,1,null,null,1]
[3749,"M Pet Group, Corp.","Y",null,1,null,null,null,null,null,null,null,null,null,null,null,null,null,null,null,null,null,1,null,null,null,null,null,null,1]
[3607,"Made by Nacho *","Y",null,1,null,null,null,null,null,null,null,null,null,null,null,null,null,null,null,null,1,null,null,null,null,null,1,null,1,null,null,null,null,null,null,null,null,null,null,null,null,null,null,null,null,1]
[7874,"Maev, Inc. *","Y",null,null,null,null,null,null,null,null,1,null,null,null,null,null,null,null,null,null,null,1,null,null,null,null,1]
[6657,"Mammoth Pet Products","Y",null,null,null,null,null,null,null,null,null,0,0,null,null,0,0,null,null,null,null,1,0,0,0,0,0,0,null,0,1,0,0,0,0,0,1,0,0,0,0,0,0,null,null,0,0,0,0,0,0,0,0]
[3406,"Manuka Vet New Zealand *","Y",null,1,null,null,null,null,null,null,null,null,null,null,null,null,null,null,null,null,1,1,null,null,null,null,null,null,null,null,null,null,null,null,null,null,null,null,null,null,null,null,null,null,null,1]
[7862,"Marcoot Jersey Creamery LLC - Dog-O's","Y",null,null,null,null,null,null,null,null,null,null,null,null,null,null,null,null,null,null,null,1,null,null,null,null,null,null,1]
[4039,"Mars Petcare","Y",null,null,null,null,null,null,null,null,null,0,0,null,0,0,0,0,null,0,1,1,0,0,0,0,1,0,1,0,0,0,0,0,0,0,0,0,0,0,0,0,0,1,null,null,0,0,0,0,0,0,0]
[5311,"Marshall Pet Products, Inc.","Y",null,null,null,1,null,null,null,null,null,null,null,null,null,null,null,null,1]
[5365,"Mask US Inc","Y",null,null,null,null,null,null,null,null,null,null,null,null,1]
[4319,"Maximum Bully","Y",null,null,null,null,null,null,null,null,null,null,null,null,null,null,null,null,null,null,null,1,null,null,null,null,1,null,null,null,null,null,null,null,null,null,null,null,null,null,null,null,null,null,null,1]
[1070,"Mclovin's Pet Food Company","Y",null,1,null,null,null,null,null,null,null,null,null,null,null,null,null,null,null,null,1,1,null,null,null,null,1,1,1,null,1,null,null,null,null,null,null,null,1,null,null,null,null,null,null,null,null,1,null,null,null,null,1]
[7613,"MEGAZOO","Y",null,null,null,null,null,null,null,null,null,1]
[3969,"Melanie Newman Salon Essentials","Y",null,1,null,null,null,null,null,null,null,null,null,null,null,null,null,null,null,null,null,1,null,null,null,null,null,null,null,null,null,null,null,null,null,null,null,null,null,null,null,null,null,null,null,null,null,null,1]
[6462,"Mendota Pet","Y",null,null,null,null,null,null,null,null,null,0,0,null,0,0,0,0,0,0,1,1,0,1,1,0,0,1,1,0,1,0,0,0,0,0,0,0,0,0,0,0,0,0,null,1,0,0,1,0,0,0,0]
[6474,"meoof *","Y",null,null,null,null,null,null,null,null,1,null,null,null,null,null,null,null,null,null,1,1,null,null,null,null,null,1,null,null,null,null,null,null,null,null,1]
[5176,"Messy Mutts","Y",null,null,1,null,null,null,null,null,null,null,null,null,null,null,null,null,null,null,1,1,null,null,null,null,null,1,null,null,null,null,null,null,null,null,null,null,null,null,null,null,1,null,null,null,null,1,null,1,null,null,1]
[5074,"Metro Paws","Y",null,null,1,null,null,null,null,null,null,0,0,null,null,0,0,0,0,0,1,1,0,0,0,0,0,0,0,0,1,0,1,0,0,0,0,0,0,0,0,0,1,0,null,0,0,0,0,0,1,1,1]
[1746,"MetroVac","Y",null,1,null,null,null,null,null,null,null,null,null,1,null,null,null,null,null,null,null,1,null,null,null,null,null,null,null,null,null,null,null,null,null,null,null,null,null,null,null,null,null,null,null,null,null,1]
[5078,"Michu Pet Supplies Inc","Y",null,null,1,null,null,null,null,null,null,null,null,null,null,null,null,null,null,null,1,null,null,null,null,null,1,1,1,null,null,null,null,1,1,null,1,null,null,null,null,1,1,null,null,null,null,1,1,null,1]
[6219,"Middleby Food Processing and Packaging","Y",null,null,null,null,null,null,null,null,null,null,null,1,null,null,null,null,null,null,null,1,null,null,null,null,1,null,1]
[1535,"Midmark Corporation","Y",null,null,null,null,null,1,null,null,null,null,null,1,null,null,null,null,null,null,1,1,null,null,null,null,null,null,null,null,null,null,null,null,null,null,null,null,1,null,1,null,null,null,null,1,null,1,null,null,null,null,null,null,1]
[5231,"MidWest Homes for Pets","Y",null,null,null,null,null,null,null,null,null,0,0,null,0,1,0,1,1,0,1,1,0,0,0,0,0,1,0,0,0,0,0,1,1,0,1,1,1,1,1,0,null,0,null,0,0,null,0,0,0,1,1]
[4639,"Midwestern Pet Foods","Y",null,null,null,null,null,null,null,null,null,null,null,null,null,null,null,null,null,null,1,1,null,null,null,null,1,null,1]
[6179,"MIGOS DOG *","Y",null,null,null,null,null,null,null,null,1,null,null,null,null,null,null,null,null,null,null,1,null,null,null,null,1]
[7577,"Milltown Brand *","Y",null,null,null,null,null,null,null,null,1,null,null,null,null,null,null,null,null,null,null,1,null,1,1,null,null,1,null,null,null,null,null,null,null,null,null,null,null,null,null,null,null,null,null,null,null,null,null,null,null,null,1]
[7474,"Milo by Bone *","Y",null,null,null,null,null,null,null,null,1,null,null,null,null,null,null,null,null,null,null,1,null,null,null,null,null,null,null,null,null,null,null,null,null,null,null,null,null,null,null,null,null,null,null,1]
[6567,"MIMINKO *","Y",null,null,null,null,null,null,null,null,null,null,null,null,null,null,null,null,null,null,null,1,null,1,1]
[5571,"MIND UP CORP.","Y",null,null,null,null,null,null,null,null,null,null,null,null,null,null,null,null,null,null,1,1,null,null,null,null,null,null,null,null,null,null,null,null,null,null,null,null,null,null,null,null,null,1]
[6379,"Mini Melts, Inc. *","Y",null,null,null,null,null,null,null,null,1,null,null,null,null,null,null,null,null,null,null,1,null,null,null,null,null,null,1]
[6048,"MiraPet","Y",null,null,null,null,null,null,null,null,null,null,null,null,null,null,null,null,null,null,1,1,null,null,null,null,null,1,null,null,null,null,null,null,null,null,null,null,1,null,null,null,null,null,null,null,null,null,null,null,null,null,null,1]
[5567,"Modern Handicraft Pvt. Ltd.","Y",null,null,null,null,null,null,null,null,null,null,null,null,null,null,null,null,null,null,null,1,null,1]
[3661,"Momentum Carnivore Nutrition","Y",null,1,null,null,null,null,null,null,null,null,null,null,null,null,null,null,null,null,1,1,null,null,null,null,null,null,1,null,null,null,null,null,null,null,null,null,null,null,null,null,null,null,null,1]
[7463,"Mondi","Y",null,null,null,null,null,null,null,null,null,null,null,1,null,null,null,null,null,null,1,1,null,null,null,null,1,null,1]
[3910,"Montana Dog Food Co","Y",null,1,null,null,null,null,null,null,null,null,null,null,null,null,null,null,null,null,null,1,null,null,null,null,1,null,1,null,null,null,null,null,null,null,null,null,null,null,null,null,null,null,null,1]
[6869,"Moose Pet Gear","Y",null,null,null,null,null,null,null,null,null,null,null,1,1,null,null,null,null,null,1,1,null,null,1]
[1580,"Morris Packaging","Y",null,1,null,null,null,null,null,null,null,null,null,1,null,null,null,null,null,null,1,1,null,null,null,null,1,null,1]
[3565,"Mosaic Pet Food","Y",null,1,null,null,null,null,null,null,null,null,null,null,null,null,null,null,null,null,null,1,null,null,null,null,null,null,1,null,null,null,null,null,null,null,null,null,null,null,null,null,null,null,null,1,null,null,null,null,null,null,null,0]
[1484,"Mother Murphy's Flavors","Y",null,1,null,null,null,null,null,null,null,null,null,1,null,null,null,null,null,null,null,1,null,null,null,null,1,null,1]
[4906,"Mothers Nursing Room","Y",null,null,null,null,null,null,null,null,null,1]
[3878,"Mountain Plains Treats","Y",null,1,null,null,null,null,null,null,null,null,null,null,null,null,null,null,null,null,null,1,null,null,null,null,null,null,1]
[4076,"Mountain Wild","Y",null,1,null,null,null,null,null,null,null,null,null,null,null,null,null,null,null,null,null,1,null,null,null,null,null,null,1]
[1546,"MozPet *","Y",null,1,null,null,null,null,null,null,null,null,null,null,null,null,null,null,null,null,1,1,null,null,null,null,1]
[2147,"MPC Gold *","Y",null,1,null,null,null,null,null,null,null,null,null,null,null,null,null,null,null,1,null,1,null,null,null,null,null,null,null,null,null,null,null,null,null,null,null,null,null,null,null,null,null,null,null,1,null,null,1]
[3906,"Mr. Suzuki's Pet Care","Y",null,1,null,null,null,null,null,null,null,null,null,null,null,null,null,null,null,null,null,1,null,null,null,null,null,null,null,null,null,null,null,null,null,null,null,null,null,null,null,null,null,null,null,null,null,null,1]
[6674,"MrsCopyCat *","Y",null,null,null,null,null,null,null,null,1,null,null,null,null,null,null,null,null,null,1,1,null,null,null,null,null,null,null,null,1]
[3108,"Muenster Milling Co","Y",null,1,null,null,null,null,null,null,null,null,null,1,null,1,null,1,null,1,1,1,null,null,null,null,1,null,1,null,null,null,null,null,null,null,null,null,null,null,null,null,null,null,null,1]
[5539,"Multipet International / Komodo Reptile","Y",null,null,null,null,null,null,null,null,null,0,0,null,null,null,1,null,null,null,1,1,0,0,0,0,0,1,null,null,1,0,1,1,0,0,null,0,null,0,0,0,0,0,null,0,0,null,0,0,1,0,1]
[4366,"Mushroom Matrix","Y",null,1,null,null,null,null,null,null,null,null,null,null,null,null,null,null,null,1,1,1,null,null,null,null,null,null,null,null,null,null,null,null,null,null,null,null,null,null,null,null,null,null,null,1]
[6949,"My Magic Carpet","Y",null,null,null,null,null,null,null,null,null,null,null,null,1,null,null,null,null,null,1,1]
[2085,"My Perfect Pet","Y",null,1,null,null,null,null,null,null,null,null,null,null,null,null,null,null,null,null,1,1,null,null,null,null,1]
[6939,"MyFamily USA","Y",null,null,null,null,null,null,null,null,null,null,null,1,null,null,null,null,null,null,1,1,null,null,1,1,null,null,null,null,null,null,null,null,null,null,null,null,null,null,null,null,null,null,null,null,null,null,null,null,null,null,null,null,0]
[1980,"Naavi Pet","Y",null,1,null,null,null,null,null,null,null,null,null,null,null,null,null,null,null,null,null,1,null,null,null,null,1]
[7467,"NAIA","Y",null,null,null,null,null,null,null,null,null,1]
[7766,"Nala Barry Labs","Y",null,null,null,null,null,null,null,null,null,null,null,null,null,null,null,null,null,null,1,1,null,null,null,null,null,null,null,null,null,null,null,null,null,null,null,null,null,null,null,null,null,null,null,1]
[4760,"NameBadges.com *","Y",null,null,null,null,null,null,null,null,null,null,null,1]
[1140,"Nanchang ICE BEAR Cooling and Warming Household Products Co.,Ltd *","Y",null,null,null,null,null,1,null,null,null,null,null,1,null,null,null,null,null,1,1,1,null,1,1,null,null,1,null,null,1,null,null,null,null,null,1,null,null,null,null,null,null,null,null,1,null,1]
[5061,"Nandog Pet Gear","Y",null,null,1,null,null,null,null,null,null,null,null,null,null,null,null,null,null,null,1,1,null,null,1,null,null,null,null,null,1,null,null,1,null,null,1,null,null,1,null,null,null,null,null,null,null,1,null,null,null,null,1]
[4661,"Nanjing Orient Enterprise Ltd. *","Y",null,null,null,null,null,null,null,null,null,null,null,1,null,null,null,null,null,null,1,1,null,null,null,null,null,null,null,null,1]
[5675,"Nanjing Seefuture Technology Co., Ltd *","Y",null,null,null,null,null,null,null,1,null,null,null,1,null,null,null,null,null,null,1,1,null,null,null,null,null,null,null,null,null,null,null,null,null,null,null,null,null,null,null,null,null,null,null,1,null,1]
[5566,"Nanjing Yingwang Toy, Inc. *","Y",null,null,null,null,null,null,null,null,null,null,null,null,null,null,null,null,null,null,1,1,null,1,null,null,null,null,null,null,1,null,null,null,null,null,1]
[5465,"Nantong Flexitex Co., Ltd *","Y",null,null,null,null,null,null,null,null,null,null,null,1,null,null,null,null,null,null,1,1,null,null,null,null,null,null,null,null,null,null,null,null,null,null,1,null,null,null,null,null,null,null,null,null,null,1]
[3660,"National Animal Supplement Council","Y",null,1,null,null,null,null,null,null,null,1,null,null,null,null,null,null,null,1,1,1,null,null,null,null,null,null,null,null,null,null,null,null,null,null,null,null,null,null,null,null,null,null,null,1]
[2372,"Native Microbials","Y",null,1,null,null,null,null,null,null,null,null,null,null,null,null,null,null,null,null,null,1,null,null,null,null,null,null,null,null,null,null,null,null,null,null,null,null,null,null,null,null,null,null,null,1]
[1547,"Native Pet","Y",null,1,null,null,null,null,null,null,null,null,null,null,null,null,null,null,null,null,null,1,null,null,null,null,null,null,1,null,null,null,null,null,null,null,null,null,null,null,null,null,null,null,null,1]
[3239,"Natural Balance","Y",null,1,null,null,null,null,null,null,null,null,null,null,null,null,null,null,null,null,1,1,null,null,null,null,1,null,1]
[3560,"Natural Cravings USA & Barking Buddha Pet *","Y",null,1,null,null,null,null,null,null,null,null,null,null,null,null,null,null,null,null,null,1,null,null,null,null,null,null,null,null,null,null,null,null,null,null,null,null,null,null,null,null,null,null,null,null,null,null,1]
[5663,"Natural Dog Company","Y",null,null,null,null,null,null,null,null,null,null,null,null,null,null,null,null,null,null,null,1,null,null,null,null,null,null,1,null,null,null,null,null,null,null,null,null,null,null,null,null,null,null,null,1,null,null,1,null,1]
[1470,"Natural Farm Pet","Y",null,1,null,null,null,null,null,null,null,null,null,null,null,null,null,null,null,null,null,1,null,null,null,null,null,null,1]
[3709,"Natural Rapport","Y",null,1,null,null,null,null,null,null,null,null,null,null,null,1,null,1,null,1,null,1,null,null,null,null,null,null,1,null,null,null,null,null,null,null,null,null,null,null,null,null,null,null,null,1,null,null,1,1,1]
[3813,"Naturally Fresh","Y",null,1,null,null,null,null,null,null,null,null,null,null,null,null,null,null,null,null,1,null,null,null,null,null,null,null,null,null,null,null,null,null,null,null,null,null,null,null,null,1]
[2381,"Nature's Animals, Inc","Y",null,1,null,null,null,null,null,null,null,null,null,null,null,null,null,null,null,null,null,1,null,null,null,null,null,null,1]
[6349,"Nature's Logic","Y",null,null,null,null,null,null,null,null,null,null,null,null,null,null,null,null,null,null,1,1,null,null,null,null,1,null,1,null,null,null,null,null,null,null,null,null,null,null,null,1,null,null,null,1]
[4011,"Nature's Own Pet Chews by Best Buy Bones","Y",null,null,null,null,null,null,null,null,null,0,0,null,0,0,0,0,0,0,0,1,0,0,0,0,0,0,1,0,0,0,0,0,0,0,0,0,0,0,0,0,0,0,null,0,0,0,0,0,0,0,0]
[1730,"Nature's Specialties, LLC","Y",null,null,null,null,null,1,null,null,null,null,null,1,null,null,null,null,null,1,1,1,null,null,null,null,null,null,null,null,null,null,null,null,null,null,null,null,null,null,null,null,null,null,null,1,null,null,1,1]
[6867,"NaturPak Pet *","Y",null,null,null,null,null,null,null,null,null,null,null,1,null,null,null,null,null,null,1,1,null,null,null,null,1]
[4339,"NaturVet","Y",null,null,null,null,null,null,null,null,null,0,0,null,0,0,0,0,0,1,1,1,0,0,0,0,0,0,1,0,0,0,0,0,0,0,0,0,0,0,0,0,0,1,1,1,1,0,1,1,0,0,0]
[4347,"NaturVet Private Label","Y",null,null,null,null,null,null,null,null,null,null,null,1,null,null,null,null,null,1,1,1,0,0,0,0,0,0,1,0,0,0,0,0,0,0,0,0,0,0,0,0,0,1,1,1,1,0,1,1]
[5712,"Nautilus Wholesale","Y",null,null,null,1,null,null,null,null,null,null,1,null,null,1]
[5821,"Neakasa","Y",null,null,null,null,null,null,null,null,null,null,null,null,null,null,null,null,null,null,1,1,null,null,null,null,null,null,null,null,null,null,null,null,null,null,null,null,null,null,null,null,null,null,null,null,null,1,null,1]
[4925,"Neater Pets","Y",null,null,null,null,null,null,null,null,null,null,null,null,null,null,null,null,null,null,1,1,null,null,1,null,null,1,null,null,1,null,null,null,null,null,null,null,null,null,null,null,1,null,null,null,null,null,null,1,null,null,1]
[6562,"Necoichi","Y",null,null,null,null,null,null,null,null,null,null,null,null,null,null,null,null,null,null,1,null,null,null,1,null,null,1,null,null,null,null,null,1,1,null,1,null,1,null,null,null,1,null,null,null,null,1,null,null,null,null,null,0]
[7539,"Nestle Purina Petcare Company","Y",null,null,null,null,null,null,null,null,null,null,null,null,null,null,null,null,null,null,1,1,0,0,0,0,1,0,1,1,0,0,0,0,0,0,0,0,0,0,0,1,1,null,null,1,null,null,null,null,null,null,null,0]
[4004,"New Media Retailer","Y",null,null,null,null,null,null,null,null,null,null,null,1]
[1058,"Newco Distributors","Y",null,1,null,null,null,null,null,null,null,null,1,null,null,null,null,1,1,1,1,1,null,null,null,null,1,null,1,null,null,null,null,null,null,null,null,null,null,null,null,1,null,null,null,1,null,null,null,null,null,1,1]
[2034,"Nexderma","Y",null,null,null,null,null,1,null,null,null,null,null,null,null,null,null,null,null,1,1,1,null,null,null,null,null,null,null,null,null,null,null,null,null,null,null,null,null,null,null,null,null,1,1,1,null,null,1,1,1]
[1781,"NexPet Retailer Co-op","Y",null,1,null,null,null,null,null,null,null,1,null,1]
[3519,"Next Gen International Corp","Y",null,1,null,null,null,null,null,null,null,0,0,null,0,0,0,0,0,0,1,1,0,0,0,0,null,0,1,0,0,0,0,0,0,0,0,0,0,0,0,1,1,0,null,0,1,0,0,0,0,0,0]
[6369,"Next Level Super Premium Pet Food *","Y",null,null,null,null,null,null,null,null,null,null,null,null,null,null,null,null,null,null,null,1,null,null,null,null,1,null,null,null,null,null,null,null,null,null,null,null,null,null,null,null,null,null,null,1]
[7669,"Next Products USA","Y",null,null,null,null,null,null,null,null,null,null,null,1,null,null,null,null,null,null,1,1,null,1,1,null,null,1,null,null,null,null,null,null,null,null,1,null,null,null,null,null,null,null,null,null,null,1,null,1,null,null,1]
[2148,"Nextpaw","Y",null,1,null,null,null,null,null,null,null,null,null,1]
[7267,"N-Gage Brands","Y",null,null,null,null,null,null,null,null,null,null,null,null,null,null,null,null,null,null,null,1,null,null,1,null,null,null,null,null,1,null,null,null,null,null,1]
[5762,"NielsenIQ","Y",null,null,null,null,null,null,null,null,null,null,null,1]
[4019,"Nilodor Pets","Y",null,null,null,null,null,null,null,null,null,0,0,1,0,0,0,0,null,null,1,1,0,0,0,0,0,0,0,0,0,0,0,0,0,0,0,0,0,0,0,0,null,null,null,1,null,0,1,1]
[7210,"Ningbo Haode Pet Products Co.,ltd *","Y",null,null,null,null,null,null,null,null,null,null,null,null,null,null,null,null,null,null,1,1,null,null,null,null,null,1,null,null,1,null,null,null,null,null,null,null,1,null,null,null,1,null,null,null,null,1]
[5577,"Ningbo Jiayan Child Products Co., Ltd *","Y",null,null,null,null,null,null,null,1,null,null,null,null,null,null,null,null,null,null,1,1,null,null,null,null,null,null,null,null,null,null,null,null,1,null,null,1,1]
[1946,"NINGBO LAPACK COSMETICS PACKING C0., LTD *","Y",null,1,null,null,null,null,null,null,null,null,null,1,null,null,null,null,null,null,1,1,null,null,null,null,null,null,null,null,null,null,null,null,null,null,null,null,null,null,null,null,null,null,null,null,null,null,null,null,null,null,1]
[4567,"Ningbo Lavo Pet Products Co., Ltd *","Y",null,null,1,null,null,null,null,null,null,null,null,null,null,null,null,null,null,null,null,1,null,1,1,null,null,null,null,null,1,null,null,null,null,null,1]
[7776,"NINGBO QILU HOUSEHOLD PRODUCTS CO.,LTD. *","Y",null,null,null,null,null,null,null,null,1,null,null,null,null,null,null,null,null,null,1,1,null,null,null,null,null,1,null,null,null,null,null,null,null,null,null,null,null,null,null,null,null,null,null,null,null,null,null,1]
[7469,"Nite Ize","Y",null,null,null,null,null,null,null,null,null,null,null,null,null,null,null,null,null,null,null,1,null,null,1,null,null,null,null,null,1,null,null,null,null,null,null,null,null,null,null,null,null,null,null,null,null,null,null,null,null,null,null,1]
[7380,"NOCK PROBIOTICS *","Y",null,null,null,null,null,null,null,null,1,null,null,null,null,null,null,null,null,null,null,1,null,null,null,null,null,null,null,null,null,null,null,null,null,null,null,null,null,null,null,null,null,1,null,1]
[4010,"Nordic Naturals","Y",null,null,null,null,null,null,null,null,null,null,null,null,null,null,null,null,null,null,1,1,null,null,null,null,null,null,null,null,null,null,null,null,null,null,null,null,null,null,null,null,null,null,null,1]
[6038,"NORTH AMERICAN PET PRODUCTS","Y",null,null,null,null,null,null,null,null,null,null,null,null,null,1,1,1,null,null,1,1,null,null,null,null,null,null,null,null,1,null,null,1,1,null,1]
[3957,"North Coast Seafoods","Y",null,1,null,null,null,null,null,null,null,null,null,null,null,null,null,null,null,null,1,1,null,null,null,null,1]
[5347,"North States Mypet","Y",null,null,null,null,null,null,null,null,null,0,0,null,0,0,0,1,0,0,1,1,0,0,0,0,0,0,0,0,0,0,0,0,0,0,0,1,null,1,1,0,0,0,null,0,0,null,0,0,0,0,0,0]
[3458,"Northwest Naturals","Y",null,1,null,null,null,null,null,null,null,0,0,null,0,0,0,0,0,0,1,1,0,0,0,0,1,0,1,0,0,0,0,0,0,0,0,0,0,0,0,0,0,0,null,1,0,0,0,0,0,0,0]
[5016,"Northwest Zoological Supply","Y",null,null,null,1,null,null,null,null,null,null,1,null,null,null,1,1,1]
[3511,"NOW Pets","Y",null,1,null,null,null,null,null,null,null,null,null,null,null,null,null,null,null,null,1,1,null,null,null,null,null,null,1,null,null,null,null,null,null,null,null,null,null,null,null,null,null,null,null,1,1]
[3649,"NPIC","Y",null,1,null,null,null,null,null,null,null,null,null,null,null,null,null,null,1,null,1,1,null,null,null,null,null,null,1,null,null,null,null,null,null,null,null,null,null,null,null,null,null,1,null,1]
[4439,"Nulo","Y",null,null,null,null,null,null,null,null,null,null,null,null,null,null,null,null,null,null,1,1,null,null,null,null,1,null,1,null,null,null,null,null,null,null,null,null,null,null,null,null,null,null,null,1]
["MR107","nutramax","Y",null,null,null,null,null,null,null,null,null,null,null,null,null,null,null,null,null,1,1,1,null,null,null,null,null,null,1,null,null,null,null,null,null,null,null,null,null,null,null,null,null,null,null,1]
[3409,"NutraPak USA, an Icelandirect Company","Y",null,1,null,null,null,null,null,null,null,null,null,1,null,null,null,null,null,null,1,1,null,null,null,null,null,null,1,null,null,null,null,null,null,null,null,null,null,null,null,null,null,null,1,1]
[5627,"Nylabone","Y",null,null,null,null,null,null,null,null,null,null,null,null,null,null,null,null,null,null,null,1,null,null,null,null,null,null,1,null,1,null,null,null,null,null,null,null,null,null,null,null,null,1,null,null,null,null,null,null,null,null,null,0]
[1147,"NZ Natural Pet Food *","Y",null,1,null,null,null,null,null,null,null,null,null,null,null,null,null,null,null,null,1,1,null,null,null,null,1,null,1]
[7812,"O Dog","Y",null,null,null,null,null,null,null,null,null,null,null,null,null,null,null,null,null,null,1,1,null,null,null,null,null,null,1]
[3405,"O.T.I.S","Y",null,1,null,null,null,null,null,null,null,null,null,null,null,null,null,null,null,null,null,1,null,null,null,null,null,null,1,null,null,null,null,null,null,null,null,null,null,null,null,null,null,null,1,1]
[5411,"OASE Living Water","Y",null,null,null,1,null,null,null,null,null,null,null,null,null,1,1]
[2358,"OC Raw","Y",null,1,null,null,null,null,null,null,null,null,null,null,null,null,null,null,null,null,null,1,null,null,null,null,1,null,1,null,null,null,null,null,null,null,null,null,null,null,null,null,null,null,null,1]
[5621,"Oh! My Betta","Y",null,null,null,1,null,null,null,null,null,null,1,null,null,1]
[1434,"OIC Advance","Y",null,null,null,null,null,1,null,null,null,null,null,1]
[4476,"Olympia Provisions *","Y",null,1,null,null,null,null,null,null,null,null,null,null,null,null,null,null,null,null,null,1,null,null,null,null,null,null,1]
[3879,"Oma's Pride","Y",null,1,null,null,null,null,null,null,null,null,null,null,null,null,null,null,null,null,1,1,null,null,null,null,1,null,1,null,null,null,null,null,null,null,null,null,null,null,null,null,null,null,null,1]
[3979,"Omega Group of Companies LLC","Y",null,1,null,null,null,null,null,null,null,null,null,null,null,null,null,null,null,null,null,1,null,null,null,null,null,null,1]
[6569,"Omega Paw Inc","Y",null,null,null,null,null,null,null,null,null,null,null,null,null,null,null,null,null,null,1,1,null,null,null,null,null,1,1,null,1,null,null,1,null,null,1,null,null,null,null,null,1,1]
[5462,"Omnipet by Leather Brothers Inc.","Y",null,null,null,null,null,null,null,null,null,0,0,null,0,0,0,1,null,0,1,1,0,0,1,null,0,1,null,1,1,0,1,1,0,1,0,0,1,1,null,0,0,0,null,0,null,1,0,0,0,0,0,null,0]
[4947,"Only An Ocean","Y",null,null,null,null,null,null,null,null,null,null,null,null,null,null,null,null,null,null,1,1,null,null,1,1,null,1,null,null,1,null,null,null,null,null,null,null,null,null,null,null,1,null,null,1,1,null,1,null,1,null,1]
[1756,"Open Farm Inc","Y",null,1,null,null,null,null,null,null,null,null,null,null,null,null,null,null,null,null,1,1,null,null,null,null,1,null,1,null,null,null,null,null,null,null,null,null,null,null,null,null,null,null,null,1]
[8113,"Operation Good Boy *","Y",null,null,null,null,null,null,null,null,null,null,null,null,null,null,null,null,null,null,null,1,null,null,null,null,null,1,1,null,1,null,null,null,null,null,null,null,null,null,null,null,null,null,null,1,null,null,null,null,null,null,1]
[7778,"Orca Specialty Foods Ltd. *","Y",null,null,null,null,null,null,null,null,1,null,null,1,null,null,null,null,null,null,1,1,null,null,null,null,null,null,1,null,null,null,null,null,null,null,null,null,null,null,null,null,null,null,null,1]
[1247,"ORGANIC AND NATURE","Y",null,1,null,null,null,null,null,null,null,null,null,1,null,null,null,null,null,null,1,1,null,null,null,null,null,null,null,null,null,null,null,null,null,null,null,null,null,null,null,null,null,null,null,null,null,null,1,1]
[4064,"Oscar Newman","Y",null,1,null,null,null,null,null,null,null,null,null,null,null,null,null,null,null,null,1,1,null,1,null,null,null,null,1,null,1,null,null,null,null,null,1,null,null,null,null,null,null,null,null,1,null,null,null,null,null,1]
[6279,"Osprey Retail *","Y",null,null,null,null,null,null,null,null,1,1]
[4662,"Otto Environmental *","Y",null,null,null,null,null,null,null,null,null,null,null,1,null,null,null,null,1,null,1,1,null,null,null,null,null,null,null,null,null,null,null,null,null,null,null,1,1,null,1]
["MR111","Outward Hound","Y",null,null,null,null,null,null,null,null,null,null,null,null,null,null,null,null,null,null,1,1,null,1,1,null,null,1,1,null,1,null,null,1,1,null,1,null,1,1,null,null,null,null,null,1]
[5410,"Ovipost","Y",null,null,null,1,null,null,null,null,null,null,null,1,null,1,1,1,1]
[3449,"Oxyfresh Worldwide Inc","Y",null,1,null,null,null,null,null,null,null,null,null,null,null,null,null,1,1,null,1,1,null,null,null,null,null,null,null,null,null,null,null,null,null,null,null,null,null,null,null,null,null,1,null,1,null,null,1,1]
[6719,"PAIKKA","Y",null,null,null,null,null,null,null,null,null,null,null,null,1,null,null,null,null,null,null,1,null,1,1,null,null,1,null,null,1,null,null,null,null,null,1]
[2233,"Paloma shears *","Y",null,null,null,null,null,1,null,null,null,null,null,1,null,null,null,null,null,null,null,1,null,null,null,null,null,null,null,null,null,null,null,null,null,null,null,null,null,null,null,null,null,null,null,null,null,1]
[3679,"Paradox Foods LLC *","Y",null,1,null,null,null,null,null,null,null,null,null,1,null,null,null,null,null,null,1,1,null,null,null,null,1]
[4461,"Paragon Grooming Education and Training","Y",null,null,null,null,null,null,null,null,null,null,null,1]
[4118,"Patchwork Pet","Y",null,null,null,null,null,null,null,null,null,0,0,null,0,0,0,0,0,0,1,1,0,0,0,0,0,0,0,0,1,0,0,1,0,0,null,0,0,0,0,0,0,0,null,0,0,0,0,0,0,0,0]
[7878,"Paw Ready *","Y",null,null,null,null,null,null,null,null,1,null,null,null,null,null,null,null,null,null,1,1,null,null,null,null,null,null,null,null,null,null,null,null,null,null,null,null,null,null,null,null,null,1]
[6378,"Pawjourr *","Y",null,null,null,null,null,null,null,null,1,null,null,1]
[3574,"Paws and Co Pet Treats","Y",null,1,null,null,null,null,null,null,null,null,null,null,null,null,null,null,null,null,null,1,null,null,null,null,null,null,1,null,null,null,null,null,null,null,null,null,null,null,null,null,null,null,null,1]
[4576,"Paws Gourmet Bakery","Y",null,null,1,null,null,null,null,null,null,null,null,1,null,null,null,null,null,null,null,1,null,null,null,null,null,null,1]
[4277,"Pawse","Y",null,1,null,null,null,null,null,null,null,null,null,null,null,null,null,null,null,null,1,1,null,null,null,null,null,null,1,null,null,null,null,null,null,null,null,null,null,null,null,null,null,null,1,1]
[4975,"Pawz Dog Boots","Y",null,null,1,null,null,null,null,null,null,0,0,null,null,0,0,0,0,0,0,1,0,1,null,0,0,0,0,0,0,0,0,0,0,0,0,0,0,0,0,0,0,0,null,1,0,0,0,1,1,0,0]
[6874,"PawzNDogz *","Y",null,null,null,null,null,null,null,null,1,null,null,null,null,null,null,null,null,null,1,1,null,null,null,null,null,1,null,null,null,null,null,null,1,null,1,null,1,1]
[4376,"peaksNpaws *","Y",null,1,null,null,null,null,null,null,null,null,null,null,null,null,null,null,null,null,null,1,null,null,null,null,null,null,1]
[5649,"Pearhead + Ubbi","Y",null,null,null,null,null,null,null,null,null,null,null,null,1,null,null,null,null,null,1,1,null,null,null,null,null,1,null,null,1,null,null,1,null,null,null,null,null,null,null,null,1,null,null,null,null,null,null,null,null,null,1]
[2139,"PENGLAI MINING CORPORATION *","Y",null,null,null,null,null,1,null,null,null,null,null,1,null,null,null,null,null,null,1,null,null,null,null,null,null,null,null,null,null,null,null,null,null,null,null,null,null,null,null,1]
[5317,"Penn-Plax, Inc.","Y",null,null,null,1,null,null,null,null,null,0,0,null,1,1,1,1,1,0,1,1,0,null,1,0,0,1,null,null,1,0,null,1,1,null,1,0,1,0,0,null,1,null,null,0,0,1,0,0,0,1,1]
[7713,"PEORIA PRODUCTION SOLUTIONS","Y",null,null,null,null,null,null,null,null,null,null,null,1]
[5175,"Perri's Corporation","Y",null,null,1,null,null,null,null,null,null,null,null,null,null,null,null,null,null,null,null,1,null,null,1]
[4819,"Pet Advocacy Network","Y",null,null,null,1,null,null,null,null,null,1,0,null,0,0,0,0,0,0,0,0,0,0,0,0,0,0,0,0,0,0,0,0,0,0,0,0,0,0,0,0,0,0,null,0,0,0,0,0,0,0,0]
[4057,"Pet Brands Products, LLC","Y",null,null,null,null,null,null,null,null,null,null,null,1,null,null,null,null,null,null,1,1,null,null,null,null,null,null,1]
[7712,"Pet Business Magazine","Y",null,null,null,null,null,null,null,null,null,1,0,null,0,0,0,0,0,0,0,0,0,0,0,0,0,0,0,0,0,0,0,0,0,0,0,0,0,0,0,0,0,0,null,0,0,0,0,0,0,0,0]
[3513,"Pet Center, Inc.","Y",null,1,null,null,null,null,null,null,null,0,0,null,0,0,0,null,0,0,null,1,0,0,0,0,0,0,1,0,0,0,0,0,0,0,0,0,0,0,0,0,0,0,null,0,0,0,0,0,0,0,0]
[5461,"Pet Engine Marketing","Y",null,null,null,null,null,null,null,null,null,null,null,1]
[3210,"Pet Food Compliance","Y",null,1,null,null,null,null,null,null,null,null,null,1,null,null,null,null,null,null,1,1,null,null,null,null,1]
[4474,"Pet Gifts USA","Y",null,1,null,null,null,null,null,null,null,null,null,null,1]
[3913,"Pet Honesty","Y",null,1,null,null,null,null,null,null,null,null,null,null,null,null,null,null,null,null,1,1,null,null,null,null,null,null,1,null,null,null,null,null,null,null,null,null,null,null,null,null,null,null,1,1,null,null,1]
[3502,"Pet House by One Fur All","Y",null,1,null,null,null,null,null,null,null,null,null,null,1,null,null,null,null,null,1,1,null,null,null,null,null,null,null,null,null,null,null,null,null,null,null,null,null,null,null,null,null,null,null,null,null,null,null,1]
[6749,"Pet Obsession","Y",null,null,null,null,null,null,null,null,null,null,null,null,null,1,null,1,1,null,1,1,null,1,1,null,null,1,null,null,1,null,null,null,1,1,1,null,1,1,null,null,null,null,null,1,null,1,null,null,null,1,1,1]
[6811,"Pet Palette Distribution","Y",null,null,null,null,null,null,null,null,null,null,1,null,null,null,null,null,null,null,1,1,0,1,1,1,1,1,1,0,1,0,1,1,1,0,1,0,1,1,0,0,1,1,1,1,1,1,1,1,1,0,1,1]
[1750,"Pet Parents","Y",null,1,null,null,null,null,null,null,null,null,null,null,1,null,null,null,null,null,1,1,null,null,null,null,null,1,1,null,null,null,null,null,null,null,1,null,null,null,null,null,null,null,null,1,null,null,null,1,1,1]
[3662,"Pet Pasta","Y",null,1,null,null,null,null,null,null,null,null,null,null,null,null,null,null,null,null,null,1,null,null,null,null,null,null,1,null,null,null,null,null,null,null,null,null,null,null,null,null,null,null,null,1]
[4825,"Pet Product News","Y",null,null,null,null,null,null,null,null,null,1]
[3213,"Pet Releaf","Y",null,1,null,null,null,null,null,null,null,null,null,null,null,null,null,null,null,1,1,1,null,null,null,null,null,null,1,null,null,null,null,null,null,null,null,null,null,null,null,null,null,null,1,1,null,null,1]
[6139,"Pet Shop by Fringe Studio","Y",null,null,null,null,null,null,null,null,null,null,null,null,1,null,null,null,null,null,1,1,null,null,null,null,null,1,null,null,1,null,null,null,null,null,1]
[3309,"Pet Sustainability Coalition","Y",null,1,null,null,null,null,null,null,null,1]
[4377,"Pet~Pourri","Y",null,1,null,null,null,null,null,null,null,null,null,null,1,null,null,null,null,null,1,1,null,null,null,null,null,null,null,null,null,null,null,null,null,null,null,null,null,null,null,null,null,null,null,null,null,null,null,1]
[4249,"Pet-Ag Inc.","Y",null,null,null,null,null,null,null,null,null,null,null,null,null,null,null,null,1,1,1,1,null,null,null,null,null,null,1,null,null,null,null,null,null,null,null,null,null,null,null,null,null,null,null,1,null,null,1,null,1]
[2134,"Pet-Agree / Melanie Newman Salon Essentials","Y",null,null,null,null,null,1,null,null,null,null,null,null,null,null,null,null,null,null,1,1,null,null,null,null,null,null,null,null,null,null,null,null,null,null,null,null,null,null,null,null,null,null,null,1,null,1,1]
[6577,"PETCORDS *","Y",null,null,null,null,null,null,null,null,1,null,null,null,1,null,null,null,null,null,1,1]
[1358,"Petcurean","Y",null,1,null,null,null,null,null,null,null,0,0,null,0,0,0,0,0,0,1,1,0,0,0,0,1,0,1,0,0,0,0,0,0,0,0,0,0,0,0,0,0,0,null,null,0,0,0,0,0,0,0,null,0]
[6919,"PET-DAVID PRODUCTS (CANADA) LIMITED","Y",null,null,null,null,null,null,null,null,null,null,null,null,null,null,null,null,null,null,1,1,null,1,null,null,null,null,1,null,1,null,null,null,null,null,null,null,null,null,null,null,null,null,null,null,null,null,1]
[1330,"PETEDGE","Y",null,null,null,null,null,1,null,null,null,null,1,null,1,null,null,null,null,null,1,1,null,1,1,null,null,1,1,1,1,null,1,1,1,1,1,1,1,1,1,null,1,1,null,1,1,1,1,1,1,1,1]
[6475,"Peterra Kitchen *","Y",null,null,null,null,null,null,null,null,1,null,null,null,null,null,null,null,null,null,1,1,null,null,null,null,null,null,null,null,null,null,null,null,null,null,null,null,null,null,null,null,null,null,null,1]
[3805,"PetEyez Vitamin Treats","Y",null,1,null,null,null,null,null,null,null,null,null,null,null,null,null,null,null,null,1,1,null,null,null,null,null,null,1,null,null,null,null,null,null,null,null,null,null,null,null,null,null,null,null,1]
[5860,"Petfu, Inc *","Y",null,null,null,null,1,null,null,null,null,null,null,null,null,1,null,1]
[5367,"PETGOGOPLAY *","Y",null,null,null,null,null,null,null,null,null,null,null,null,null,null,null,null,null,null,1,null,null,null,null,null,null,null,null,null,null,null,null,null,1]
[7911,"PETIDEAL PET FOOD (LUOHE) CO., LTD","Y",null,null,null,null,null,null,null,null,null,null,null,1,null,null,null,null,null,null,1,1,null,null,null,null,1,null,1,1]
[3204,"PETIPET","Y",null,1,null,null,null,null,null,null,null,null,null,null,null,null,null,null,null,null,null,1,null,null,null,null,null,null,1,null,null,null,null,null,null,null,null,null,null,null,null,null,null,null,1,1]
[7339,"PetIQ","Y",null,null,null,null,null,null,null,null,null,null,null,null,null,null,null,null,null,null,1,1,null,null,null,null,null,null,1,null,null,null,null,null,null,null,null,null,null,null,null,null,null,1,null,1,1,1,1]
[4857,"PETIQUE, INC.","Y",null,null,null,null,null,null,null,null,null,null,null,null,null,null,null,null,1,null,1,1,null,null,1,null,null,1,null,null,1,null,null,1,1,null,null,1,1,1,null,null,null,1,null,1,null,null,null,1]
[1850,"PetKind Pet Products","Y",null,1,null,null,null,null,null,null,null,null,null,null,null,null,null,null,null,null,1,1,null,null,null,null,1,null,1]
[7448,"PETKING.US","Y",null,null,null,null,null,null,null,null,null,null,null,null,null,null,null,null,null,null,1,1,null,null,1,null,null,1,null,1,1,null,null,null,null,1,null,null,null,null,null,null,1,null,null,null,null,1,null,null,null,1,1]
[6469,"Petkit *","Y",null,null,null,null,null,null,null,null,null,null,null,null,null,null,null,null,null,null,1,1,null,null,null,null,null,1,null,null,null,null,null,null,null,null,null,null,null,null,null,1,1,null,null,null,null,1,null,null,null,null,null,1]
[7768,"PetLink","Y",null,null,null,null,null,null,null,null,null,null,null,null,null,null,null,null,null,null,1,1,null,null,1,1]
[7239,"PETLOU, INC.","Y",null,null,null,null,null,null,null,null,null,null,null,null,null,null,null,null,null,null,null,1,null,null,null,null,null,null,null,null,1]
[4575,"PetMarvel.Ltd. *","Y",null,null,1,null,null,null,null,null,null,null,null,null,null,null,null,null,null,null,1,null,null,null,null,null,null,1,null,null,null,null,null,null,null,null,null,null,null,null,null,null,1,null,null,null,null,1,null,null,null,null,null,1]
[7369,"Petmate","Y",null,null,null,null,null,null,null,null,null,null,null,null,null,null,null,1,1,0,1,1,0,1,1,0,0,1,1,null,1,0,1,1,1,1,1,1,1,1,1,0,1,1,null,0,0,1,0,0,0,null,1]
[7611,"Petnow","Y",null,null,null,null,null,null,null,null,null,null,null,1,null,null,null,null,null,null,1,1,null,null,null,1,null,null,null,null,null,null,null,null,null,null,null,null,null,null,null,null,null,null,null,null,null,null,null,null,null,null,null,1]
[4260,"Petoo Biotechnology Inc.","Y",null,null,null,null,null,null,null,null,null,null,null,1,null,null,null,null,null,null,1,1,null,null,null,null,1,null,1]
[4367,"Petorama","Y",null,1,null,null,null,null,null,null,null,null,null,null,1,null,null,null,null,null,null,1,null,null,1,null,null,1,null,null,1,null,null,null,null,null,1,null,1]
[5166,"Petote","Y",null,null,1,null,null,null,null,null,null,0,0,null,0,0,0,0,0,0,0,1,0,0,0,0,0,0,0,0,0,0,0,0,0,0,0,0,1,0,0,0,0,0,null,0,0,0,0,0,0,0,0]
[3960,"PetPak","Y",null,1,null,null,null,null,null,null,null,null,null,1]
[7224,"PetPals Group Inc.","Y",null,null,null,null,null,null,null,null,null,0,0,null,0,0,0,null,null,0,1,1,0,0,0,0,0,null,0,0,1,0,0,1,1,0,1,0,null,0,0,0,null,0,null,0,0,0,0,0,0,0,0]
[5147,"PetRageous Designs","Y",null,null,null,null,null,null,null,null,null,null,null,null,1,null,null,null,null,null,1,1,null,1,null,null,null,1,null,null,1]
[7376,"Pet's Choice Pharmacy *","Y",null,null,null,null,null,null,null,null,1,null,null,1,null,null,null,null,null,1,1,1,null,null,null,null,null,null,null,null,null,null,null,null,null,null,null,null,null,null,null,null,null,null,null,1]
[5165,"Pets First Co.","Y",null,null,1,null,null,null,null,null,null,null,null,null,null,null,null,null,null,null,1,1,null,1,1,null,null,1,null,null,1,null,null,null,null,null,1,null,null,1,null,null,null,null,null,null,null,null,null,null,null,1]
[3639,"Pets Global","Y",null,1,null,null,null,null,null,null,null,0,0,null,0,0,0,0,0,0,1,1,0,0,0,0,1,0,1,0,0,0,0,0,0,0,0,0,0,0,0,0,0,0,null,0,0,0,0,0,0,0,0]
[5521,"Pets in the Classroom","Y",null,null,null,null,null,null,null,null,null,1]
[4861,"Pets Know Best","Y",null,null,1,null,null,null,null,null,null,null,null,1]
[1333,"Pets Ribbons","Y",null,null,null,null,null,1,null,null,null,null,null,null,null,null,null,null,null,null,null,1,null,null,1]
[3760,"Pets+ Magazine","Y",null,1,null,null,null,null,null,null,null,1]
["MR109","PetSafe","Y",null,null,null,null,null,null,null,null,null,null,null,null,null,null,null,null,null,null,1,1,null,null,1,null,null,1,1,1,1,null,null,null,null,1,null,1,1,1,null,1,1,null,null,null,null,null,null,1,null,null,1,1]
[4058,"petsmile","Y",null,1,null,null,null,null,null,null,null,null,null,null,null,null,null,null,null,null,1,1,null,null,null,null,null,null,null,null,null,null,null,null,null,null,null,null,null,null,null,null,null,1]
[5339,"Petsport, Inc.","Y",null,null,null,null,null,null,null,null,null,0,0,1,null,0,0,0,null,0,1,1,0,0,1,null,0,1,null,0,1,0,null,0,0,0,0,0,0,0,0,0,0,0,null,0,0,null,0,0,0,0,1]
[5376,"PETZOO Eurasia","Y",null,null,null,null,null,null,null,null,null,1]
[3675,"Phelps Pet Products","Y",null,1,null,null,null,null,null,null,null,null,null,1,null,null,null,null,null,null,null,1,null,null,null,null,null,null,1,null,null,null,null,null,null,null,null,null,null,null,null,null,null,null,null,null,null,null,null,null,null,null,null,0,0]
[4425,"Phillips Pet Food & Supplies","Y",null,null,null,null,null,null,null,null,null,null,1,null,null,1,1,1,1,1,1,1,null,1,1,1,1,1,1,1,1,1,1,1,1,1,1,1,1,1,1,1,1,1,1,1,1,1,1,1,1,1,1]
[7362,"PIDA/Pet Store Pro","Y",null,null,null,null,null,null,null,null,null,1,null,1]
[5379,"pidan *","Y",null,null,null,null,null,null,null,null,null,null,null,null,null,null,null,null,null,null,1,null,null,null,1,null,null,1,null,null,1,null,null,1,1,null,1,null,1,null,null,1,1,null,null,null,null,1]
[7357,"Pioneer Pet Products","Y",null,null,null,null,null,null,null,null,null,null,null,null,null,null,null,null,null,null,1,1,null,null,null,null,null,1,null,null,1,null,null,1,null,null,null,null,null,null,null,1,1]
[5217,"Pisces USA","Y",null,null,null,1,null,null,null,null,null,null,null,null,null,1,1,1]
[5407,"Piscine Energetics","Y",null,null,null,1,null,null,null,null,null,null,null,null,null,1]
[6876,"Pivotal Feeds *","Y",null,null,null,null,null,null,null,null,1,null,null,null,null,null,null,1,1,1]
[7476,"Pixie *","Y",null,null,null,null,null,null,null,null,1,null,null,null,null,null,null,null,null,null,1,1,null,null,null,null,1]
[1870,"Plato Pet Treats","Y",null,1,null,null,null,null,null,null,null,0,0,null,0,0,0,0,0,0,0,1,0,0,0,0,0,0,1,0,0,0,0,0,0,0,0,0,0,0,0,0,0,0,null,1,0,0,0,0,0,0,0]
[7049,"PLAY Pet Lifestyle and You","Y",null,null,null,null,null,null,null,null,null,null,null,null,1,null,null,null,null,null,1,1,null,null,1,null,null,1,null,null,1,null,null,1,1,null,1,null,null,1,null,null,null,null,null,null,null,null,null,null,null,null,1]
[5171,"Plush","Y",null,null,1,null,null,null,null,null,null,null,null,null,null,null,null,null,null,null,null,1,null,null,1]
[1347,"Pointr *","Y",null,1,null,null,null,null,null,null,null,null,null,1]
[5075,"PoisePup","Y",null,null,1,null,null,null,null,null,null,null,null,null,null,null,null,null,null,null,null,1,null,1,1,null,null,1,null,null,null,null,null,null,1,null,null,null,null,null,null,null,null,null,null,null,null,null,null,null,null,null,1]
[4069,"Polkadog","Y",null,1,null,null,null,null,null,null,null,null,null,null,null,null,null,null,null,null,1,1,null,null,null,null,null,null,1,null,null,null,null,null,null,null,null,null,null,null,null,null,null,null,null,null,null,null,null,null,null,null,null,null,0]
[4457,"PoochPad® Products","Y",null,null,null,null,null,null,null,null,null,null,null,null,null,null,null,null,null,null,null,1,null,null,null,null,null,null,null,null,null,null,null,null,null,null,1,null,null,null,null,null,null,null,null,null,null,null,null,1,null,1,1]
[1446,"Portland Pet Food Company","Y",null,1,null,null,null,null,null,null,null,null,null,null,null,null,null,null,null,null,null,1,null,null,null,null,1,null,1]
[5852,"Poultry Pro ","Y",null,null,null,null,null,null,null,null,null,null,null,null,null,null,null,1]
[7063,"PPC Flexible Packaging","Y",null,null,null,null,null,null,null,null,null,null,null,1]
[4867,"Precious Metal Prints","Y",null,null,1,null,null,null,null,null,null,null,null,null,1]
[6357,"Precious Tails/ Enchante Accessories","Y",null,null,null,null,null,null,null,null,null,null,null,null,null,null,null,null,null,null,1,1,null,null,null,null,null,null,null,null,null,null,null,null,null,null,1,null,null,1,null,null,null,null,null,null,null,1,1,null,1,null,1]
[4678,"Preen Pets Corp *","Y",null,null,1,null,null,null,null,null,null,null,null,null,null,null,null,null,null,null,null,1,null,null,null,null,null,null,1]
[4724,"Prefer Pets","Y",null,null,null,null,null,null,null,null,null,null,null,null,null,null,null,null,null,null,1,1,null,null,null,null,null,null,null,null,null,null,null,null,null,null,null,null,1]
[7462,"Premier Kites & Designs","Y",null,null,null,null,null,null,null,null,null,null,null,null,1,null,null,null,null,null,null,null,null,null,null,null,null,null,null,null,null,null,null,null,null,null,null,null,null,null,null,null,null,null,null,null,null,null,null,null,null,null,null,1,0]
[4568,"Preppy Puppy Bakery","Y",null,null,1,null,null,null,null,null,null,null,null,null,null,null,null,null,null,null,null,1,null,null,null,null,null,null,1]
[4166,"Preserved Food Specialty Co., Ltd.","Y",null,null,null,null,null,null,null,null,null,null,null,1,null,null,null,null,null,null,1,1,null,null,null,null,1]
[5713,"Press Room","Y",null,null,null,null,null,null,null,null,null,1]
[5025,"Prevue Pet Products Inc.","Y",null,null,null,null,null,null,null,null,null,0,0,null,0,0,null,1,1,0,1,1,0,0,null,0,0,null,0,0,1,0,0,1,1,1,1,0,1,null,1,0,1,0,null,0,0,0,0,0,0,0,1]
[4762,"Pride+Groom","Y",null,null,1,null,null,null,null,null,null,null,null,null,null,null,null,null,null,null,null,1,null,null,null,null,null,null,null,null,null,null,null,null,null,null,null,null,null,null,null,null,null,null,null,null,null,1,1,null,1]
[6277,"Prima Bella Luxury Products LLC *","Y",null,null,null,null,null,null,null,null,1,null,null,null,null,null,null,null,null,1,null,1,null,null,null,null,null,null,null,null,null,null,null,null,null,null,null,null,null,null,null,null,null,null,null,null,null,1,1]
[4665,"Prima Design, Inc *","Y",null,null,1,null,null,null,null,null,null,null,null,null,1]
[1554,"Primal Pet Group / Himalayan Pet Supply","Y",null,1,null,null,null,null,null,null,null,0,0,null,0,0,0,0,0,0,1,1,0,0,0,0,1,0,1,0,0,0,0,0,0,0,0,0,0,0,0,0,0,0,1,1,0,0,0,0,0,0,0]
[3810,"Primo Animal Health","Y",null,1,null,null,null,null,null,null,null,null,null,1,null,null,null,null,null,null,1,1,null,null,null,null,null,null,1,null,null,null,null,null,null,null,null,null,null,null,null,null,null,null,null,1,null,null,null,null,null,null,null,null,0]
[5970,"Pro Earth Animal Health","Y",null,null,null,null,1,null,null,null,null,null,null,null,null,null,null,null,null,1]
[5760,"ProAmpac","Y",null,null,null,null,null,null,null,null,null,null,null,1,null,null,null,null,null,1,null,1,null,null,null,null,1,null,1]
[7830,"Professional Pet Products, Inc","Y",null,null,null,null,null,null,null,null,null,null,null,null,null,null,null,1,1,null,1,1,null,null,null,null,null,null,null,null,null,null,null,null,null,null,null,null,null,null,null,null,null,1,null,1,null,null,1,1]
[5375,"Progato","Y",null,null,null,null,null,null,null,null,null,null,null,null,null,null,null,1,1,null,1,null,null,null,null,null,null,null,null,null,null,null,null,null,null,null,null,null,null,null,null,1]
[1977,"Project Hive Pet Company","Y",null,1,null,null,null,null,null,null,null,null,null,null,null,null,null,null,null,null,null,1,null,null,null,null,null,null,1,null,1]
[3864,"Project Sudz","Y",null,1,null,null,null,null,null,null,null,null,null,null,1,null,null,null,null,null,1,1,null,null,null,null,null,null,null,null,null,null,null,null,null,null,null,null,null,null,null,null,null,null,null,1,1,null,1,1]
[6163,"Pro-Mohs Pet Products","Y",null,null,null,null,null,null,null,null,null,null,null,null,null,null,null,null,null,null,null,1,null,null,1,null,null,null,null,null,null,null,null,null,null,null,null,null,null,null,null,null,null,null,null,null,null,null,null,null,null,null,null,null,0]
[7763,"Propelr Pay","Y",null,null,null,null,null,null,null,null,null,null,null,1]
[4007,"Protein Products","Y",null,null,null,null,null,null,null,null,null,null,null,null,null,null,1,1,null,null,1,1,null,null,null,null,1]
[7662,"PROUDPET PATCHES","Y",null,null,null,null,null,null,null,null,null,null,null,null,null,null,null,null,null,null,null,1,null,null,null,null,null,null,null,null,null,null,null,null,null,null,null,null,null,null,null,null,null,null,null,1]
[3509,"pupford","Y",null,1,null,null,null,null,null,null,null,null,null,null,null,null,null,null,null,null,null,1,null,null,null,null,null,null,1,null,1,null,null,null,null,null,null,null,null,null,null,null,null,null,null,1,null,null,1,1,null,1,1]
[6168,"Puppy Angel *","Y",null,null,null,null,null,null,null,null,null,null,null,null,null,null,null,null,null,null,null,1,null,1,1,null,null,null,null,null,null,null,null,null,null,null,1,null,1,1]
[4869,"Puppy Cake","Y",null,null,1,null,null,null,null,null,null,0,0,0,1,0,0,0,0,0,0,1,0,0,0,0,0,0,1,0,1,0,0,0,0,0,0,0,0,0,0,0,0,0,null,0,0,0,null,null,null,null,null,null,0]
[5366,"Puppy Nanny","Y",null,null,null,null,null,null,null,null,null,null,null,null,null,null,null,null,null,null,null,1,null,null,null,null,null,1]
[2330,"Puppy Playground","Y",null,null,null,null,null,1,null,null,null,null,null,null,null,null,null,null,null,null,null,1,null,null,null,null,null,null,null,null,1,1,null,null,null,null,1,null,null,null,null,null,null,null,null,null,null,1]
[6478,"Pups & Bubs *","Y",null,null,null,null,null,null,null,null,1,null,null,null,null,null,null,null,null,null,null,1,null,null,1,null,null,null,null,null,null,null,null,null,null,null,null,null,1]
[5670,"Pura Vida","Y",null,null,null,null,null,null,null,null,null,null,null,null,null,null,null,null,null,1,1,1,null,null,null,null,null,null,null,null,null,null,null,null,null,null,null,null,null,null,null,null,null,null,null,1]
[3576,"PuraVet Pet Products","Y",null,1,null,null,null,null,null,null,null,null,null,null,null,null,null,null,null,1,1,1,null,null,null,null,null,null,1,null,null,null,null,null,null,null,null,null,null,null,null,null,null,null,1,1]
["MR101","Pure and Natural Pet","Y",null,null,null,null,null,null,null,null,null,null,null,null,null,null,null,null,null,null,1,1,null,null,null,null,null,null,null,null,null,null,null,null,null,null,null,null,null,null,null,null,null,1,null,1,1,null,1,1,1]
[4169,"Pure Treats Inc","Y",null,1,null,null,null,null,null,null,null,null,null,null,null,null,null,null,null,null,1,1,null,null,null,null,null,null,1,null,null,null,null,null,null,null,null,null,null,null,null,null,null,null,null,1]
[6880,"Purry Purry Inc. *","Y",null,null,null,null,null,null,null,null,1,null,null,null,null,null,null,null,null,null,1,1,null,1,1,null,null,null,null,null,1]
[5739,"Pyranha Inc. - in the VSI booth","Y",null,null,null,null,null,null,null,null,null,null,null,null,null,null,null,null,null,1]
[3678,"Qingdao MRC Cat Litter Products Co. Ltd.","Y",null,1,null,null,null,null,null,null,null,null,null,null,null,null,null,null,null,null,1,null,null,null,null,null,null,null,null,null,null,null,null,null,null,null,null,null,null,null,null,1]
[6067,"QINGDAO RIZONE PLASTIC PRODUCTS CO.,LTD *","Y",null,null,null,null,null,null,null,null,null,null,null,1,null,null,null,null,null,null,1,1,null,null,null,null,1,null,null,null,null,null,null,null,null,null,null,null,null,null,null,1]
[4739,"QT Dog, LLC","Y",null,null,null,null,null,null,null,null,null,0,0,null,null,0,0,1,null,1,1,1,0,0,null,0,0,1,1,0,1,0,0,0,0,0,null,0,0,0,0,0,0,null,null,0,0,0,0,0,0,0,0]
[5706,"Quality Marine","Y",null,null,null,1,null,null,null,null,null,null,1,null,null,1]
[3804,"Quartile","Y",null,1,null,null,null,null,null,null,null,null,null,1]
[5077,"R.N. Design","Y",null,null,1,null,null,null,null,null,null,null,null,null,null,null,null,null,null,null,1,1,null,null,1]
[4124,"Raised Right Pets","Y",null,null,null,null,null,null,null,null,null,null,null,null,null,null,null,null,null,null,1,1,null,null,null,null,1,null,1]
[7276,"Ramona For You *","Y",null,null,null,null,null,null,null,null,1,null,null,null,null,null,null,null,null,null,1,1,null,null,1,null,null,null,null,null,null,null,null,null,null,null,null,null,null,null,null,null,null,null,null,null,null,null,null,null,null,null,1]
[7250,"Raw Dog Chews","Y",null,null,null,null,null,null,null,null,null,null,null,null,null,null,null,null,null,null,null,1,null,null,null,null,null,null,1]
[1050,"Raw Dynamic","Y",null,1,null,null,null,null,null,null,null,null,null,null,null,null,null,null,null,null,1,1,null,null,null,null,1]
[3876,"RAWR","Y",null,1,null,null,null,null,null,null,null,null,null,null,null,null,null,null,null,null,1,null,null,null,null,null,1]
[3963,"RAWZ Natural Pet Food","Y",null,1,null,null,null,null,null,null,null,null,null,null,null,null,null,null,null,null,1,1,null,null,null,null,1,null,null,null,null,null,null,null,null,null,null,null,null,null,null,null,null,null,null,1]
[4658,"RC Pets","Y",null,null,1,null,null,null,null,null,null,0,0,null,0,0,0,0,0,0,1,1,0,1,1,0,0,1,0,0,null,0,0,0,0,0,null,0,0,1,0,0,0,0,null,1,0,0,0,0,0,0,0,null,0]
[4275,"Recom","Y",null,1,null,null,null,null,null,null,null,null,null,1]
[6430,"Redbarn Pet Products","Y",null,null,null,null,null,null,null,null,null,null,null,null,null,null,null,null,null,null,1,1,null,null,null,null,1,null,1]
[6477,"Regal Connection *","Y",null,null,null,null,null,null,null,null,1,null,null,1,null,null,null,null,null,1,null,1,null,null,1]
[4319,"Replenish Pet","Y",null,null,null,null,null,null,null,null,null,null,null,null,null,null,null,null,null,null,1,1,null,null,null,null,1]
[5316,"Reptiles by Mack","Y",null,null,null,1,null,null,null,null,null,null,1,null,null,null,1]
[2185,"Retail NXI","Y",null,1,null,null,null,null,null,null,null,null,null,1]
[5666,"Rheem Multipurpose Heated Hose Sprayer","Y",null,null,null,null,null,null,null,null,null,null,null,null,null,null,null,null,null,null,null,1,null,null,null,null,null,null,null,null,null,null,null,null,null,null,null,null,null,null,null,null,null,null,null,null,null,1]
[3775,"Rio Grande Service Center","Y",null,1,null,null,null,null,null,null,null,null,1,null,null,null,null,1,1,1,1,1,null,1,1,1,1,1,1,1,1,1,1,1,1,1,1,1,1,1,1,1,1,1,null,1,1,1,1,1,1,1,1,1]
[3619,"RNF Pet Products Inc.","Y",null,1,null,null,null,null,null,null,null,null,null,null,null,null,null,null,null,null,null,1,null,null,null,null,null,null,1,null,null,null,null,null,null,null,null,null,null,null,null,null,null,null,null,null,null,null,null,null,null,null,null,null,0]
[7319,"Roam Pets","Y",null,null,null,null,null,null,null,null,null,null,null,null,null,null,null,null,null,null,null,1,null,null,null,null,null,null,1]
[6366,"Rogue Pet Science *","Y",null,null,null,null,null,null,null,null,null,null,null,null,null,null,null,null,null,null,null,1,null,null,null,null,null,null,1,null,null,null,null,null,null,null,null,null,null,null,null,null,null,null,null,1]
[8110,"Ropet Co., Ltd (8111)","Y",null,null,null,null,null,null,null,null,null,null,null,null,null,null,null,null,null,null,1,1,null,null,null,null,null,1,null,null,1,null,null,1,1,null,1,null,null,null,null,null,null,null,null,null,null,1]
[5307,"Round Lake Farm Products","Y",null,null,null,1,null,null,null,null,null,null,null,null,null,null,null,null,1]
[7024,"Royal Canin / Eukanuba","Y",null,null,null,null,null,null,null,null,null,null,null,null,null,null,null,null,null,null,1,1,null,null,null,null,1,null,1,null,null,null,null,null,null,null,null,null,null,null,null,null,null,null,null,1]
[6649,"Royal Pet Inc.","Y",null,null,null,null,null,null,null,null,null,0,0,null,0,0,1,0,0,0,1,1,0,1,null,0,0,1,1,1,1,0,0,1,0,0,null,0,0,0,null,0,1,0,null,0,0,null,0,1,0,1,1]
[3305,"RP / Restaurant Pro","Y",null,1,null,null,null,null,null,null,null,null,null,1]
[4775,"Rubies Pets","Y",null,null,1,null,null,null,null,null,null,0,0,null,0,0,0,0,0,0,1,1,0,1,null,0,0,0,0,0,0,0,0,0,0,0,0,0,0,0,0,0,0,0,null,0,0,0,0,0,0,0,0,0]
[5469,"Ruff Dawg","Y",null,null,null,null,null,null,null,null,null,0,0,null,0,0,0,0,0,0,0,1,0,0,0,0,0,0,0,0,1,0,0,0,0,0,0,0,0,0,0,0,0,0,null,0,0,0,0,0,0,0,0]
[6057,"Ruffwear","Y",null,null,null,null,null,null,null,null,null,null,null,null,null,null,null,null,null,null,null,1,null,1,1,null,null,1,null,null,1,null,null,null,null,null,1,null,1,1,null,null,null,null,null,null,null,null,null,null,null,null,1]
[7757,"Rukka","Y",null,null,null,null,null,null,null,null,null,null,null,null,null,null,null,null,null,null,null,1,null,1,1,null,null,null,null,null,1]
[2141,"RunLoyal","Y",null,null,null,null,null,1,null,null,null,null,null,1]
[6539,"Rush Direct Inc","Y",null,null,null,null,null,null,null,null,null,0,0,null,0,0,0,0,0,null,1,1,0,0,0,0,1,null,1,1,0,0,0,0,0,0,0,0,0,0,0,0,0,0,1,1,0,0,1,0,0,0,0]
[1730,"Ryan's Pet Supplies","Y",null,null,null,null,null,1,null,null,null,null,1,null,1,null,null,null,null,null,1,1,1,1,1,1,null,1,1,1,1,1,1,1,1,1,1,1,1,1,1,null,1,1,1,1,1,1,1,1,1,1,1,0]
[7478,"RYERCAT *","Y",null,null,null,null,null,null,null,null,1,null,null,null,null,null,null,null,null,null,1,null,null,null,null,null,null,null,null,null,null,null,null,null,null,null,null,null,null,null,null,null,null,1]
[4263,"RYŌKEN INSTINCT *","Y",null,1,null,null,null,null,null,null,null,null,null,null,null,null,null,null,null,null,null,1,null,null,null,null,null,null,1,null,null,null,null,null,null,null,null,null,null,null,null,null,null,null,1,1]
[4968,"Sabyloo LLC","Y",null,null,1,null,null,null,null,null,null,null,null,null,1,null,null,null,null,null,null,null,null,null,null,null,null,null,null,null,null,null,null,null,null,null,null,null,null,null,null,null,null,null,null,null,null,null,null,null,null,null,null,0]
[5419,"San Francisco Bay Brand, Inc.","Y",null,null,null,1,null,null,null,null,null,0,0,null,0,1,1,1,0,0,0,0,0,0,0,0,0,0,0,0,0,0,0,0,0,0,0,0,0,0,0,0,0,0,null,0,0,0,0,0,0,0,0]
[3766,"SANSAR PET SUPPLY, LLC","Y",null,1,null,null,null,null,null,null,null,null,null,null,null,null,null,null,null,null,null,1,null,null,null,null,null,null,1]
[7524,"Saskatchewan Trade and Export Partnership (STEP)","Y",null,null,null,null,null,null,null,null,null,1]
[7370,"Sassy Woof *","Y",null,null,null,null,null,null,null,null,null,null,null,null,null,null,null,null,null,null,null,1,null,1,1,null,null,1,null,null,1,null,null,null,null,null,null,null,null,null,null,null,null,null,null,null,null,null,null,null,null,null,1]
[5870,"Saturn Petcare, Inc.","Y",null,null,null,null,1,null,null,null,null,null,null,null,null,null,null,null,null,null,1,1,null,null,null,null,1]
[6053,"Sauder Pet Home","Y",null,null,null,null,null,null,null,null,null,null,null,null,null,null,null,null,null,null,1,1,null,null,null,null,null,null,null,null,null,null,null,1,1,null,1,null,null,null,null,null,null,null,null,null,null,null,null,null,null,null,null,null,0]
[2168,"Savory Prime Pet Treats","Y",null,1,null,null,null,null,null,null,null,null,null,null,null,null,null,null,null,null,null,1,null,null,null,null,null,null,1,1,null,null,null,null,null,null,null,null,null,null,null,null,null,null,null,null,null,null,null,1]
[6162,"Scoochie Pet Products (5967)","Y",null,null,null,null,null,null,null,null,null,null,null,null,null,null,null,null,null,null,1,1,null,null,1,null,null,null,1,1,1,null,null,null,null,null,1,null,null,null,null,1,null,null,null,null,null,null,1,1,0,1,1]
[6839,"Scott Pet","Y",null,null,null,null,null,null,null,null,null,null,null,null,null,null,null,1,null,null,1,1,null,null,1,null,null,1,1,null,1,null,null,null,null,1,null,null,null,null,null,null,null,null,null,null,null,1]
[4471,"Scout & Zoe's","Y",null,null,1,null,null,null,null,null,null,null,null,null,1,null,null,1,1,1,1,1,null,null,null,null,null,null,1,null,null,null,null,null,null,null,null,null,null,null,null,null,null,null,null,1]
[5761,"Scratch and Peck LLC","Y",null,null,null,null,1,null,null,null,null,null,null,null,null,null,null,1]
[5627,"Segrest Farms (5625)","Y",null,null,null,null,null,null,null,null,null,null,1,null,null,1,1,1,1]
[5625,"Segrest Farms (5627)","Y",null,null,null,null,null,null,null,null,null,null,1,null,null,1,1,1,1]
[1240,"Sensei shears","Y",null,null,null,null,null,1,null,null,null,null,null,1,null,null,null,null,null,null,1,1,null,null,null,null,null,null,null,null,null,null,null,null,null,null,null,null,null,null,null,null,null,null,null,null,null,1]
[5416,"sera","Y",null,null,null,1,null,null,null,null,null,null,null,null,null,1,1]
[7567,"SES-imagotag *","Y",null,null,null,null,null,null,null,null,null,null,null,1]
[7666,"Shandong Aishule Hygiene Products Co.,Ltd *","Y",null,null,null,null,null,null,null,null,null,null,null,null,null,null,null,null,null,null,null,1,null,null,null,null,null,null,null,null,null,null,null,null,null,null,null,null,null,null,null,null,null,null,null,null,null,null,null,null,1,1]
[3865,"Shandong Ruida Silica Gel Co.,Ltd *","Y",null,1,null,null,null,null,null,null,null,null,null,1,null,null,null,null,null,null,1,null,null,null,null,null,null,null,null,null,null,null,null,null,null,null,null,null,null,null,null,1]
[5275,"Shandong Sunshine International Trade Co., Ltd. *","Y",null,null,null,null,null,null,null,null,null,null,null,null,null,null,null,null,null,null,null,1,null,null,null,null,1]
[6167,"Shandong XiaoGo Pet Supplies Co., Ltd. *","Y",null,null,null,null,null,null,null,null,null,null,null,null,null,null,null,null,null,null,1,1,null,null,null,null,null,null,null,null,1]
[2136,"Shanghai Catlink Intelligent Technology Co., Ltd","Y",null,null,null,null,null,1,null,null,null,null,null,null,null,null,null,null,null,null,1,null,null,null,null,null,null,1,null,null,null,null,null,null,null,null,null,null,null,null,null,null,1,null,null,null,null,null,null,null,null,null,null,1,1]
[4764,"Shanghai Chongxin Pet Industry Co., Ltd *","Y",null,null,1,null,null,null,null,null,null,null,null,null,null,null,null,null,null,null,null,1,null,null,1,null,null,null,null,null,1,null,null,null,null,1,1]
[2041,"Shark Fin Shear Company","Y",null,null,null,null,null,1,null,null,null,null,null,1,null,null,null,null,null,null,1,1,null,null,null,null,null,null,null,null,null,null,null,null,null,null,null,null,null,null,null,null,null,null,null,null,null,1]
[1139,"SHELANDY Corp *","Y",null,null,null,null,null,1,null,null,null,null,null,1,null,null,null,null,null,null,1,1,null,null,null,null,null,null,null,null,null,null,null,null,null,null,null,null,null,null,null,null,null,null,null,null,null,1]
[5475,"Shenzhen Cheerble Technology Co., Ltd. *","Y",null,null,null,null,null,null,null,1,null,null,null,null,null,null,null,null,null,null,1,1,null,null,1,null,null,1,null,null,1,null,null,null,null,null,null,null,null,null,null,null,1,null,null,null,null,1,null,null,null,null,null,1]
[6071,"Shenzhen Hailiwang Technology Co., Ltd. *","Y",null,null,null,null,null,null,null,null,null,null,null,null,null,null,null,null,null,null,null,1,null,null,null,null,null,null,null,null,1,null,null,null,null,null,null,null,null,null,null,null,null,null,null,null,null,null,null,null,null,null,null,1]
[7070,"Shenzhen Kangchengtai Industrial Co., Ltd","Y",null,null,null,null,null,null,null,null,null,null,null,null,null,null,null,null,null,null,1,1,null,null,null,null,null,1,null,null,null,null,null,null,null,null,null,null,null,null,null,null,1,null,null,null,null,null,null,null,null,null,null,1,1]
[5676,"Shenzhen Lalahome Smartech Co., Ltd. *","Y",null,null,null,null,null,null,null,1,null,null,null,null,null,null,null,null,null,null,1,null,null,null,null,null,null,null,null,null,null,null,null,null,null,null,null,null,null,null,null,null,1,null,null,null,null,null,null,null,null,null,null,1]
[7780,"Shenzhen Northern Hemisphere Technology Network Co., Ltd. *","Y",null,null,null,null,null,null,null,null,1,null,null,null,null,null,null,null,null,null,1,1,null,null,null,null,null,1,null,null,null,null,null,null,null,null,null,null,null,null,null,null,null,null,null,null,null,1,null,null,null,null,null,1]
[4469,"Shenzhen Petsuper Smart Technology Co., Ltd. *","Y",null,null,1,null,null,null,null,null,null,null,null,null,null,null,null,null,null,null,1,1,null,null,1,null,null,1,null,null,null,null,null,null,null,null,null,null,null,null,null,null,null,null,null,null,null,null,null,1,null,null,null,1]
[5969,"Shenzhen Shi Pacific Dragon Electronic Information Technology Co., Ltd *","Y",null,null,null,null,null,null,null,null,null,null,null,null,null,null,null,null,null,null,1,1,null,null,null,null,null,1,null,null,null,null,null,null,null,null,null,null,null,null,null,null,1,null,null,null,null,null,null,null,null,null,null,1]
[7169,"Shenzhen SmartPet Technology Co., Ltd","Y",null,null,null,null,null,null,null,null,null,null,null,null,null,null,null,null,null,null,null,1,null,null,1,null,null,null,null,null,null,null,null,null,null,null,null,null,null,null,null,null,null,null,null,null,null,1,null,null,null,null,null,1]
[1046,"Shepherd Boy Farms","Y",null,1,null,null,null,null,null,null,null,null,null,null,null,null,null,null,null,null,1,1,null,null,null,null,null,null,1,null,null,null,null,null,null,null,null,null,null,null,null,null,null,null,null,1]
[2238,"Shernbao USA","Y",null,null,null,null,null,1,null,null,null,null,null,1,null,null,null,null,null,null,1,1,null,null,null,null,null,null,null,null,null,null,null,null,null,null,null,null,null,null,null,null,null,null,null,null,null,1,1,null,null,null,null,0]
[5725,"Show Floor Talks","Y",null,null,null,null,null,null,null,null,null,1,null,1]
[1485,"Side By Side","Y",null,1,null,null,null,null,null,null,null,null,null,null,null,null,null,null,null,null,null,1,null,null,null,null,1,null,1,null,null,null,null,null,null,null,null,null,null,null,null,null,null,null,null,1]
[1335,"SILVER LINE PET","Y",null,null,null,null,null,1,null,null,null,null,null,1,null,null,null,null,null,null,1,1,null,null,null,null,null,null,null,null,null,null,null,null,null,null,null,null,null,null,null,null,null,null,null,1,null,1,1,1]
[6319,"Silver Paw","Y",null,null,null,null,null,null,null,null,null,null,null,null,null,null,null,null,null,null,1,1,null,1,1,null,null,1,1,null,1,null,null,null,null,null,1,null,null,1,null,null,null,null,null,null,null,null,null,null,1,1,1]
[3939,"Skout's Honor","Y",null,1,null,null,null,null,null,null,null,null,null,null,null,null,null,null,null,null,1,1,null,null,null,null,null,null,null,null,null,null,null,null,null,null,null,null,null,null,null,null,null,null,null,1,1,null,1,1,1]
[6068,"Small Pet Select *","Y",null,null,null,null,null,null,null,null,null,null,null,null,null,null,null,1,1,null,1,1,null,null,null,null,null,null,null,null,null,null,null,null,null,null,null,null,null,null,null,1,null,null,null,1,null,1,null,null,null,null,1]
[1650,"Smallbatch Pet Food Co.","Y",null,1,null,null,null,null,null,null,null,null,null,null,null,null,null,null,null,null,1,1,null,null,null,null,1,null,1,null,null,null,null,null,null,null,null,null,null,null,null,null,null,null,null,1]
[7524,"Smart Earth Camelina","Y",null,null,null,null,null,null,null,null,null,null,null,null,null,null,null,null,null,1,null,1,null,null,null,null,null,null,null,null,null,null,null,null,null,null,null,null,null,null,null,null,null,null,null,1]
[3457,"SmarterPaw","Y",null,1,null,null,null,null,null,null,null,null,null,null,null,null,null,null,null,null,1,1,null,null,null,null,null,null,1,null,1,null,1]
[7578,"SmartPak *","Y",null,null,null,null,null,null,null,null,1,null,null,null,null,null,null,null,null,1]
[5467,"SmartPractice *","Y",null,null,null,null,null,null,null,null,null,null,null,1,1,null,null,null,null,null,null,1,null,null,1]
[3205,"smith&burton ","Y",null,1,null,null,null,null,null,null,null,null,null,null,null,null,null,null,null,null,1,1,null,null,null,null,null,null,null,null,null,null,null,null,null,null,null,null,null,null,null,null,null,null,null,1,null,null,1,null,1]
[5757,"Snap Lock Chicken Coops and Dog Houses","Y",null,null,null,null,1,null,null,null,null,null,null,null,null,null,null,1,null,null,null,1,null,null,null,null,null,null,null,null,null,null,null,null,null,null,null,null,null,null,1]
[2074,"Snappy Tom Pet Supply","Y",null,1,null,null,null,null,null,null,null,null,null,null,null,null,null,null,null,null,1,null,null,null,null,null,1,null,null,null,null,null,null,null,null,null,null,null,null,null,null,1]
[7377,"Sniff & Bark *","Y",null,null,null,null,null,null,null,null,1,null,null,null,null,null,null,null,null,null,null,1,null,null,1,null,null,null,null,null,null,null,null,null,null,null,null,null,null,null,null,null,null,null,null,null,null,null,null,null,null,null,1]
[3219,"Snif-Snax","Y",null,1,null,null,null,null,null,null,null,null,null,null,null,null,null,null,null,null,1,1,null,null,null,null,null,null,1,null,null,null,null,null,null,null,null,0,null,null,null,null,null,null,null,null,null,null,null,null,null,null,null,null,0]
[4765,"Snoozer Pet Products","Y",null,null,1,null,null,null,null,null,null,null,null,null,null,null,null,null,null,null,null,1,null,null,null,null,null,null,null,null,null,null,null,null,1,null,1,null,1,1,null,null,null,null,null,null,null,null,1]
[6519,"Snuggle Puppy","Y",null,null,null,null,null,null,null,null,null,null,null,null,null,null,null,null,null,null,1,1,null,null,null,null,null,null,1,null,1,null,null,null,null,null,1,null,null,null,null,null,null,null,null,1,null,1,1,null,1]
[7162,"Socksmith Design","Y",null,null,null,null,null,null,null,null,null,null,null,null,1]
[5851,"SodaPup","Y",null,null,null,null,null,null,null,null,null,null,null,null,null,null,null,null,null,null,null,1,null,null,null,null,null,1,1,null,1,null,null,null,null,null,null,null,null,null,null,null,null,null,null,1]
[6449,"Solid Gold Pet & Zesty Paws (H&H Group)","Y",null,null,null,null,null,null,null,null,null,null,null,null,null,null,null,null,null,null,1,1,null,null,null,null,1,null,1,null,null,null,null,null,null,null,null,null,null,null,null,null,null,null,null,1]
[4374,"Sovereign Silver PETS","Y",null,1,null,null,null,null,null,null,null,null,null,null,null,null,null,null,null,null,1,1,null,null,null,null,null,null,null,null,null,null,null,null,null,null,null,null,null,null,null,null,null,null,null,1]
[3702,"Specialty Enzymes & Probiotics","Y",null,1,null,null,null,null,null,null,null,null,null,1,null,null,null,null,null,1,1,1,null,null,null,null,null,null,null,null,null,null,null,null,null,null,null,null,null,null,null,null,null,null,null,1]
[5070,"Specialty Pet Products","Y",null,null,1,null,null,null,null,null,null,null,null,null,1,null,null,null,null,null,1,1,null,null,null,null,null,null,null,null,null,null,null,null,null,null,null,null,null,null,null,null,null,null,null,null,null,null,null,1]
[6248,"Specialty Products Resources, Inc","Y",null,null,null,null,null,null,null,null,null,null,null,null,null,null,null,null,null,null,null,1,null,null,null,null,null,1,1,1]
[6211,"Spectrum Brands – Omega and Retail Habitats","Y",null,null,null,null,null,null,null,null,null,null,null,null,null,1,1,1,1,null,1,1,null,null,null,null,null,null,1,1,null,null,null,1,1,null,1,null,null,null,null,1,1,1,null,1,1,1,1,1,1,1,1]
[5378,"Speedy Sweep","Y",null,null,null,null,null,null,null,null,null,null,null,1,null,null,null,null,null,null,1,1,null,null,null,null,null,null,null,null,null,null,null,null,null,null,null,null,null,null,null,null,null,null,null,null,null,null,null,1]
[5849,"Spina Organics","Y",null,null,null,null,null,null,null,null,null,null,null,null,null,null,null,null,null,null,1,1,null,null,null,null,null,null,null,null,null,null,null,null,null,null,null,null,null,null,null,null,null,null,null,1,1,null,1,null,null,null,null,null,0]
[4774,"SpoiledRottenDogz","Y",null,null,1,null,null,null,null,null,null,null,null,null,1]
[6769,"SPORN *","Y",null,null,null,null,null,null,null,null,null,null,null,null,null,1,1,null,null,null,1,1,null,null,1,null,null,null,null,null,1]
[3325,"Spot Farms, Full Moon, FlockLeader","Y",null,1,null,null,null,null,null,null,null,null,null,null,null,null,null,1,null,null,null,1,null,null,null,null,1,null,1]
[7762,"Spray is the Way","Y",null,null,null,null,null,null,null,null,null,null,null,null,1,null,null,null,null,null,null,1,null,null,null,null,null,null,null,null,null,null,null,null,null,null,null,null,null,null,null,null,null,null,null,1]
[1984,"Springer","Y",null,1,null,null,null,null,null,null,null,null,null,null,1,null,null,null,null,null,null,1,null,null,1,null,null,1,null,null,1]
[7068,"Sprinkle & Sweep","Y",null,null,null,null,null,null,null,null,null,null,null,null,null,null,null,null,null,null,null,1,null,null,null,null,null,null,null,null,null,null,null,null,null,null,null,null,null,null,null,null,null,null,null,null,null,null,null,1]
[6849,"Spunky Pup","Y",null,null,null,null,null,null,null,null,null,null,null,null,null,null,null,null,null,null,null,1,null,null,null,null,null,1,1,null,1,null,null,null,null,null,null,null,null,null,null,null,null,null,null,null,null,null,null,null,null,null,null,null,0]
[7675,"Square & Circle Hygiene LLC *","Y",null,null,null,null,null,null,null,null,1,null,null,null,null,null,null,null,null,null,null,1,null,null,null,null,null,null,null,null,null,null,null,null,null,null,null,null,null,null,null,null,null,null,null,null,null,null,null,null,null,1]
[4160,"SquarePet Nutrition","Y",null,1,null,null,null,null,null,null,null,null,null,null,null,null,null,null,null,null,1,1,null,null,null,null,1]
[1132,"Squishface","Y",null,null,null,null,null,1,null,null,null,null,null,null,null,null,null,null,null,null,null,1,null,null,null,null,null,null,null,null,null,null,null,null,null,null,null,null,null,null,null,null,null,null,null,1,null,null,null,null,1]
[3767,"Stage4pets.com *","Y",null,1,null,null,null,null,null,null,null,null,null,null,null,null,null,null,null,null,1,1,null,null,null,null,null,null,null,null,null,null,null,null,null,null,null,null,null,null,null,null,null,null,null,1,null,null,null,null,null,null,null,1]
[5658,"Standlee Premium Products","Y",null,null,null,null,null,null,null,null,null,null,null,null,null,null,null,1,1,1]
[7824,"Starmark Pet Products","Y",null,null,null,null,null,null,null,null,null,0,0,null,0,0,0,0,0,0,0,1,0,0,1,0,0,1,1,0,1,0,0,0,0,0,1,0,0,0,0,0,0,0,null,0,0,0,0,0,0,0,0,0]
[3664,"STAUBER *","Y",null,1,null,null,null,null,null,null,null,null,null,1,null,null,null,null,null,1,1,1,null,null,null,null,1]
[4862,"Steeldog LLC","Y",null,null,1,null,null,null,null,null,null,null,null,null,null,null,null,null,null,null,1,1,null,null,null,null,null,null,null,null,1]
[1368,"Stella & Chewy's","Y",null,1,null,null,null,null,null,null,null,null,null,null,null,null,null,null,null,null,1,1,null,null,null,null,1,null,1]
[3413,"Steve's Real Food","Y",null,1,null,null,null,null,null,null,null,0,0,null,0,0,0,0,0,0,1,1,0,0,0,0,1,0,1,0,0,0,0,0,0,0,0,0,0,0,0,0,0,0,null,null,null,0,0,0,0,0,0]
[4969,"Sticker Pack","Y",null,null,1,null,null,null,null,null,null,null,null,null,1]
[1349,"Stormberg Foods, NC","Y",null,1,null,null,null,null,null,null,null,null,null,1,null,null,null,null,null,null,null,1,null,null,null,null,null,null,1,null,null,null,null,null,null,null,null,null,null,null,null,null,null,null,null,1]
[7271,"Strategic Tax Planning","Y",null,null,null,null,null,null,null,null,null,null,null,1]
[4125,"Suitical International BV","Y",null,null,null,null,null,null,null,null,null,null,null,null,null,null,null,null,null,null,1,1,null,1,null,null,null,null,null,null,null,null,null,null,null,null,null,null,null,null,null,null,null,null,null,1]
[5627,"Sun Pet Ltd.","Y",null,null,null,null,null,null,null,null,null,null,null,null,null,1,1,1,1]
[1180,"SuperCan Bully Sticks","Y",null,1,null,null,null,null,null,null,null,null,null,null,null,null,null,null,null,null,null,1,null,null,null,null,null,null,1]
[2347,"Superior Farms Pet Provisions","Y",null,1,null,null,null,null,null,null,null,null,null,null,null,null,null,null,null,null,null,1,null,null,null,null,null,null,1]
[6978,"Superior Pet Food *","Y",null,null,null,null,null,null,null,null,1,null,null,null,null,null,null,null,null,null,null,1,null,null,null,null,1]
[6063,"Supreme Petfoods","Y",null,null,null,null,null,null,null,null,null,null,null,null,null,null,null,null,1]
[5079,"Susan Lanci Designs","Y",null,null,1,null,null,null,null,null,null,null,null,null,null,null,null,null,null,null,null,1,null,1,1,null,null,1,null,null,1,null,null,null,null,null,1,null,1,null,null,null,null,null,null,null,null,null,null,null,null,1]
[5575,"Suzhou Sailing Imp. & Exp. Co., Ltd. *","Y",null,null,null,null,null,null,null,1,null,null,null,null,null,null,null,null,null,null,1,1,null,1,1,null,null,1,null,null,1,null,null,1,1,null,1,null,null,null,null,null,1]
[3949,"Suzie's CBD Treats","Y",null,1,null,null,null,null,null,null,null,null,null,null,null,null,null,null,null,1,1,1,null,null,null,null,null,null,1,null,null,null,null,null,null,null,null,null,null,null,null,null,null,null,1,1]
[4353,"SwedencareUSA","Y",null,null,null,null,null,null,null,null,null,null,null,null,null,null,null,null,null,null,1,1,null,null,null,null,null,null,1,null,null,null,null,null,null,null,null,null,null,null,null,null,null,1,null,1,null,null,1,null,1]
[5139,"Synergy Labs","Y",null,null,null,null,null,null,null,null,null,0,0,1,0,0,0,null,null,null,1,1,0,0,0,0,0,0,1,0,0,0,1,0,0,0,0,0,0,0,0,0,0,1,null,1,1,0,1,1,null,0,0,null,0]
[1149,"TAECHU BIO CO.,LTD","Y",null,1,null,null,null,null,null,null,null,null,null,null,null,null,null,null,null,null,1,1,null,null,null,null,1,null,1,null,null,null,null,null,null,null,null,null,null,null,null,1,null,null,null,1,null,null,1,1,null,1]
[7263,"tailr","Y",null,null,null,null,null,null,null,null,null,null,null,null,null,null,null,null,null,null,1,1,null,null,null,1,null,null,null,null,null,null,null,null,null,null,null,null,null,null,null,null,null,null,null,1,null,null,null,null,null,null,null,1,1]
[7900,"Tailwagger Dog Beer *","Y",null,null,null,null,null,null,null,null,null,null,null,null,null,null,null,null,null,null,null,1,null,null,null,null,null,null,1]
[1935,"Taizhou Opey Pet Products Co., Ltd *","Y",null,null,null,null,null,1,null,null,null,null,null,null,null,null,null,null,null,null,1,null,null,null,null,null,null,1,null,null,null,null,null,null,1,null,null,null,null,null,null,null,null,null,null,null,null,1]
[6066,"TaiZhou YiXing Intelligent Technology Co., Ltd. *","Y",null,null,null,null,null,null,null,null,null,null,null,1,null,null,null,null,null,null,1,1,null,null,null,null,null,1,null,null,null,null,null,1,1,null,null,null,null,null,null,1,1]
[6648,"TALL TAILS & TERRITORY","Y",null,null,null,null,null,null,null,null,null,0,0,null,0,0,0,0,0,0,0,1,0,null,1,0,0,1,0,0,1,0,0,0,0,0,1,0,0,0,0,0,0,0,null,0,0,1,0,0,0,0,1]
[7449,"Targeted PetCare","Y",null,null,null,null,null,null,null,null,null,null,null,1,1,null,null,null,1,null,1,1,null,null,null,null,null,null,1,null,null,null,null,null,null,null,null,null,null,null,null,1]
[5564,"Team Dog Performance Dog Food *","Y",null,null,null,null,null,null,null,null,null,null,null,null,null,null,null,null,null,null,null,1,null,null,null,null,1,null,1,null,null,null,null,null,null,null,null,null,null,null,null,null,null,null,null,1]
[7876,"TECHLINK PETS INTERNATIONAL LIMITED *","Y",null,null,null,null,null,null,null,null,1,null,null,null,null,null,null,null,null,null,null,1,null,null,1]
[6177,"TenCate Grass *","Y",null,null,null,null,null,null,null,null,1,null,null,null,1,null,null,null,null,null,null,1]
[1958,"Tender & True Pet Nutrition","Y",null,1,null,null,null,null,null,null,null,null,null,null,null,null,null,null,null,null,1,1,null,null,null,null,1,null,1]
[4747,"Tevra Brands","Y",null,null,null,null,null,null,null,null,null,null,null,null,null,null,null,null,null,null,1,1,null,null,1,null,null,null,1,null,null,null,null,null,null,null,null,null,null,null,null,null,null,1,1,1,1,null,null,null,null,1]
[5107,"Texas Reptiles International","Y",null,null,null,1,null,null,null,null,null,null,1,null,null,null,1,null,null,null,null,null,null,null,null,null,null,null,null,null,null,null,null,null,null,null,null,null,null,null,null,null,null,null,null,null,null,null,null,null,null,null,null,null,0]
[7179,"Texas Toy Distribution *","Y",null,null,null,null,null,null,null,null,1,null,null,null,1]
[3670,"Thanh Phu Plastic Packaging","Y",null,1,null,null,null,null,null,null,null,null,null,1,null,null,null,null,null,null,1,1,null,null,null,null,1,null,1]
[1830,"The Absorber","Y",null,null,null,null,null,1,null,null,null,null,null,1,null,null,null,null,null,null,null,1,null,null,null,null,null,null,null,null,null,null,null,null,null,null,null,null,null,null,null,null,null,null,null,null,null,1,null,null,null,null,null,0]
[4979,"The Bandanna Company","Y",null,null,1,null,null,null,null,null,null,null,null,null,null,null,null,null,null,null,1,1,null,1]
[3510,"The Butchers Companion","Y",null,1,null,null,null,null,null,null,null,null,null,null,null,null,null,null,null,null,null,1,null,null,null,null,null,null,1]
[3525,"The Butcher's Pup","Y",null,1,null,null,null,null,null,null,null,null,null,null,null,null,null,null,null,null,null,1,null,null,null,null,1]
[3665,"The Culture Club/MuttGut","Y",null,1,null,null,null,null,null,null,null,null,null,null,null,null,null,null,null,null,1,1,null,null,null,null,null,null,null,null,null,null,null,null,null,null,null,null,null,null,null,null,null,null,null,1]
[4674,"The Dog Squad, Inc","Y",null,null,1,null,null,null,null,null,null,0,0,null,1,0,0,0,0,0,0,1,0,1,1,0,0,0,0,0,0,0,0,0,0,0,1,0,1,0,0,0,0,0,null,0,0,0,0,0,0,0,0,null,0]
[5160,"the dooloop","Y",null,null,null,null,null,null,null,null,null,null,null,null,null,null,null,null,null,null,null,1,null,null,null,null,null,null,null,null,null,null,null,null,null,null,null,null,null,null,null,null,null,null,null,null,null,null,null,null,null,null,1]
[5062,"The Foggy Dog *","Y",null,null,1,null,null,null,null,null,null,null,null,null,null,null,null,null,null,null,null,1,null,1,1,1,null,null,null,null,1,null,null,null,null,null,1,null,null,null,null,null,null,null,null,null,null,null,null,null,null,null,1]
[3566,"The Granville Island Pet Treatery","Y",null,1,null,null,null,null,null,null,null,null,null,null,null,null,null,null,null,null,1,1,null,null,null,null,null,null,1,null,null,null,null,null,null,null,null,null,null,null,null,null,null,null,null,1]
[1858,"The Honest Kitchen","Y",null,1,null,null,null,null,null,null,null,null,null,null,null,null,null,null,null,null,1,1,null,null,null,null,1,null,1,null,null,null,null,null,null,null,null,null,null,null,null,null,null,null,null,1]
[7580,"The Original mine Pet Platter *","Y",null,null,null,null,null,null,null,null,1,null,null,null,null,null,null,null,null,null,1,1,null,null,null,null,null,1]
[3579,"The Puzzle Feeder *","Y",null,1,null,null,null,null,null,null,null,null,null,null,null,null,null,null,null,null,null,1,null,null,null,null,null,1]
[6574,"The Stinky Pet Co.*","Y",null,null,null,null,null,null,null,null,1,null,null,null,1,null,null,null,null,null,null,1,null,null,null,null,null,null,null,null,null,null,null,null,null,null,null,null,null,null,null,null,null,null,null,null,null,null,null,1]
[4557,"The Worthy Dog","Y",null,null,1,null,null,null,null,null,null,null,null,null,null,null,null,null,null,null,1,1,null,1,1,null,null,null,null,null,1,null,null,null,null,null,null,null,null,1]
[1641,"Thera-Clean Microbubbles","Y",null,null,null,null,null,1,null,null,null,null,null,1,null,null,null,null,null,null,1,1,null,null,null,null,null,null,null,null,null,null,null,null,null,null,null,null,null,null,null,null,null,null,null,null,null,1]
[6778,"Therapetixx *","Y",null,null,null,null,null,null,null,null,1,null,null,null,null,null,null,null,null,null,1,1,null,null,null,null,null,null,1,null,null,null,null,null,null,null,null,null,null,null,null,null,null,null,1,1]
[1239,"Therazoo *","Y",null,null,null,null,null,1,null,null,null,null,null,null,1,null,null,null,null,1,1,1,null,null,null,null,null,null,null,null,null,null,null,null,null,null,null,null,null,null,null,null,null,null,null,1]
[3531,"This and That Canine Company Inc.","Y",null,1,null,null,null,null,null,null,null,null,null,null,null,null,null,null,null,null,1,1,null,null,null,null,null,null,1]
[3713,"Three Dog Bakery","Y",null,1,null,null,null,null,null,null,null,null,null,null,null,null,null,null,null,null,null,1,null,null,null,null,null,null,1]
[3860,"Thrive Animal Health","Y",null,1,null,null,null,null,null,null,null,null,null,null,null,null,null,null,null,null,null,1,null,null,null,null,null,null,1,null,null,null,null,null,null,null,null,null,null,null,null,null,null,null,null,1]
[3769,"Thrive Foods","Y",null,1,null,null,null,null,null,null,null,null,null,1,null,null,null,null,null,null,null,1,null,null,null,null,1,null,1]
[1737,"TI Expo ","Y",null,null,null,null,null,1,null,null,null,null,null,1,1]
[7777,"Tianjin Ranova Petfood Co., Ltd. *","Y",null,null,null,null,null,null,null,null,1,null,null,null,null,null,null,null,null,null,1,1,null,null,null,null,1,null,1]
[5661,"TickCheck Tick Remover and Tick Testing","Y",null,null,null,null,null,null,null,null,null,null,null,null,null,null,null,null,null,1,1,1,null,null,null,null,null,null,null,null,null,null,null,null,null,null,null,null,null,null,null,null,null,null,null,1,1,null,null,null,null,null,null,null,0]
[3469,"TickledPet","Y",null,1,null,null,null,null,null,null,null,null,null,null,null,null,null,null,null,null,1,1,null,null,null,null,null,null,1,null,null,null,null,null,null,null,null,null,null,null,null,null,null,null,null,1]
[5847,"TicklessUSA (ProtectOne)","Y",null,null,null,null,null,null,null,null,null,null,null,null,null,null,null,null,null,1,1,1,null,null,null,null,null,null,null,null,null,null,null,null,null,null,null,null,null,null,null,null,null,null,null,1,1,null,null,null,null,null,null,1]
[3666,"Tilted Barn Pet Co.","Y",null,1,null,null,null,null,null,null,null,null,null,null,null,null,null,null,null,null,null,1,null,null,null,null,1,null,1]
[5557,"Timberline Live Pet Foods","Y",null,null,null,null,null,null,null,null,null,0,0,null,0,1,1,1,1,0,0,0,0,0,0,0,0,0,0,0,0,0,0,0,0,0,0,0,null,null,null,null,null,null,null,null,null,null,null,null,null,null,null,null,0]
[4357,"Timberwolf Pet Products","Y",null,null,null,null,null,null,null,null,null,null,null,null,null,null,null,null,null,null,1,1,null,null,1]
[6866,"Tiny Tents *","Y",null,null,null,null,null,null,null,null,null,null,null,null,null,null,null,null,null,null,1,1,null,null,null,null,null,null,null,null,null,null,null,null,1]
[6757,"Tippy Dog Mannequins","Y",null,null,null,null,null,null,null,null,null,null,null,1,1]
[7212,"Tongfu Manufacturing Co., Ltd.","Y",null,null,null,null,null,null,null,null,null,null,null,1,null,null,null,null,null,null,1,1,null,null,null,null,null,null,null,null,1]
[4858,"TOP DOG BRAND / K-9 Leather Gear","Y",null,null,null,null,null,null,null,null,null,null,null,null,null,null,null,null,null,null,null,1,null,null,1,null,null,null,null,null,null,null,null,null,null,null,1,null,null,null,null,null,null,null,null,null,null,null,null,null,null,null,null,null,0]
[5117,"Top Hat Cricket Farm","Y",null,null,null,1,null,null,null,null,null,null,null,null,null,1,1]
[1658,"Treat Planet","Y",null,1,null,null,null,null,null,null,null,null,null,null,null,null,null,null,null,null,1,1,null,null,null,null,null,null,1,null,null,null,null,null,null,null,null,null,null,null,null,null,null,null,null,null,null,null,null,null,null,null,null,0]
[5069,"TRIO GOODS FOR A CAUSE, LLC","Y",null,null,1,null,null,null,null,null,null,null,null,null,null,null,null,null,null,null,null,1,null,null,1,null,null,null,null,null,1]
[7563,"Trivium Packaging","Y",null,null,null,null,null,null,null,null,null,null,null,1,null,null,null,null,null,null,1,1,null,null,null,null,1]
[7457,"TRIXIE","Y",null,null,null,null,null,null,null,null,null,null,null,null,null,null,1,1,1,null,1,1,null,null,null,null,null,1,null,null,1,1,null,1,1,null,1,1,1,1,1,null,null,null,null,null,null,1,null,null,null,null,null,1]
[2181,"Tropical Consolidated Corporation","Y",null,1,null,null,null,null,null,null,null,null,null,1,null,null,null,null,null,null,1,1,null,null,null,null,1]
[5510,"Tropical Fish International","Y",null,null,null,1,null,null,null,null,null,null,1,null,null,1]
[4274,"TrueBlue Pet Products","Y",null,1,null,null,null,null,null,null,null,null,null,null,null,null,null,null,null,null,null,1,null,null,null,null,null,null,null,null,null,null,null,null,null,null,null,null,null,null,null,null,null,1,null,1,null,null,1,null,1]
[3904,"TrueLeaf","Y",null,1,null,null,null,null,null,null,null,null,null,null,null,null,null,null,null,null,1,1,null,null,null,null,null,null,1,null,null,null,null,null,null,null,null,null,null,null,null,null,null,1,1,1]
[4085,"Tuesday's Natural Dog Company","Y",null,1,null,null,null,null,null,null,null,null,null,null,null,null,null,null,null,null,null,1,null,null,null,null,null,null,1]
[3225,"Tuffy's Pet Foods","Y",null,1,null,null,null,null,null,null,null,null,null,null,null,null,null,null,null,null,1,1,null,null,null,null,1,null,1,null,null,null,null,null,null,null,null,null,null,null,null,null,null,null,null,1]
[4839,"Tuffy-VIP Products","Y",null,null,null,null,null,null,null,null,null,null,null,null,null,null,null,null,null,null,null,1,null,null,null,null,null,null,null,null,1]
[4375,"Tuft + Paw","Y",null,1,null,null,null,null,null,null,null,null,null,null,null,null,null,null,null,null,1,null,null,null,null,null,null,1,null,null,1,null,null,1,1,null,1,null,null,null,null,1,1]
[5563,"TUG","Y",null,null,null,null,null,null,null,null,null,null,null,null,null,null,null,null,null,null,1,1,null,null,1,null,null,1,null,null,null,null,null,null,null,null,null,null,null,null,null,null,null,null,null,null,null,null,null,null,null,null,1,1]
[7177,"Tulum Handmade *","Y",null,null,null,null,null,null,null,null,1,null,null,null,null,null,null,null,null,null,null,1,null,1,1,null,null,1,null,null,1]
[3557,"Tuscan Natural Pet Foods and CBD Treats","Y",null,1,null,null,null,null,null,null,null,0,0,0,0,0,0,0,0,0,1,1,0,0,0,0,1,0,1,0,0,0,0,0,0,0,0,0,0,0,0,0,0,0,1,1,0,0,0,0,0,0,0]
[5759,"UCARI","Y",null,null,null,null,1,null,null,null,null,null,null,null,null,null,null,null,null,null,1,1,null,null,null,null,null,null,null,null,null,null,null,null,null,null,null,null,null,null,null,null,null,null,null,1]
[3102,"Uckele Health & Nutrition","Y",null,1,null,null,null,null,null,null,null,0,0,1,0,0,1,1,1,1,1,1,0,0,0,0,0,0,1,0,0,0,0,0,0,0,0,0,0,0,0,0,0,0,1,1,0,0,null,0,0,0,0]
[6879,"Ultra Oil for Pets *","Y",null,null,null,null,null,null,null,null,1,null,null,null,null,null,null,null,null,null,1,1,null,null,null,null,null,null,null,null,null,null,null,null,null,null,null,null,null,null,null,null,null,null,null,1]
[1381,"Ultra Pet","Y",null,1,null,null,null,null,null,null,null,0,0,null,0,0,0,0,0,0,1,null,0,0,0,0,0,1,0,0,0,0,0,0,0,0,0,0,0,0,0,1,1,0,null,null,0,0,0,0,0,0,0]
[2366,"UMMP, LLC","Y",null,1,null,null,null,null,null,null,null,null,null,null,null,null,null,null,null,null,null,1,null,null,null,null,null,null,1]
[4267,"Under the Weather Pet","Y",null,1,null,null,null,null,null,null,null,null,null,null,null,null,null,null,null,null,1,1,null,null,null,null,null,null,1,null,null,null,null,null,null,null,null,null,null,null,null,null,null,null,1,1]
[5866,"Unipet, LLC","Y",null,null,null,null,1,null,null,null,null,null,null,null,null,null,null,1]
[6157,"Unique Petz LLC","Y",null,null,null,null,null,null,null,null,null,null,null,1,null,null,null,null,null,null,1,1,null,1,1,null,null,1,null,null,1,null,null,null,null,null,1,null,1,1,1]
[7519,"United States Postal Service","Y",null,null,null,null,null,null,null,null,null,null,null,1]
[4874,"Up Country Inc.","Y",null,null,1,null,null,null,null,null,null,0,0,null,1,0,0,0,0,0,1,1,0,1,1,0,0,null,1,0,1,0,null,0,null,0,null,0,0,0,0,0,0,0,null,0,0,0,0,0,0,0,0,0]
[6466,"Urban Dog Stars *","Y",null,null,null,null,null,null,null,null,null,null,null,null,null,null,null,null,null,null,null,1,null,null,1,null,null,null,null,null,null,null,null,null,null,null,null,null,null,null,null,null,null,null,null,null,null,null,null,null,null,null,1]
[2249,"UTOPIA","Y",null,1,null,null,null,null,null,null,null,null,null,null,null,null,null,null,null,null,1,1,null,null,null,null,null,null,null,null,null,null,null,null,null,null,null,null,null,null,null,null,null,null,null,1]
[1331,"Utsumi","Y",null,null,null,null,null,1,null,null,null,null,null,1,null,null,null,null,null,null,null,1,null,null,null,null,null,null,null,null,null,null,null,null,null,null,null,null,null,null,null,null,null,null,null,null,null,1]
[7619,"VAFO Group *","Y",null,null,null,null,null,null,null,null,null,null,null,1,null,null,null,null,1,null,1,1,null,null,null,null,1,null,1,null,null,null,null,null,null,null,null,null,null,null,null,null,null,null,1,1]
[6678,"ValuePetSupplies *","Y",null,null,null,null,null,null,null,null,1,null,null,1,null,null,null,null,null,null,null,1,null,null,null,null,null,null,1,1,null,null,null,null,null,null,null,null,null,null,null,null,null,null,null,null,null,null,null,null,null,1]
[5239,"Van Ness Pet Products","Y",null,null,null,null,null,null,null,null,null,0,0,null,0,0,0,0,1,0,1,1,0,0,0,0,0,1,0,0,1,0,1,1,0,0,1,0,1,0,0,0,1,0,null,0,0,0,0,0,0,0]
[6878,"Vascito, LLC *","Y",null,null,null,null,null,null,null,null,1,null,null,null,null,null,null,null,null,null,1,1,null,null,null,null,null,1]
[5278,"Vee Enterprises","Y",null,null,1,null,null,null,null,null,null,null,null,null,null,null,null,null,null,null,1,1,null,null,null,null,null,null,null,null,1,null,1]
[4960,"Verifone","Y",null,null,null,null,null,null,null,null,null,null,null,1]
[5749,"Vetericyn Animal Wellness","Y",null,null,null,null,null,null,null,null,null,null,null,null,null,null,1,1,1,1,1,1,null,null,null,null,null,null,null,null,null,null,null,null,null,null,null,null,null,null,null,null,null,null,null,1,null,null,1]
[5739,"Veterinary Service, Inc. (VSI)","Y",null,null,null,null,null,null,null,null,null,null,1,null,null,null,null,1,1,1,1,1,null,1,1,1,1,1,1,1,1,1,1,1,1,1,1,1,1,1,1,1,1,1,1,1,1,1,1,1,1,1,1,0]
[3719,"Vetnique Labs, LLC","Y",null,1,null,null,null,null,null,null,null,null,null,null,null,null,null,null,null,1,1,1,null,null,null,null,null,null,1,null,null,null,null,null,null,null,null,null,null,null,null,null,null,null,null,1,null,1,1,null,1]
[7011,"VETRESKA","Y",null,null,null,null,null,null,null,null,null,null,null,null,null,null,null,null,null,null,1,1,null,null,1,null,null,1,null,null,1,null,null,1,1,null,1,null,null,null,null,1,1,null,null,null,null,null,null,null,null,null,1]
[6274,"VetriMax Veterinary Products *","Y",null,null,null,null,null,null,null,null,1,null,null,null,null,null,null,null,null,1,1,1,null,null,null,null,null,null,null,null,null,null,null,null,null,null,null,null,null,null,null,null,null,null,null,1,null,null,1]
[6819,"VetriScience® Laboratories; Pet Naturals®","Y",null,null,null,null,null,null,null,null,null,null,null,null,null,null,null,null,null,null,1,1,null,null,null,null,null,null,1,null,null,null,null,null,null,null,null,null,null,null,null,null,null,null,null,1]
[4957,"Vets Plus Inc.","Y",null,null,null,null,null,null,null,null,null,null,null,1,null,null,null,null,null,1,1,1,null,null,null,null,null,null,1,null,null,null,null,null,null,null,null,null,null,null,null,null,null,null,1,1,null,null,1]
[6439,"VICTOR Super Premium Pet Food","Y",null,null,null,null,null,null,null,null,null,null,null,null,null,null,null,null,null,null,1,1,null,null,null,null,1,null,1]
[6579,"Vintage Life *","Y",null,null,null,null,null,null,null,null,1,null,null,null,1]
[5568,"Virtual Packaging","Y",null,null,null,null,null,null,null,null,null,null,null,1]
[5119,"Vista Pet Supply","Y",null,null,null,1,null,null,null,null,null,null,1,null,null,null,1]
[7610,"Vitakraft Sunseed","Y",null,null,null,null,null,null,null,null,null,null,null,null,null,null,null,1,1,null,1,1,null,null,null,null,null,null,1]
[1568,"Vital Essentials","Y",null,1,null,null,null,null,null,null,null,null,null,null,null,null,null,null,null,null,1,1,null,null,null,null,1,null,1,null,null,null,null,null,null,null,null,null,null,null,null,null,null,null,null,1]
[7479,"Voilà Pets *","Y",null,null,null,null,null,null,null,null,1,null,null,null,null,null,null,null,null,null,null,1,null,null,null,null,null,1]
[6739,"Volkman Pet Products","Y",null,null,null,null,null,null,null,null,null,0,0,null,0,0,0,1,1,0,0,1,0,0,0,0,1,0,0,0,0,0,0,0,0,0,0,0,0,0,1,0,0,0,null,0,0,0,0,0,0,0,0,null,0]
[2237,"VOOCOO","Y",null,null,null,null,null,1,null,null,null,null,null,null,null,null,null,null,null,null,1,1,null,null,1,null,null,1,null,null,null,null,null,null,null,null,null,null,1,null,null,null,null,null,null,null,null,1]
[1346,"W.F. Young (The Missing Link & Silver Honey)","Y",null,1,null,null,null,null,null,null,null,null,null,null,null,null,null,1,null,1,1,1,null,null,null,null,null,null,1,null,null,null,null,null,null,null,null,null,null,null,null,null,null,1,null,1,null,null,null,null,null,null,null,null,0]
[6169,"WACKYwalk'r","Y",null,null,null,null,null,null,null,null,null,null,null,null,null,null,null,null,null,null,null,1,null,null,1,null,null,null,null,null,1]
[7374,"Wag & Wonder, LLC *","Y",null,null,null,null,null,null,null,null,1,null,null,null,1,null,null,null,null,null,null,1,null,1,1,null,null,null,null,null,null,null,null,null,null,null,1,null,null,null,null,null,null,null,null,null,null,null,null,null,null,null,1]
[3807,"WAG Australian Dog Treats","Y",null,1,null,null,null,null,null,null,null,null,null,null,null,null,null,null,null,null,null,1,null,null,null,null,null,null,1]
[3809,"Wag Central, Crown to Tail, What's Barking","Y",null,1,null,null,null,null,null,null,null,null,null,null,null,null,null,null,null,null,null,1,null,null,null,null,null,null,1]
[1948,"Waggin Water","Y",null,1,null,null,null,null,null,null,null,null,null,null,null,null,null,null,null,null,null,1,null,null,null,null,null,null,null,null,null,null,null,null,null,null,null,null,null,null,null,null,null,null,1,1]
[2240,"Waggz Inc.","Y",null,null,null,null,null,1,null,null,null,null,null,1,null,null,null,null,null,null,null,1,null,null,null,null,null,null,null,null,null,null,null,null,null,null,null,null,null,null,null,null,null,null,null,null,null,1]
[1131,"Wag'n Tails Mobile Conversions, LLC","Y",null,null,null,null,null,1,null,null,null,null,null,1,null,null,null,null,null,null,null,1,null,null,null,null,null,null,null,null,null,null,null,null,null,null,null,null,null,null,null,null,null,null,null,null,null,1]
[1930,"Wahl Clipper","Y",null,null,null,null,null,1,null,null,null,0,0,1,0,0,0,0,null,1,1,1,null,0,0,0,0,0,0,0,0,0,0,0,0,0,0,0,0,0,0,0,0,0,null,0,0,1,1,0,null,0,0]
[4257,"Ware Pet Products","Y",null,null,null,null,null,null,null,null,null,0,0,null,0,0,null,1,1,0,1,1,0,0,0,0,0,0,0,0,1,null,0,1,1,0,1,null,1,null,1,0,0,0,null,0,0,0,0,0,0,0,0,null,0]
[7166,"Warm Universe Home Products Co.,Ltd. *","Y",null,null,null,null,null,null,null,null,null,null,null,null,null,null,null,null,null,null,1,1,null,null,null,null,null,null,null,null,1,null,null,null,null,null,1,null,null,1,null,null,null,null,null,1]
[1747,"Warren London","Y",null,1,null,null,null,null,null,null,null,0,0,1,1,0,0,0,0,0,1,1,0,null,1,0,0,0,0,0,0,0,0,0,0,0,0,0,0,0,0,0,0,"`",null,1,1,1,1,1,null,0,0]
[1784,"WashBar US Inc","Y",null,1,null,null,null,null,null,null,null,null,null,null,null,null,null,null,null,null,null,1,null,null,null,null,null,null,null,null,null,null,null,null,null,null,null,null,null,null,null,null,null,null,null,1,null,null,1]
[3764,"We Are Ndependent","Y",null,1,null,null,null,null,null,null,null,null,null,null,null,null,null,null,null,null,1,1,null,null,null,null,null,null,1,null,null,null,null,null,null,null,null,null,null,null,null,null,null,null,null,1]
[7262,"WeatherTech","Y",null,null,null,null,null,null,null,null,null,null,null,null,null,null,null,null,null,null,1,1,null,null,1,null,null,1,null,null,null,null,null,null,null,null,null,null,null,1]
[7363,"Wee Away Company","Y",null,null,null,null,null,null,null,null,null,null,null,null,null,null,null,1,1,null,1,1,null,null,null,null,null,null,null,null,null,null,null,null,null,null,null,null,null,null,null,null,null,null,null,null,1,null,1,1,1]
[4078,"WEIHAI EAST CO., LTD","Y",null,1,null,null,null,null,null,null,null,null,null,null,null,null,1,1,1]
[7566,"Welfull Group Co.,Ltd *","Y",null,null,null,null,null,null,null,null,null,null,null,null,null,null,null,null,null,null,1,1,null,null,null,null,null,1,null,null,1,null,null,null,null,null,1]
[4462,"Wellnergy Pets *","Y",null,1,null,null,null,null,null,null,null,null,null,null,null,null,null,null,null,null,1,1,null,null,null,null,null,null,1,null,null,null,null,null,null,null,null,null,null,null,null,null,null,1,null,null,null,null,1,null,1]
[3931,"Wellness Pet","Y",null,1,null,null,null,null,null,null,null,0,0,null,0,0,0,0,null,0,1,1,0,0,0,0,1,0,1,0,0,0,0,0,0,0,0,0,0,0,0,0,0,1,null,0,0,0,0,0,0,0,0]
[5479,"Wenzhou Double Star Pet Products Manufactory *","Y",null,null,null,null,null,null,null,1,null,null,null,null,null,null,null,null,null,null,1,1,null,1,1,null,null,null,null,null,null,null,null,null,null,null,null,null,1,1]
[1985,"Weruva","Y",null,1,null,null,null,null,null,null,null,null,null,null,null,null,null,null,null,null,1,1,null,null,null,null,1,null,null,null,null,null,null,null,null,null,null,null,null,null,null,null,null,null,null,1]
[3739,"West Paw","Y",null,1,null,null,null,null,null,null,null,0,0,null,0,0,0,0,0,0,null,1,0,null,null,0,0,1,1,0,1,0,null,0,0,0,1,0,0,0,0,0,0,0,null,0,0,0,0,0,0,0,0]
[4031,"Westminster Pet Products","Y",null,null,null,null,null,null,null,null,null,null,null,null,null,null,null,null,null,null,1,1,null,null,1,null,null,1,1,1,null,null,1,null,null,1,null,null,null,1,null,null,1,1,null,null,1,1,null,null,null,1,1]
[3431,"WET NOSES NATURAL DOG TREAT CO","Y",null,1,null,null,null,null,null,null,null,0,0,null,0,0,0,0,0,0,1,1,0,0,0,0,null,0,1,0,0,0,0,0,0,0,0,0,0,0,0,0,0,0,null,null,0,0,0,0,0,0,0]
[6311,"Whisker *","Y",null,null,null,null,null,null,null,null,null,null,null,null,null,null,null,null,null,null,1,1,null,null,null,null,null,1,null,null,null,null,null,null,1,null,1,null,null,null,null,1,1,null,null,null,null,null,null,null,null,null,null,1]
[1154,"Whitebridge Pet Brands","Y",null,1,null,null,null,null,null,null,null,null,null,null,null,null,null,null,null,null,1,1,null,null,null,null,1,null,1,null,null,null,null,null,null,null,null,null,null,null,null,null,null,null,null,1]
[4565,"WholesalePet.com","Y",null,null,1,null,null,null,null,null,null,0,1,null,0,1,1,1,1,1,1,1,0,1,1,1,1,1,1,1,1,1,1,1,1,1,1,1,1,1,1,1,1,1,1,1,1,1,1,1,1,1,1]
[4051,"Wholistic Pet Organics","Y",null,null,null,null,null,null,null,null,null,0,0,null,0,0,0,null,0,1,1,1,0,0,0,0,null,0,1,0,0,0,0,0,0,0,0,0,0,0,0,0,0,0,null,1,1,0,1,0,0,0,0]
[6278,"Wigglewow *","Y",null,null,null,null,null,null,null,null,1,null,null,null,null,null,null,null,null,null,null,1,null,null,null,null,null,null,1]
[3761,"Wild Earth","Y",null,1,null,null,null,null,null,null,null,null,null,null,1,null,null,null,null,null,null,1,null,null,null,null,1,null,1,null,null,null,null,null,null,null,null,null,null,null,null,null,null,null,null,1]
[7057,"Win World International Trade","Y",null,null,null,null,null,null,null,null,null,null,null,null,null,null,null,null,null,null,null,1,null,null,null,null,null,null,null,null,null,null,null,null,null,null,null,null,null,null,1]
[7477,"Wingo Outdoors *","Y",null,null,null,null,null,null,null,null,1,null,null,null,null,null,null,null,null,null,null,1,null,null,1]
[3304,"Winnie Lou - The Canine Co.","Y",null,1,null,null,null,null,null,null,null,null,null,null,null,null,null,null,null,null,1,1,null,null,null,null,null,null,1]
[4025,"WizSmart by Petix","Y",null,null,null,null,null,null,null,null,null,null,null,null,null,null,null,null,null,null,null,1,null,null,null,null,null,null,null,null,null,null,null,null,null,null,null,null,null,null,null,null,null,null,null,null,null,null,null,null,null,1]
[1250,"WJ Packaging Solutions","Y",null,1,null,null,null,null,null,null,null,null,null,1]
[4677,"Wolfgang","Y",null,null,1,null,null,null,null,null,null,null,null,null,1,null,null,null,null,null,null,1,null,null,1,null,null,null,null,null,1,null,null,null,null,null,1]
[7811,"Wonderfold","Y",null,null,null,null,null,null,null,null,null,null,null,null,null,null,null,null,null,null,null,1,null,null,null,null,null,null,null,null,null,null,null,null,null,null,null,null,1]
[1138,"Woof Gang Bakery","Y",null,null,null,null,null,1,null,null,null,null,null,null,null,null,null,null,null,null,null,1,null,null,null,null,null,null,1]
[6362,"Woofkies","Y",null,null,null,null,null,null,null,null,null,null,null,null,null,null,null,null,null,null,null,1,null,null,null,null,null,null,1]
[5718,"World Wide Imports Ent., Inc *","Y",null,null,null,1,null,null,null,null,null,null,null,null,null,1]
[7630,"WORLDWISE INC.","Y",null,null,null,null,null,null,null,null,null,null,null,null,null,null,null,null,null,null,1,1,null,1,1,null,null,1,1,1,1,null,1,1,1,null,1,null,1,1,null,null,1,1,null,null,null,null,null,null,null,null,null,null,1]
[4615,"WPA HUB","Y",null,null,null,null,null,null,null,null,null,1,null,null,null,null,null,null,null,null,null,null,null,null,null,null,null,null,null,null,null,null,null,null,null,null,null,null,null,null,null,null,null,null,null,null,null,null,null,null,null,null,null,0]
[5869,"Wyld's Wingdom Inc","Y",null,null,null,null,1,null,null,null,null,null,null,null,null,null,null,1,1]
[7211,"Xiamen JXD Electronic Commerce Co., Ltd.","Y",null,null,null,null,null,null,null,null,null,null,null,null,null,null,null,null,1,null,1,1,null,null,null,null,null,null,null,null,null,null,null,null,1,null,null,null,1,null,1,null,1]
[6166,"Xiaogo Pet Technology Innovation (Shenzhen) Co., LTD *","Y",null,null,null,null,null,null,null,null,null,null,null,null,null,null,null,null,null,null,1,1,null,null,null,null,null,1,null,null,1]
[1885,"Yak9 Dog Chews","Y",null,1,null,null,null,null,null,null,null,null,null,null,null,null,null,null,null,null,null,1,null,null,null,null,null,null,1]
[7167,"Yantai Meifeng Plastic Products Co., Ltd. *","Y",null,null,null,null,null,null,null,null,null,null,null,1]
[4167,"Yappetizers","Y",null,1,null,null,null,null,null,null,null,null,null,null,null,null,null,null,null,null,1,1,null,null,null,null,null,null,1,null,null,null,null,null,null,null,null,null,null,null,null,null,null,null,null,1]
[4270,"Yaxin Flexible Packaging","Y",null,1,null,null,null,null,null,null,null,null,null,1,null,null,null,null,null,null,1,1,null,null,null,null,1]
[4757,"Yellow Dog Design","Y",null,null,1,null,null,null,null,null,null,0,0,null,0,0,0,0,0,1,1,1,0,1,1,null,0,0,0,0,0,0,0,0,0,0,0,0,0,0,0,0,0,0,null,0,0,0,0,0,0,0,0]
[6563,"Yeowww! Catnip/DuckyWorld Products","Y",null,null,null,null,null,null,null,null,null,0,0,null,0,0,0,0,0,0,1,0,0,0,0,0,0,0,null,0,1,0,1,0,0,0,0,0,0,0,0,0,0,0,null,0,0,0,0,0,0,0,0]
[1148,"Yeti Corporation","Y",null,1,null,null,null,null,null,null,null,0,0,null,0,0,0,0,0,0,null,1,0,0,0,0,0,0,1,0,1,0,0,0,0,0,1,0,0,0,0,0,0,0,null,0,0,0,0,0,0,0,0,0]
[7765,"YMS \"WALDO\" *","Y",null,null,null,null,null,null,null,null,null,null,null,null,null,null,null,null,null,null,1,1,null,null,1,null,null,null,null,null,null,null,null,null,null,null,null,null,null,null,null,null,null,null,null,1,null,null,null,null,null,null,null,1,1]
[6974,"Yomp *","Y",null,null,null,null,null,null,null,null,1,null,null,null,null,null,null,null,null,null,null,1,null,null,null,null,null,1,null,null,1,null,null,null,null,null,null,null,null,null,null,null,null,null,null,null,null,null,null,null,null,null,1]
[5966,"Yongcheng Hao lixang Hygiene products Co.,Ltd. *","Y",null,null,null,null,1,null,null,null,null,null,null,null,null,null,null,null,null,null,null,1,null,null,null,null,null,null,null,null,null,null,null,null,null,null,null,null,null,null,null,null,null,null,null,1,null,null,null,null,null,1]
[3575,"YORA","Y",null,1,null,null,null,null,null,null,null,null,null,null,null,null,null,null,null,null,null,1,null,null,null,null,1,null,1]
[7724,"Yummy Combs","Y",null,null,null,null,null,null,null,null,null,null,null,null,null,null,null,null,null,null,null,1,null,null,null,null,null,null,1,null,null,null,null,null,null,null,null,null,null,null,null,null,null,1]
[6467,"Yuxing Indudtry Co.,Ltd *","Y",null,null,null,null,null,null,null,null,null,null,null,null,null,null,null,null,null,null,1,1,null,null,null,null,null,null,null,null,1]
[6962,"Zee.Dog","Y",null,null,null,null,null,null,null,null,null,null,null,null,null,null,null,null,null,null,1,1,null,1,1,1,null,1,null,null,1,null,null,1,null,null,1,null,1,null,null,null,null,null,null,null,null,null,null,null,null,1,1]
[1735,"ZeLo","Y",null,null,null,null,null,1,null,null,null,null,null,null,null,null,null,null,null,null,1,1,null,null,null,null,null,null,null,null,null,null,null,null,null,null,null,null,null,null,null,null,null,null,null,null,null,null,null,1]
[4009,"Zen Frenz","Y",null,null,null,null,null,null,null,null,null,null,null,null,null,null,null,null,null,null,1,1,null,null,null,null,null,1,1,null,null,null,null,null,null,null,null,null,null,null,null,null,null,null,1,1,null,null,1]
[7349,"ZenPet","Y",null,null,null,null,null,null,null,null,null,null,null,null,null,null,null,null,null,null,1,1,null,1,1,null,null,null,null,null,null,null,null,null,null,null,null,null,null,null,null,null,null,null,null,1,1,1]
[1237,"Zhangjiagang Aike Scissors *","Y",null,null,null,null,null,1,null,null,null,null,null,1,null,null,null,null,null,null,null,1,null,null,null,null,null,null,null,null,null,null,null,null,null,null,null,null,null,null,null,null,null,null,null,null,null,1]
[2235,"ZHANGJIAGANG BOHONG TRADE CO.,LTD *","Y",null,null,null,null,null,1,null,null,null,null,null,null,null,null,null,null,null,null,1,1,null,1,1,null,null,1,null,null,1,null,null,null,null,null,1,null,1,1,null,null,null,null,null,null,null,1]
[2335,"Zhejiang Hangkong Technology Co., Ltd","Y",null,null,null,null,null,1,null,null,null,null,null,null,null,null,null,null,null,null,1,1,null,null,null,null,null,1,null,null,null,null,null,null,null,null,null,null,null,null,null,null,1,null,null,null,null,null,null,null,null,null,null,1,1]
[5627,"Zilla","Y",null,null,null,null,null,null,null,null,null,null,null,null,null,null,1]
[4631,"ZippyPaws","Y",null,null,null,null,null,null,null,null,null,0,0,null,0,0,0,0,0,0,0,1,0,1,1,0,0,1,0,0,1,0,0,0,0,0,null,0,0,1,0,0,0,0,null,0,0,0,0,0,0,0,1]
[3425,"ZIWI","Y",null,1,null,null,null,null,null,null,null,null,null,null,null,null,null,null,null,null,1,1,null,null,null,null,1,null,1]
[7674,"Zoeuticals LLC *","Y",null,null,null,null,null,null,null,null,1,null,null,null,null,null,null,null,null,1,1,1,null,null,null,null,null,null,null,null,null,null,null,null,null,null,null,null,null,null,null,null,null,null,null,1]
[1340,"Zolitta","Y",null,null,null,null,null,1,null,null,null,null,null,1,null,null,null,null,null,null,null,1,null,null,null,null,null,null,null,null,null,null,null,null,null,null,null,null,null,null,null,null,null,null,null,null,null,1]
[5439,"Zoo Med Labs","Y",null,null,null,null,null,null,null,null,null,0,0,null,null,1,1,1,0,0,0,0,0,0,0,0,0,0,0,0,0,0,0,0,0,0,0,0,0,0,0,0,0,0,null,0,0,0,0,0,0,0,0]
[5053,"Zymox & Oratene by Pet King Brands (2230)","Y",null,null,null,null,null,null,null,null,null,null,null,null,null,null,1,1,1,1,1,1,null,null,null,null,null,null,null,null,null,null,null,null,null,null,null,null,null,null,null,null,null,1,null,1,null,null,1]
[2230,"Zymox Grooming by Pet King Brands (5053)","Y",null,null,null,null,null,1,null,null,null,null,null,null,null,null,1,1,1,1,1,1,null,null,null,null,null,null,null,null,null,null,null,null,null,null,null,null,null,null,null,null,null,1,null,1,null,null,1]
[null,"BLANK Search Field","N"]
[null,"Total >",{"$f":"SUMPRODUCT(- -(ISNUMBER(SEARCH(\"Y\",$C$10:$C$1120))),SUBTOTAL(3,OFFSET($C$10,ROW($C$10:$C$1120)-ROW($C$10),0)))","v":1111},{"$f":"SUBTOTAL(109,D10:D1120)","v":0},{"$f":"SUBTOTAL(109,E10:E1120)","v":327},{"$f":"SUBTOTAL(109,F10:F1120)","v":82},{"$f":"SUBTOTAL(109,G10:G1120)","v":38},{"$f":"SUBTOTAL(109,H10:H1120)","v":21},{"$f":"SUBTOTAL(109,I10:I1120)","v":91},{"$f":"SUBTOTAL(109,J10:J1120)","v":0},{"$f":"SUBTOTAL(109,K10:K1120)","v":14},{"$f":"SUBTOTAL(109,L10:L1120)","v":90},{"$f":"SUBTOTAL(109,M10:M1120)","v":27},{"$f":"SUBTOTAL(109,N10:N1120)","v":30},{"$f":"SUBTOTAL(109,O10:O1120)","v":223},{"$f":"SUBTOTAL(109,P10:P1120)","v":88},{"$f":"SUBTOTAL(109,Q10:Q1120)","v":56},{"$f":"SUBTOTAL(109,R10:R1120)","v":54},{"$f":"SUBTOTAL(109,S10:S1120)","v":95},{"$f":"SUBTOTAL(109,T10:T1120)","v":85},{"$f":"SUBTOTAL(109,U10:U1120)","v":96},{"$f":"SUBTOTAL(109,V10:V1120)","v":582},{"$f":"SUBTOTAL(109,W10:W1120)","v":889},{"$f":"SUBTOTAL(109,X10:X1120)","v":5},{"$f":"SUBTOTAL(109,Y10:Y1120)","v":116},{"$f":"SUBTOTAL(109,Z10:Z1120)","v":199},{"$f":"SUBTOTAL(109,AA10:AA1120)","v":24},{"$f":"SUBTOTAL(109,AB10:AB1120)","v":171},{"$f":"SUBTOTAL(109,AC10:AC1120)","v":160},{"$f":"SUBTOTAL(109,AD10:AD1120)","v":359},{"$f":"SUBTOTAL(109,AE10:AE1120)","v":30},{"$f":"SUBTOTAL(109,AF10:AF1120)","v":204},{"$f":"SUBTOTAL(109,AG10:AG1120)","v":12},{"$f":"SUBTOTAL(109,AH10:AH1120)","v":25},{"$f":"SUBTOTAL(109,AI10:AI1120)","v":62},{"$f":"SUBTOTAL(109,AJ10:AJ1120)","v":64},25,147,22,80,59,27,50,71,62,60,304,53,134,120,90,56,52,102,37,10]

{"sheet":"Sheet1","index":1,"n_rows":0,"n_cols":0,"rows_kept":0,"cut":false,"hidden":false,"merged":[]}